Body Name,Vendor Number,Vendor Name,Cost Centre,Service Label,BV Code,Amount,Period
Slough Borough Council,806901,4way Consulting Ltd,P209,Capital,Capital Charges,"2,677.74",Jul-23
Slough Borough Council,806901,4way Consulting Ltd,P212,Capital,Capital Charges,"1,449.17",Jul-23
Slough Borough Council,1055,A J Chapman,M50A,Place Operations,Transport,"2,180.00",Jul-23
Slough Borough Council,1055,A J Chapman,F123,Education & Inclusion,External Receipts,"62,170.54",Jul-23
Slough Borough Council,1055,A J Chapman,F123,Education & Inclusion,External Receipts,"37,107.96",Jul-23
Slough Borough Council,1055,A J Chapman,F123,Education & Inclusion,External Receipts,"2,535.00",Jul-23
Slough Borough Council,1055,A J Chapman,F123,Education & Inclusion,External Receipts,"2,366.00",Jul-23
Slough Borough Council,1055,A J Chapman,F123,Education & Inclusion,External Receipts,"3,380.00",Jul-23
Slough Borough Council,1055,A J Chapman,F123,Education & Inclusion,External Receipts,"1,133.00",Jul-23
Slough Borough Council,1055,A J Chapman,F123,Education & Inclusion,External Receipts,"1,740.00",Jul-23
Slough Borough Council,1055,A J Chapman,F123,Education & Inclusion,External Receipts,"1,302.00",Jul-23
Slough Borough Council,1055,A J Chapman,F123,Education & Inclusion,External Receipts,"1,860.00",Jul-23
Slough Borough Council,1055,A J Chapman,F123,Education & Inclusion,External Receipts,"3,380.00",Jul-23
Slough Borough Council,1055,A J Chapman,F123,Education & Inclusion,External Receipts,"1,305.00",Jul-23
Slough Borough Council,1055,A J Chapman,F123,Education & Inclusion,External Receipts,"1,116.00",Jul-23
Slough Borough Council,1055,A J Chapman,F123,Education & Inclusion,External Receipts,"1,395.00",Jul-23
Slough Borough Council,536,Ability Housing Association,M42E,Adult Social Care Operations,Supplies and Services,"2,925.51",Jul-23
Slough Borough Council,536,Ability Housing Association,M42E,Adult Social Care Operations,Supplies and Services,"3,377.96",Jul-23
Slough Borough Council,536,Ability Housing Association,M42E,Adult Social Care Operations,Supplies and Services,"2,698.87",Jul-23
Slough Borough Council,536,Ability Housing Association,M42E,Adult Social Care Operations,Supplies and Services,"2,801.89",Jul-23
Slough Borough Council,536,Ability Housing Association,M42E,Adult Social Care Operations,Supplies and Services,"2,760.68",Jul-23
Slough Borough Council,536,Ability Housing Association,M42E,Adult Social Care Operations,Supplies and Services,"2,595.85",Jul-23
Slough Borough Council,536,Ability Housing Association,M42E,Adult Social Care Operations,Supplies and Services,"1,483.26",Jul-23
Slough Borough Council,536,Ability Housing Association,M42E,Adult Social Care Operations,Supplies and Services,"1,943.78",Jul-23
Slough Borough Council,536,Ability Housing Association,M42E,Adult Social Care Operations,Supplies and Services,"2,500.07",Jul-23
Slough Borough Council,536,Ability Housing Association,M42E,Adult Social Care Operations,Supplies and Services,"2,829.73",Jul-23
Slough Borough Council,536,Ability Housing Association,M42E,Adult Social Care Operations,Supplies and Services,"2,582.49",Jul-23
Slough Borough Council,536,Ability Housing Association,M42E,Adult Social Care Operations,Supplies and Services,"1,305.07",Jul-23
Slough Borough Council,536,Ability Housing Association,M42E,Adult Social Care Operations,Supplies and Services,"3,118.18",Jul-23
Slough Borough Council,536,Ability Housing Association,M42E,Adult Social Care Operations,Supplies and Services,"2,767.92",Jul-23
Slough Borough Council,536,Ability Housing Association,M42E,Adult Social Care Operations,Supplies and Services,"2,744.25",Jul-23
Slough Borough Council,536,Ability Housing Association,M42E,Adult Social Care Operations,Supplies and Services,"2,768.96",Jul-23
Slough Borough Council,536,Ability Housing Association,M42E,Adult Social Care Operations,Supplies and Services,"1,903.62",Jul-23
Slough Borough Council,536,Ability Housing Association,M42E,Adult Social Care Operations,Supplies and Services,"3,156.32",Jul-23
Slough Borough Council,536,Ability Housing Association,M44E,Adult Social Care Operations,Supplies and Services,"1,862.56",Jul-23
Slough Borough Council,536,Ability Housing Association,M44E,Adult Social Care Operations,Supplies and Services,"1,932.62",Jul-23
Slough Borough Council,536,Ability Housing Association,M44E,Adult Social Care Operations,Supplies and Services,"2,278.76",Jul-23
Slough Borough Council,536,Ability Housing Association,M44E,Adult Social Care Operations,Supplies and Services,"2,361.17",Jul-23
Slough Borough Council,2898,Achieve Together t/a The Regard Partnership Ltd,M26E,Adult Social Care Operations,Supplies and Services,"7,521.04",Jul-23
Slough Borough Council,2898,Achieve Together t/a The Regard Partnership Ltd,M26E,Adult Social Care Operations,Supplies and Services,"6,352.08",Jul-23
Slough Borough Council,2898,Achieve Together t/a The Regard Partnership Ltd,M42E,Adult Social Care Operations,Supplies and Services,"6,781.47",Jul-23
Slough Borough Council,2898,Achieve Together t/a The Regard Partnership Ltd,M42E,Adult Social Care Operations,Supplies and Services,"7,013.22",Jul-23
Slough Borough Council,2898,Achieve Together t/a The Regard Partnership Ltd,M42E,Adult Social Care Operations,Supplies and Services,"5,208.04",Jul-23
Slough Borough Council,2898,Achieve Together t/a The Regard Partnership Ltd,M42E,Adult Social Care Operations,Supplies and Services,"6,559.16",Jul-23
Slough Borough Council,2898,Achieve Together t/a The Regard Partnership Ltd,M42E,Adult Social Care Operations,Supplies and Services,"5,567.29",Jul-23
Slough Borough Council,2898,Achieve Together t/a The Regard Partnership Ltd,M42E,Adult Social Care Operations,Supplies and Services,"5,334.52",Jul-23
Slough Borough Council,2898,Achieve Together t/a The Regard Partnership Ltd,M42E,Adult Social Care Operations,Supplies and Services,"-3,053.03",Jul-23
Slough Borough Council,2898,Achieve Together t/a The Regard Partnership Ltd,M42E,Adult Social Care Operations,Supplies and Services,"5,066.23",Jul-23
Slough Borough Council,2898,Achieve Together t/a The Regard Partnership Ltd,M42E,Adult Social Care Operations,Supplies and Services,"5,235.10",Jul-23
Slough Borough Council,2898,Achieve Together t/a The Regard Partnership Ltd,M42E,Adult Social Care Operations,Supplies and Services,"4,728.48",Jul-23
Slough Borough Council,2898,Achieve Together t/a The Regard Partnership Ltd,M42E,Adult Social Care Operations,Supplies and Services,"5,235.10",Jul-23
Slough Borough Council,2898,Achieve Together t/a The Regard Partnership Ltd,M44D,Adult Social Care Operations,Supplies and Services,"4,840.87",Jul-23
Slough Borough Council,2898,Achieve Together t/a The Regard Partnership Ltd,M44E,Adult Social Care Operations,Supplies and Services,"5,818.48",Jul-23
Slough Borough Council,807554,Acorn Care & Education Ltd,F462,Children & Families,Supplies and Services,"2,518.44",Jul-23
Slough Borough Council,807554,Acorn Care & Education Ltd,F462,Children & Families,Supplies and Services,"21,586.67",Jul-23
Slough Borough Council,805529,Action First Recrutiment Ltd,A02A,People,Supplies and Services,760.00,Jul-23
Slough Borough Council,805529,Action First Recrutiment Ltd,A02A,People,Supplies and Services,"1,100.00",Jul-23
Slough Borough Council,2855,Advance Housing & Support Ltd,M27F,Adult Social Care Operations,Supplies and Services,553.02,Jul-23
Slough Borough Council,2855,Advance Housing & Support Ltd,M27F,Adult Social Care Operations,Supplies and Services,843.55,Jul-23
Slough Borough Council,2855,Advance Housing & Support Ltd,M27F,Adult Social Care Operations,Supplies and Services,713.12,Jul-23
Slough Borough Council,2855,Advance Housing & Support Ltd,M42F,Adult Social Care Operations,Supplies and Services,"1,130.43",Jul-23
Slough Borough Council,2855,Advance Housing & Support Ltd,M42F,Adult Social Care Operations,Supplies and Services,695.65,Jul-23
Slough Borough Council,2855,Advance Housing & Support Ltd,M42F,Adult Social Care Operations,Supplies and Services,956.51,Jul-23
Slough Borough Council,2855,Advance Housing & Support Ltd,M42F,Adult Social Care Operations,Supplies and Services,972.52,Jul-23
Slough Borough Council,807002,Advanced Card Bureau LTD,J020,Place Management,Supplies and Services,505.36,Jul-23
Slough Borough Council,2135,Adventure Learning Childcare Limited,F909,Children & Families,Supplies and Services,"11,657.00",Jul-23
Slough Borough Council,2135,Adventure Learning Childcare Limited,F909,Children & Families,Supplies and Services,630.00,Jul-23
Slough Borough Council,805178,AFM Transport Limited,D880,Place Operations,Supplies and Services,"2,012.50",Jul-23
Slough Borough Council,2197,Altwood Housing Ltd,H205,Housing (People) Services,Supplies and Services,"1,200.00",Jul-23
Slough Borough Council,86,Altwood Properties Ltd,H205,Housing (People) Services,Premises,"50,732.82",Jul-23
Slough Borough Council,807515,Always Growing Together Community Interest Company Limited,F909,Children & Families,Supplies and Services,"9,263.27",Jul-23
Slough Borough Council,807515,Always Growing Together Community Interest Company Limited,F909,Children & Families,Supplies and Services,990.00,Jul-23
Slough Borough Council,808191,Ambrose Adrian Healthcare Ltd,M44E,Adult Social Care Operations,Supplies and Services,"3,800.00",Jul-23
Slough Borough Council,807893,Antz Kidz Activity Centre,F382,Children & Families,Supplies and Services,"5,725.50",Jul-23
Slough Borough Council,3137,Applegarth Care Home Ltd,M25C,Adult Social Care Operations,Supplies and Services,"3,600.00",Jul-23
Slough Borough Council,3137,Applegarth Care Home Ltd,M25C,Adult Social Care Operations,Supplies and Services,"1,414.27",Jul-23
Slough Borough Council,3137,Applegarth Care Home Ltd,M25C,Adult Social Care Operations,Supplies and Services,"3,200.00",Jul-23
Slough Borough Council,3137,Applegarth Care Home Ltd,M28C,Adult Social Care Operations,Supplies and Services,"1,414.27",Jul-23
Slough Borough Council,3137,Applegarth Care Home Ltd,M28C,Adult Social Care Operations,Supplies and Services,"3,278.60",Jul-23
Slough Borough Council,3137,Applegarth Care Home Ltd,M28C,Adult Social Care Operations,Supplies and Services,"2,307.14",Jul-23
Slough Borough Council,3137,Applegarth Care Home Ltd,M28C,Adult Social Care Operations,Supplies and Services,"1,092.86",Jul-23
Slough Borough Council,3137,Applegarth Care Home Ltd,M29C,Adult Social Care Operations,Supplies and Services,"-2,185.70",Jul-23
Slough Borough Council,3137,Applegarth Care Home Ltd,M29C,Adult Social Care Operations,Supplies and Services,"3,400.00",Jul-23
Slough Borough Council,3137,Applegarth Care Home Ltd,M29C,Adult Social Care Operations,Supplies and Services,"-1,214.29",Jul-23
Slough Borough Council,3137,Applegarth Care Home Ltd,M29C,Adult Social Care Operations,Supplies and Services,"1,457.16",Jul-23
Slough Borough Council,3137,Applegarth Care Home Ltd,M29C,Adult Social Care Operations,Supplies and Services,"2,064.29",Jul-23
Slough Borough Council,808415,APTUS EA LTD,H205,Housing (People) Services,Supplies and Services,"179,275.00",Jul-23
Slough Borough Council,511,Aquaneed Limited,P006,Capital,Capital Charges,"9,348.45",Jul-23
Slough Borough Council,3350,Arbour Vale School,E610,Children & Families,Supplies and Services,"465,509.71",Jul-23
Slough Borough Council,2073,Arc Preschool,F909,Children & Families,Supplies and Services,"7,695.19",Jul-23
Slough Borough Council,2073,Arc Preschool,F909,Children & Families,Supplies and Services,"1,170.00",Jul-23
Slough Borough Council,831,Argos Business Solutions Ltd,H055,Finance & Commercial,Supplies and Services,"35,936.00",Jul-23
Slough Borough Council,831,Argos Business Solutions Ltd,H055,Finance & Commercial,Supplies and Services,"19,790.64",Jul-23
Slough Borough Council,831,Argos Business Solutions Ltd,H055,Finance & Commercial,Supplies and Services,"16,207.05",Jul-23
Slough Borough Council,831,Argos Business Solutions Ltd,H055,Finance & Commercial,Supplies and Services,"17,433.70",Jul-23
Slough Borough Council,420,Ashburn Estate Agents,H205,Housing (People) Services,Premises,"113,782.00",Jul-23
Slough Borough Council,3666,Assisted Living South West,M26E,Adult Social Care Operations,Supplies and Services,"5,105.00",Jul-23
Slough Borough Council,3666,Assisted Living South West,M26E,Adult Social Care Operations,Supplies and Services,"6,778.96",Jul-23
Slough Borough Council,804324,Astoria Healthcare,M27F,Adult Social Care Operations,Supplies and Services,"4,417.50",Jul-23
Slough Borough Council,806232,Astral PS LTD (Trading as Foundations),A06C,People Strategy & Commissioning,Agency Staff,593.76,Jul-23
Slough Borough Council,570,Atkins Limited,P212,Capital,Capital Charges,"2,000.00",Jul-23
Slough Borough Council,570,Atkins Limited,P209,Capital,Supplies and Services,"1,150.00",Jul-23
Slough Borough Council,808330,Avison Young,P242,Capital,Capital Charges,"3,525.00",Jul-23
Slough Borough Council,1286,Barnardos,F462,Children & Families,Supplies and Services,"32,882.40",Jul-23
Slough Borough Council,1286,Barnardos,F462,Children & Families,Supplies and Services,"9,864.52",Jul-23
Slough Borough Council,3370,Baylis Court School,E610,Children & Families,Supplies and Services,"4,166.67",Jul-23
Slough Borough Council,1681,Bcq,B240,Business Services,Supplies and Services,"1,099.00",Jul-23
Slough Borough Council,1681,Bcq,D610,Place Operations,Supplies and Services,"1,339.00",Jul-23
Slough Borough Council,1681,Bcq,D610,Place Operations,Supplies and Services,686.00,Jul-23
Slough Borough Council,3208,Be Happy Pre School,F909,Children & Families,Supplies and Services,"12,214.36",Jul-23
Slough Borough Council,3208,Be Happy Pre School,F909,Children & Families,Supplies and Services,"6,747.25",Jul-23
Slough Borough Council,3208,Be Happy Pre School,F909,Children & Families,Supplies and Services,"1,800.00",Jul-23
Slough Borough Council,3208,Be Happy Pre School,F909,Children & Families,Supplies and Services,900.00,Jul-23
Slough Borough Council,805539,Beech Haven Ltd,M27C,Adult Social Care Operations,Supplies and Services,"3,277.14",Jul-23
Slough Borough Council,609,Beechwood Secondary School,E610,Children & Families,Supplies and Services,"5,500.00",Jul-23
Slough Borough Council,804588,BEN Motor & Allied Trades Bev.Fnd,M15D,Adult Social Care Operations,Supplies and Services,"6,400.00",Jul-23
Slough Borough Council,804588,BEN Motor & Allied Trades Bev.Fnd,M18C,Adult Social Care Operations,Supplies and Services,"9,114.29",Jul-23
Slough Borough Council,804588,BEN Motor & Allied Trades Bev.Fnd,M18C,Adult Social Care Operations,Supplies and Services,"-6,007.14",Jul-23
Slough Borough Council,804588,BEN Motor & Allied Trades Bev.Fnd,M27C,Adult Social Care Operations,Supplies and Services,"5,600.00",Jul-23
Slough Borough Council,804588,BEN Motor & Allied Trades Bev.Fnd,M27C,Adult Social Care Operations,Supplies and Services,"5,400.00",Jul-23
Slough Borough Council,808448,Benjamin Bown,F253,Children & Families,Agency Staff,600.00,Jul-23
Slough Borough Council,612,Berkshire Healthcare Nhs Foundation Trust,A07R,Adult Social Care Operations,Supplies and Services,"19,746.00",Jul-23
Slough Borough Council,612,Berkshire Healthcare Nhs Foundation Trust,F520,Education & Inclusion,Supplies and Services,"36,666.63",Jul-23
Slough Borough Council,612,Berkshire Healthcare Nhs Foundation Trust,F520,Education & Inclusion,Supplies and Services,"4,750.00",Jul-23
Slough Borough Council,808116,BeSpoke Cycling Instruction Ltd,D500,Place Strategy & Infrastructure,Supplies and Services,"5,940.00",Jul-23
Slough Borough Council,2308,Bespoke Supportive Tenancies Ltd,A04L,Adult Social Care Operations,Supplies and Services,"2,041.27",Jul-23
Slough Borough Council,2308,Bespoke Supportive Tenancies Ltd,A04L,Adult Social Care Operations,Supplies and Services,"1,975.43",Jul-23
Slough Borough Council,2308,Bespoke Supportive Tenancies Ltd,A04L,Adult Social Care Operations,Supplies and Services,"1,958.79",Jul-23
Slough Borough Council,808148,BEST CHOICE CARE LTD,A07R,Adult Social Care Operations,Supplies and Services,"1,102.66",Jul-23
Slough Borough Council,808148,BEST CHOICE CARE LTD,M41D,Adult Social Care Operations,Supplies and Services,586.25,Jul-23
Slough Borough Council,808148,BEST CHOICE CARE LTD,M44C,Adult Social Care Operations,Supplies and Services,568.88,Jul-23
Slough Borough Council,808148,BEST CHOICE CARE LTD,M44C,Adult Social Care Operations,Supplies and Services,547.15,Jul-23
Slough Borough Council,808148,BEST CHOICE CARE LTD,M44C,Adult Social Care Operations,Supplies and Services,"1,470.28",Jul-23
Slough Borough Council,808148,BEST CHOICE CARE LTD,M44C,Adult Social Care Operations,Supplies and Services,993.75,Jul-23
Slough Borough Council,808148,BEST CHOICE CARE LTD,M44C,Adult Social Care Operations,Supplies and Services,612.64,Jul-23
Slough Borough Council,808148,BEST CHOICE CARE LTD,M44C,Adult Social Care Operations,Supplies and Services,734.97,Jul-23
Slough Borough Council,808148,BEST CHOICE CARE LTD,M44C,Adult Social Care Operations,Supplies and Services,600.63,Jul-23
Slough Borough Council,808148,BEST CHOICE CARE LTD,M44C,Adult Social Care Operations,Supplies and Services,980.00,Jul-23
Slough Borough Council,808148,BEST CHOICE CARE LTD,M44C,Adult Social Care Operations,Supplies and Services,835.76,Jul-23
Slough Borough Council,808148,BEST CHOICE CARE LTD,M44C,Adult Social Care Operations,Supplies and Services,"1,837.78",Jul-23
Slough Borough Council,808148,BEST CHOICE CARE LTD,M44D,Adult Social Care Operations,Supplies and Services,"2,467.50",Jul-23
Slough Borough Council,808148,BEST CHOICE CARE LTD,M45C,Adult Social Care Operations,Supplies and Services,551.25,Jul-23
Slough Borough Council,808148,BEST CHOICE CARE LTD,M45C,Adult Social Care Operations,Supplies and Services,-633.75,Jul-23
Slough Borough Council,808148,BEST CHOICE CARE LTD,M45C,Adult Social Care Operations,Supplies and Services,"1,130.47",Jul-23
Slough Borough Council,806987,Better Life Care Ltd,M44E,Adult Social Care Operations,Supplies and Services,"4,400.00",Jul-23
Slough Borough Council,1736,Bevan Brittan Llp,P242,Capital,Capital Charges,"8,957.00",Jul-23
Slough Borough Council,3611,Birch Assist Ltd T/A Bluebird Care (South Bucks & Slough),M44D,Adult Social Care Operations,Supplies and Services,"2,982.00",Jul-23
Slough Borough Council,803828,Blue Willow Day Nursery Ltd,F909,Children & Families,Supplies and Services,"27,353.32",Jul-23
Slough Borough Council,803828,Blue Willow Day Nursery Ltd,F909,Children & Families,Supplies and Services,"2,250.00",Jul-23
Slough Borough Council,807297,BNP Paribas Real Estate Advisory & Property Management UK Limited,B079,Place Strategy & Infrastructure,Premises,"4,117.89",Jul-23
Slough Borough Council,807297,BNP Paribas Real Estate Advisory & Property Management UK Limited,B079,Place Strategy & Infrastructure,Premises,"5,169.17",Jul-23
Slough Borough Council,807297,BNP Paribas Real Estate Advisory & Property Management UK Limited,B079,Place Strategy & Infrastructure,Premises,613.97,Jul-23
Slough Borough Council,807297,BNP Paribas Real Estate Advisory & Property Management UK Limited,B079,Place Strategy & Infrastructure,Premises,613.97,Jul-23
Slough Borough Council,807297,BNP Paribas Real Estate Advisory & Property Management UK Limited,B079,Place Strategy & Infrastructure,Premises,930.09,Jul-23
Slough Borough Council,807297,BNP Paribas Real Estate Advisory & Property Management UK Limited,B079,Place Strategy & Infrastructure,Premises,930.09,Jul-23
Slough Borough Council,805060,BPS Dorking Ltd t/a BPS Chartered Surveyors,D224,Place Regulation,Supplies and Services,"5,580.00",Jul-23
Slough Borough Council,805060,BPS Dorking Ltd t/a BPS Chartered Surveyors,D224,Place Regulation,Supplies and Services,"5,580.00",Jul-23
Slough Borough Council,2856,Brain Injury Rehabilitation Trust,M26E,Adult Social Care Operations,Supplies and Services,"5,937.65",Jul-23
Slough Borough Council,2856,Brain Injury Rehabilitation Trust,M26E,Adult Social Care Operations,Supplies and Services,"5,746.11",Jul-23
Slough Borough Council,2856,Brain Injury Rehabilitation Trust,M26E,Adult Social Care Operations,Supplies and Services,"5,432.48",Jul-23
Slough Borough Council,2856,Brain Injury Rehabilitation Trust,M26E,Adult Social Care Operations,Supplies and Services,"5,613.57",Jul-23
Slough Borough Council,2856,Brain Injury Rehabilitation Trust,M26E,Adult Social Care Operations,Supplies and Services,"5,452.68",Jul-23
Slough Borough Council,2856,Brain Injury Rehabilitation Trust,M26E,Adult Social Care Operations,Supplies and Services,"5,752.05",Jul-23
Slough Borough Council,2856,Brain Injury Rehabilitation Trust,M27C,Adult Social Care Operations,Supplies and Services,"7,240.33",Jul-23
Slough Borough Council,2856,Brain Injury Rehabilitation Trust,M27C,Adult Social Care Operations,Supplies and Services,"7,240.33",Jul-23
Slough Borough Council,2856,Brain Injury Rehabilitation Trust,M27C,Adult Social Care Operations,Supplies and Services,"7,481.67",Jul-23
Slough Borough Council,2856,Brain Injury Rehabilitation Trust,M27C,Adult Social Care Operations,Supplies and Services,"7,240.33",Jul-23
Slough Borough Council,805817,Bright World Nurseries,F909,Children & Families,Supplies and Services,"10,772.90",Jul-23
Slough Borough Council,805817,Bright World Nurseries,F909,Children & Families,Supplies and Services,990.00,Jul-23
Slough Borough Council,615,British Red Cross,B409,Customer,Indirect Employee Expenses,598.00,Jul-23
Slough Borough Council,504,Britwell Baptist Pre School,F909,Children & Families,Supplies and Services,"5,319.74",Jul-23
Slough Borough Council,504,Britwell Baptist Pre School,F909,Children & Families,Supplies and Services,"1,170.00",Jul-23
Slough Borough Council,2852,Britwell Youth & Community Project,F382,Children & Families,Supplies and Services,"3,750.12",Jul-23
Slough Borough Council,2852,Britwell Youth & Community Project,F382,Children & Families,Supplies and Services,"3,466.80",Jul-23
Slough Borough Council,2852,Britwell Youth & Community Project,F382,Children & Families,Supplies and Services,"1,155.60",Jul-23
Slough Borough Council,619,Buchanan  Computing Ltd,D501,Place Strategy & Infrastructure,Supplies and Services,"1,995.00",Jul-23
Slough Borough Council,2850,Bullseye Awards & Garments Ltd,D333,Customer,Supplies and Services,"2,000.00",Jul-23
Slough Borough Council,741,Bunnies Pre-School,F909,Children & Families,Supplies and Services,"6,510.92",Jul-23
Slough Borough Council,804448,Bupa Care Homes (ANS) Ltd,M15D,Adult Social Care Operations,Supplies and Services,"6,642.86",Jul-23
Slough Borough Council,2675,Burnham Lodge Ltd,A02E,Adult Social Care Operations,Supplies and Services,"5,142.90",Jul-23
Slough Borough Council,2675,Burnham Lodge Ltd,A02E,Adult Social Care Operations,Supplies and Services,"5,142.90",Jul-23
Slough Borough Council,2675,Burnham Lodge Ltd,A02E,Adult Social Care Operations,Supplies and Services,"5,142.90",Jul-23
Slough Borough Council,803264,C A Telecom,P579,Capital,Capital Charges,"10,000.00",Jul-23
Slough Borough Council,629,C.H.O.I.C.E Limited,M26E,Adult Social Care Operations,Supplies and Services,"12,918.98",Jul-23
Slough Borough Council,629,C.H.O.I.C.E Limited,M26E,Adult Social Care Operations,Supplies and Services,"11,367.02",Jul-23
Slough Borough Council,629,C.H.O.I.C.E Limited,M26E,Adult Social Care Operations,Supplies and Services,"12,128.84",Jul-23
Slough Borough Council,629,C.H.O.I.C.E Limited,M26E,Adult Social Care Operations,Supplies and Services,"6,320.95",Jul-23
Slough Borough Council,629,C.H.O.I.C.E Limited,M26E,Adult Social Care Operations,Supplies and Services,"11,724.95",Jul-23
Slough Borough Council,629,C.H.O.I.C.E Limited,M26E,Adult Social Care Operations,Supplies and Services,"11,082.82",Jul-23
Slough Borough Council,629,C.H.O.I.C.E Limited,M26E,Adult Social Care Operations,Supplies and Services,"11,646.00",Jul-23
Slough Borough Council,629,C.H.O.I.C.E Limited,M26E,Adult Social Care Operations,Supplies and Services,"9,816.24",Jul-23
Slough Borough Council,629,C.H.O.I.C.E Limited,M42E,Adult Social Care Operations,Supplies and Services,"5,823.51",Jul-23
Slough Borough Council,629,C.H.O.I.C.E Limited,M42E,Adult Social Care Operations,Supplies and Services,"6,266.44",Jul-23
Slough Borough Council,629,C.H.O.I.C.E Limited,M42E,Adult Social Care Operations,Supplies and Services,"6,303.94",Jul-23
Slough Borough Council,629,C.H.O.I.C.E Limited,M42E,Adult Social Care Operations,Supplies and Services,"1,135.71",Jul-23
Slough Borough Council,629,C.H.O.I.C.E Limited,M42E,Adult Social Care Operations,Supplies and Services,"6,395.91",Jul-23
Slough Borough Council,629,C.H.O.I.C.E Limited,M44F,Adult Social Care Operations,Supplies and Services,"2,648.53",Jul-23
Slough Borough Council,629,C.H.O.I.C.E Limited,M44F,Adult Social Care Operations,Supplies and Services,"2,675.36",Jul-23
Slough Borough Council,629,C.H.O.I.C.E Limited,M26E,Adult Social Care Operations,External Receipts,-523.01,Jul-23
Slough Borough Council,629,C.H.O.I.C.E Limited,M26E,Adult Social Care Operations,External Receipts,-515.75,Jul-23
Slough Borough Council,806459,Cambridgeshire County Council,F123,Education & Inclusion,External Receipts,715.68,Jul-23
Slough Borough Council,808007,Cameron & Cooper Limited (The Beech House School),F462,Children & Families,Supplies and Services,"2,105.20",Jul-23
Slough Borough Council,808972,Cardea Healthcare,M44E,Adult Social Care Operations,Supplies and Services,668.26,Jul-23
Slough Borough Council,808972,Cardea Healthcare,M44E,Adult Social Care Operations,Supplies and Services,668.26,Jul-23
Slough Borough Council,808972,Cardea Healthcare,M44E,Adult Social Care Operations,Supplies and Services,668.26,Jul-23
Slough Borough Council,808972,Cardea Healthcare,M44E,Adult Social Care Operations,Supplies and Services,668.26,Jul-23
Slough Borough Council,808972,Cardea Healthcare,M44E,Adult Social Care Operations,Supplies and Services,668.24,Jul-23
Slough Borough Council,808972,Cardea Healthcare,M44E,Adult Social Care Operations,Supplies and Services,668.26,Jul-23
Slough Borough Council,808972,Cardea Healthcare,M44E,Adult Social Care Operations,Supplies and Services,668.26,Jul-23
Slough Borough Council,808972,Cardea Healthcare,M44E,Adult Social Care Operations,Supplies and Services,668.26,Jul-23
Slough Borough Council,808972,Cardea Healthcare,M44E,Adult Social Care Operations,Supplies and Services,668.24,Jul-23
Slough Borough Council,808972,Cardea Healthcare,M44E,Adult Social Care Operations,Supplies and Services,668.24,Jul-23
Slough Borough Council,808972,Cardea Healthcare,M44E,Adult Social Care Operations,Supplies and Services,668.24,Jul-23
Slough Borough Council,805717,Care Management Group Ltd,M26E,Adult Social Care Operations,Supplies and Services,"13,945.89",Jul-23
Slough Borough Council,805621,Care Staff Services,A07R,Adult Social Care Operations,Supplies and Services,"2,178.75",Jul-23
Slough Borough Council,805621,Care Staff Services,A07R,Adult Social Care Operations,Supplies and Services,"2,187.50",Jul-23
Slough Borough Council,805621,Care Staff Services,A07R,Adult Social Care Operations,Supplies and Services,"2,205.00",Jul-23
Slough Borough Council,805621,Care Staff Services,A07R,Adult Social Care Operations,Supplies and Services,503.13,Jul-23
Slough Borough Council,805621,Care Staff Services,M44C,Adult Social Care Operations,Supplies and Services,634.38,Jul-23
Slough Borough Council,805621,Care Staff Services,M44C,Adult Social Care Operations,Supplies and Services,717.50,Jul-23
Slough Borough Council,805621,Care Staff Services,M44C,Adult Social Care Operations,Supplies and Services,782.50,Jul-23
Slough Borough Council,805621,Care Staff Services,M44C,Adult Social Care Operations,Supplies and Services,"1,813.00",Jul-23
Slough Borough Council,805621,Care Staff Services,M44C,Adult Social Care Operations,Supplies and Services,857.50,Jul-23
Slough Borough Council,805621,Care Staff Services,M44C,Adult Social Care Operations,Supplies and Services,848.75,Jul-23
Slough Borough Council,805621,Care Staff Services,M44C,Adult Social Care Operations,Supplies and Services,774.38,Jul-23
Slough Borough Council,805621,Care Staff Services,M44C,Adult Social Care Operations,Supplies and Services,906.50,Jul-23
Slough Borough Council,805621,Care Staff Services,M44C,Adult Social Care Operations,Supplies and Services,"2,205.00",Jul-23
Slough Borough Council,805621,Care Staff Services,M44C,Adult Social Care Operations,Supplies and Services,752.50,Jul-23
Slough Borough Council,805621,Care Staff Services,M44C,Adult Social Care Operations,Supplies and Services,"2,030.00",Jul-23
Slough Borough Council,805621,Care Staff Services,M44C,Adult Social Care Operations,Supplies and Services,"2,205.00",Jul-23
Slough Borough Council,805621,Care Staff Services,M44C,Adult Social Care Operations,Supplies and Services,513.38,Jul-23
Slough Borough Council,805621,Care Staff Services,M44C,Adult Social Care Operations,Supplies and Services,581.88,Jul-23
Slough Borough Council,805621,Care Staff Services,M44C,Adult Social Care Operations,Supplies and Services,"1,225.00",Jul-23
Slough Borough Council,805621,Care Staff Services,M44C,Adult Social Care Operations,Supplies and Services,"1,898.75",Jul-23
Slough Borough Council,805621,Care Staff Services,M44C,Adult Social Care Operations,Supplies and Services,"1,715.00",Jul-23
Slough Borough Council,805621,Care Staff Services,M44C,Adult Social Care Operations,Supplies and Services,"1,706.25",Jul-23
Slough Borough Council,805621,Care Staff Services,M44C,Adult Social Care Operations,Supplies and Services,529.38,Jul-23
Slough Borough Council,805621,Care Staff Services,M44C,Adult Social Care Operations,Supplies and Services,560.00,Jul-23
Slough Borough Council,805621,Care Staff Services,M44C,Adult Social Care Operations,Supplies and Services,"2,345.00",Jul-23
Slough Borough Council,805621,Care Staff Services,M44C,Adult Social Care Operations,Supplies and Services,"2,327.50",Jul-23
Slough Borough Council,805621,Care Staff Services,M44C,Adult Social Care Operations,Supplies and Services,546.88,Jul-23
Slough Borough Council,805621,Care Staff Services,M44C,Adult Social Care Operations,Supplies and Services,717.50,Jul-23
Slough Borough Council,805621,Care Staff Services,M44C,Adult Social Care Operations,Supplies and Services,"1,015.00",Jul-23
Slough Borough Council,805621,Care Staff Services,M44C,Adult Social Care Operations,Supplies and Services,857.50,Jul-23
Slough Borough Council,805621,Care Staff Services,M44C,Adult Social Care Operations,Supplies and Services,"2,205.00",Jul-23
Slough Borough Council,805621,Care Staff Services,M44C,Adult Social Care Operations,Supplies and Services,721.88,Jul-23
Slough Borough Council,805621,Care Staff Services,M44C,Adult Social Care Operations,Supplies and Services,800.63,Jul-23
Slough Borough Council,805621,Care Staff Services,M44C,Adult Social Care Operations,Supplies and Services,525.00,Jul-23
Slough Borough Council,805621,Care Staff Services,M44C,Adult Social Care Operations,Supplies and Services,612.50,Jul-23
Slough Borough Council,805621,Care Staff Services,M44C,Adult Social Care Operations,Supplies and Services,896.88,Jul-23
Slough Borough Council,805621,Care Staff Services,M44C,Adult Social Care Operations,Supplies and Services,"1,960.00",Jul-23
Slough Borough Council,805621,Care Staff Services,M44C,Adult Social Care Operations,Supplies and Services,980.00,Jul-23
Slough Borough Council,805621,Care Staff Services,M44C,Adult Social Care Operations,Supplies and Services,"2,205.00",Jul-23
Slough Borough Council,805621,Care Staff Services,M44C,Adult Social Care Operations,Supplies and Services,"1,120.00",Jul-23
Slough Borough Council,805621,Care Staff Services,M44C,Adult Social Care Operations,Supplies and Services,"1,102.50",Jul-23
Slough Borough Council,805621,Care Staff Services,M44C,Adult Social Care Operations,Supplies and Services,"2,450.00",Jul-23
Slough Borough Council,805621,Care Staff Services,M44C,Adult Social Care Operations,Supplies and Services,"2,321.75",Jul-23
Slough Borough Council,805621,Care Staff Services,M44C,Adult Social Care Operations,Supplies and Services,"1,102.50",Jul-23
Slough Borough Council,805621,Care Staff Services,M44C,Adult Social Care Operations,Supplies and Services,"2,520.00",Jul-23
Slough Borough Council,805621,Care Staff Services,M44C,Adult Social Care Operations,Supplies and Services,857.50,Jul-23
Slough Borough Council,805621,Care Staff Services,M44C,Adult Social Care Operations,Supplies and Services,612.50,Jul-23
Slough Borough Council,805621,Care Staff Services,M44C,Adult Social Care Operations,Supplies and Services,857.50,Jul-23
Slough Borough Council,805621,Care Staff Services,M44C,Adult Social Care Operations,Supplies and Services,906.50,Jul-23
Slough Borough Council,805621,Care Staff Services,M44C,Adult Social Care Operations,Supplies and Services,"2,178.75",Jul-23
Slough Borough Council,805621,Care Staff Services,M44C,Adult Social Care Operations,Supplies and Services,"2,146.00",Jul-23
Slough Borough Council,805621,Care Staff Services,M44D,Adult Social Care Operations,Supplies and Services,857.50,Jul-23
Slough Borough Council,805621,Care Staff Services,M44D,Adult Social Care Operations,Supplies and Services,832.50,Jul-23
Slough Borough Council,805621,Care Staff Services,M44D,Adult Social Care Operations,Supplies and Services,"1,165.50",Jul-23
Slough Borough Council,805621,Care Staff Services,M44D,Adult Social Care Operations,Supplies and Services,"2,331.00",Jul-23
Slough Borough Council,805621,Care Staff Services,M44D,Adult Social Care Operations,Supplies and Services,739.38,Jul-23
Slough Borough Council,805621,Care Staff Services,M44D,Adult Social Care Operations,Supplies and Services,"1,780.63",Jul-23
Slough Borough Council,805621,Care Staff Services,M44D,Adult Social Care Operations,Supplies and Services,857.50,Jul-23
Slough Borough Council,805621,Care Staff Services,M44D,Adult Social Care Operations,Supplies and Services,"1,365.00",Jul-23
Slough Borough Council,805621,Care Staff Services,M44D,Adult Social Care Operations,Supplies and Services,"1,470.00",Jul-23
Slough Borough Council,805621,Care Staff Services,M44D,Adult Social Care Operations,Supplies and Services,"2,205.00",Jul-23
Slough Borough Council,805621,Care Staff Services,M44D,Adult Social Care Operations,Supplies and Services,"1,225.00",Jul-23
Slough Borough Council,805621,Care Staff Services,M44D,Adult Social Care Operations,Supplies and Services,980.00,Jul-23
Slough Borough Council,805621,Care Staff Services,M44D,Adult Social Care Operations,Supplies and Services,857.50,Jul-23
Slough Borough Council,805621,Care Staff Services,M44D,Adult Social Care Operations,Supplies and Services,826.87,Jul-23
Slough Borough Council,805621,Care Staff Services,M44D,Adult Social Care Operations,Supplies and Services,"1,093.75",Jul-23
Slough Borough Council,805621,Care Staff Services,M44D,Adult Social Care Operations,Supplies and Services,"1,452.25",Jul-23
Slough Borough Council,805621,Care Staff Services,M44D,Adult Social Care Operations,Supplies and Services,"1,102.50",Jul-23
Slough Borough Council,805621,Care Staff Services,M44F,Adult Social Care Operations,Supplies and Services,"1,093.75",Jul-23
Slough Borough Council,805621,Care Staff Services,M44F,Adult Social Care Operations,Supplies and Services,630.00,Jul-23
Slough Borough Council,805621,Care Staff Services,M44F,Adult Social Care Operations,Supplies and Services,"1,010.63",Jul-23
Slough Borough Council,805621,Care Staff Services,M44F,Adult Social Care Operations,Supplies and Services,"4,276.67",Jul-23
Slough Borough Council,805621,Care Staff Services,M44F,Adult Social Care Operations,Supplies and Services,666.00,Jul-23
Slough Borough Council,805621,Care Staff Services,M44F,Adult Social Care Operations,Supplies and Services,"1,382.50",Jul-23
Slough Borough Council,805621,Care Staff Services,M44F,Adult Social Care Operations,Supplies and Services,735.38,Jul-23
Slough Borough Council,805621,Care Staff Services,M44F,Adult Social Care Operations,Supplies and Services,"1,480.00",Jul-23
Slough Borough Council,805621,Care Staff Services,M44F,Adult Social Care Operations,Supplies and Services,999.00,Jul-23
Slough Borough Council,805621,Care Staff Services,M44F,Adult Social Care Operations,Supplies and Services,555.63,Jul-23
Slough Borough Council,805621,Care Staff Services,M44F,Adult Social Care Operations,Supplies and Services,"2,516.00",Jul-23
Slough Borough Council,805621,Care Staff Services,M44F,Adult Social Care Operations,Supplies and Services,560.00,Jul-23
Slough Borough Council,805621,Care Staff Services,M44F,Adult Social Care Operations,Supplies and Services,"1,461.50",Jul-23
Slough Borough Council,805621,Care Staff Services,M45C,Adult Social Care Operations,Supplies and Services,"1,995.00",Jul-23
Slough Borough Council,805621,Care Staff Services,M45C,Adult Social Care Operations,Supplies and Services,866.25,Jul-23
Slough Borough Council,805621,Care Staff Services,M48C,Adult Social Care Operations,Supplies and Services,"2,205.00",Jul-23
Slough Borough Council,805621,Care Staff Services,M48C,Adult Social Care Operations,Supplies and Services,"1,715.00",Jul-23
Slough Borough Council,808149,Care Staff Services Support,M44F,Adult Social Care Operations,Supplies and Services,"5,415.17",Jul-23
Slough Borough Council,808149,Care Staff Services Support,M44F,Adult Social Care Operations,Supplies and Services,"4,828.83",Jul-23
Slough Borough Council,808149,Care Staff Services Support,M44F,Adult Social Care Operations,Supplies and Services,"2,002.25",Jul-23
Slough Borough Council,1162,Care Uk Community Partnership Ltd,M15D,Adult Social Care Operations,Supplies and Services,"4,218.60",Jul-23
Slough Borough Council,1162,Care Uk Community Partnership Ltd,M17C,Adult Social Care Operations,Supplies and Services,"1,808.64",Jul-23
Slough Borough Council,1162,Care Uk Community Partnership Ltd,M17C,Adult Social Care Operations,Supplies and Services,"4,218.60",Jul-23
Slough Borough Council,1162,Care Uk Community Partnership Ltd,M17C,Adult Social Care Operations,Supplies and Services,"3,969.72",Jul-23
Slough Borough Council,1162,Care Uk Community Partnership Ltd,M18C,Adult Social Care Operations,Supplies and Services,"114,534.56",Jul-23
Slough Borough Council,1162,Care Uk Community Partnership Ltd,M18C,Adult Social Care Operations,Supplies and Services,"4,218.60",Jul-23
Slough Borough Council,1162,Care Uk Community Partnership Ltd,M18C,Adult Social Care Operations,Supplies and Services,"3,969.72",Jul-23
Slough Borough Council,1162,Care Uk Community Partnership Ltd,M18C,Adult Social Care Operations,Supplies and Services,"4,218.60",Jul-23
Slough Borough Council,1162,Care Uk Community Partnership Ltd,M18C,Adult Social Care Operations,Supplies and Services,"4,218.60",Jul-23
Slough Borough Council,1162,Care Uk Community Partnership Ltd,M18C,Adult Social Care Operations,Supplies and Services,"4,218.60",Jul-23
Slough Borough Council,1162,Care Uk Community Partnership Ltd,M18C,Adult Social Care Operations,Supplies and Services,"4,218.60",Jul-23
Slough Borough Council,1162,Care Uk Community Partnership Ltd,M18C,Adult Social Care Operations,Supplies and Services,"4,218.60",Jul-23
Slough Borough Council,1162,Care Uk Community Partnership Ltd,M18C,Adult Social Care Operations,Supplies and Services,"4,218.60",Jul-23
Slough Borough Council,1162,Care Uk Community Partnership Ltd,M18C,Adult Social Care Operations,Supplies and Services,"4,218.60",Jul-23
Slough Borough Council,1162,Care Uk Community Partnership Ltd,M18C,Adult Social Care Operations,Supplies and Services,"4,218.60",Jul-23
Slough Borough Council,1162,Care Uk Community Partnership Ltd,M25C,Adult Social Care Operations,Supplies and Services,"1,312.00",Jul-23
Slough Borough Council,1162,Care Uk Community Partnership Ltd,M25C,Adult Social Care Operations,Supplies and Services,"5,622.86",Jul-23
Slough Borough Council,1162,Care Uk Community Partnership Ltd,M25C,Adult Social Care Operations,Supplies and Services,"5,810.28",Jul-23
Slough Borough Council,1162,Care Uk Community Partnership Ltd,M25C,Adult Social Care Operations,Supplies and Services,"5,810.29",Jul-23
Slough Borough Council,1162,Care Uk Community Partnership Ltd,M25C,Adult Social Care Operations,Supplies and Services,"5,622.86",Jul-23
Slough Borough Council,1162,Care Uk Community Partnership Ltd,M25C,Adult Social Care Operations,Supplies and Services,"79,593.12",Jul-23
Slough Borough Council,1162,Care Uk Community Partnership Ltd,M25C,Adult Social Care Operations,Supplies and Services,"3,703.00",Jul-23
Slough Borough Council,1162,Care Uk Community Partnership Ltd,M25C,Adult Social Care Operations,Supplies and Services,"3,703.00",Jul-23
Slough Borough Council,1162,Care Uk Community Partnership Ltd,M25C,Adult Social Care Operations,Supplies and Services,"3,703.00",Jul-23
Slough Borough Council,1162,Care Uk Community Partnership Ltd,M26E,Adult Social Care Operations,Supplies and Services,"4,090.52",Jul-23
Slough Borough Council,1162,Care Uk Community Partnership Ltd,M26E,Adult Social Care Operations,Supplies and Services,"4,090.52",Jul-23
Slough Borough Council,1162,Care Uk Community Partnership Ltd,M27C,Adult Social Care Operations,Supplies and Services,"5,142.86",Jul-23
Slough Borough Council,1162,Care Uk Community Partnership Ltd,M27C,Adult Social Care Operations,Supplies and Services,"5,314.29",Jul-23
Slough Borough Council,1162,Care Uk Community Partnership Ltd,M27C,Adult Social Care Operations,Supplies and Services,"5,142.86",Jul-23
Slough Borough Council,1162,Care Uk Community Partnership Ltd,M27C,Adult Social Care Operations,Supplies and Services,"27,047.04",Jul-23
Slough Borough Council,1162,Care Uk Community Partnership Ltd,M27C,Adult Social Care Operations,Supplies and Services,"3,380.88",Jul-23
Slough Borough Council,1162,Care Uk Community Partnership Ltd,M27C,Adult Social Care Operations,Supplies and Services,"3,380.88",Jul-23
Slough Borough Council,1162,Care Uk Community Partnership Ltd,M27C,Adult Social Care Operations,Supplies and Services,"3,703.00",Jul-23
Slough Borough Council,1162,Care Uk Community Partnership Ltd,M27C,Adult Social Care Operations,Supplies and Services,"3,703.00",Jul-23
Slough Borough Council,1162,Care Uk Community Partnership Ltd,M27C,Adult Social Care Operations,Supplies and Services,"3,703.00",Jul-23
Slough Borough Council,1162,Care Uk Community Partnership Ltd,M27C,Adult Social Care Operations,Supplies and Services,"3,703.00",Jul-23
Slough Borough Council,1162,Care Uk Community Partnership Ltd,M27C,Adult Social Care Operations,Supplies and Services,"3,380.88",Jul-23
Slough Borough Council,1162,Care Uk Community Partnership Ltd,M27C,Adult Social Care Operations,Supplies and Services,"3,703.00",Jul-23
Slough Borough Council,1162,Care Uk Community Partnership Ltd,M27C,Adult Social Care Operations,Supplies and Services,"3,703.00",Jul-23
Slough Borough Council,1162,Care Uk Community Partnership Ltd,M27C,Adult Social Care Operations,Supplies and Services,"3,703.00",Jul-23
Slough Borough Council,1162,Care Uk Community Partnership Ltd,M27C,Adult Social Care Operations,Supplies and Services,"3,380.88",Jul-23
Slough Borough Council,1162,Care Uk Community Partnership Ltd,M27C,Adult Social Care Operations,Supplies and Services,"3,380.88",Jul-23
Slough Borough Council,1162,Care Uk Community Partnership Ltd,M27C,Adult Social Care Operations,Supplies and Services,"3,703.00",Jul-23
Slough Borough Council,1162,Care Uk Community Partnership Ltd,M27C,Adult Social Care Operations,Supplies and Services,"3,703.00",Jul-23
Slough Borough Council,1162,Care Uk Community Partnership Ltd,M27C,Adult Social Care Operations,Supplies and Services,"3,380.88",Jul-23
Slough Borough Council,1162,Care Uk Community Partnership Ltd,M27F,Adult Social Care Operations,Supplies and Services,"3,380.88",Jul-23
Slough Borough Council,1162,Care Uk Community Partnership Ltd,M29C,Adult Social Care Operations,Supplies and Services,"5,622.04",Jul-23
Slough Borough Council,1162,Care Uk Community Partnership Ltd,M29C,Adult Social Care Operations,Supplies and Services,"5,809.44",Jul-23
Slough Borough Council,1497,Caroline Bridges DOP Limited,C322,Community,Supplies and Services,615.00,Jul-23
Slough Borough Council,1910,Carousel Buses Ltd,D512,Place Strategy & Infrastructure,Supplies and Services,"3,645.40",Jul-23
Slough Borough Council,804413,Castle Water,B060,Business Services,Premises,937.17,Jul-23
Slough Borough Council,804413,Castle Water,C019,Place Operations,Premises,"2,162.76",Jul-23
Slough Borough Council,804413,Castle Water,C019,Place Operations,Premises,"1,681.19",Jul-23
Slough Borough Council,804413,Castle Water,C019,Place Operations,Premises,515.02,Jul-23
Slough Borough Council,804413,Castle Water,C019,Place Operations,Premises,678.04,Jul-23
Slough Borough Council,804413,Castle Water,D320,Place Operations,Premises,630.96,Jul-23
Slough Borough Council,804413,Castle Water,D320,Place Operations,Premises,653.55,Jul-23
Slough Borough Council,418,Castleview School,E620,Children & Families,Supplies and Services,"42,873.45",Jul-23
Slough Borough Council,808530,Castons Chartered Surveyors,F156,Education & Inclusion,Support Services,"4,500.00",Jul-23
Slough Borough Council,805619,Centennial Property Limited T/A The Housing Network,H205,Housing (People) Services,Supplies and Services,"55,405.00",Jul-23
Slough Borough Council,3609,Centurion Healthcare Ltd,M26E,Adult Social Care Operations,Supplies and Services,"6,514.38",Jul-23
Slough Borough Council,2892,Chalfont Lodge,M15D,Adult Social Care Operations,Supplies and Services,"5,978.57",Jul-23
Slough Borough Council,2892,Chalfont Lodge,M15F,Adult Social Care Operations,Supplies and Services,"8,857.14",Jul-23
Slough Borough Council,2608,Chandos Lodge Nursing Home,M18C,Adult Social Care Operations,Supplies and Services,"3,600.00",Jul-23
Slough Borough Council,2608,Chandos Lodge Nursing Home,M18C,Adult Social Care Operations,Supplies and Services,"3,600.00",Jul-23
Slough Borough Council,808928,Charis MC Ltd,M44D,Adult Social Care Operations,Supplies and Services,814.29,Jul-23
Slough Borough Council,807017,Chelmsford Safety Supplies Ltd,D750,Place Operations,Supplies and Services,"2,142.33",Jul-23
Slough Borough Council,1877,Chelsie Innes,C322,Community,Supplies and Services,"3,855.00",Jul-23
Slough Borough Council,3114,Cherry Trees Day Nursery,F909,Children & Families,Supplies and Services,"28,046.53",Jul-23
Slough Borough Council,3114,Cherry Trees Day Nursery,F909,Children & Families,Supplies and Services,"3,420.00",Jul-23
Slough Borough Council,2871,Cherry Trees Residential Care,M27F,Adult Social Care Operations,Supplies and Services,"2,435.71",Jul-23
Slough Borough Council,2871,Cherry Trees Residential Care,M42F,Adult Social Care Operations,Supplies and Services,"1,660.71",Jul-23
Slough Borough Council,2871,Cherry Trees Residential Care,M42F,Adult Social Care Operations,Supplies and Services,"2,491.07",Jul-23
Slough Borough Council,2871,Cherry Trees Residential Care,M42F,Adult Social Care Operations,Supplies and Services,"2,491.07",Jul-23
Slough Borough Council,807225,Chiltern Way Academy,F551,Children & Families,Supplies and Services,"7,382.08",Jul-23
Slough Borough Council,807225,Chiltern Way Academy,F551,Children & Families,Supplies and Services,"1,845.52",Jul-23
Slough Borough Council,808527,Chiron Care (Uk) Limited,M44F,Adult Social Care Operations,Supplies and Services,"2,560.50",Jul-23
Slough Borough Council,808527,Chiron Care (Uk) Limited,M44F,Adult Social Care Operations,Supplies and Services,"1,808.57",Jul-23
Slough Borough Council,808527,Chiron Care (Uk) Limited,M44F,Adult Social Care Operations,Supplies and Services,"2,905.20",Jul-23
Slough Borough Council,808527,Chiron Care (Uk) Limited,M44F,Adult Social Care Operations,Supplies and Services,"4,431.30",Jul-23
Slough Borough Council,808527,Chiron Care (Uk) Limited,M44F,Adult Social Care Operations,Supplies and Services,"1,808.40",Jul-23
Slough Borough Council,803495,Christchurch Court Ltd,M15D,Adult Social Care Operations,Supplies and Services,"9,214.35",Jul-23
Slough Borough Council,807491,Cippenham School,E620,Children & Families,Supplies and Services,"15,541.67",Jul-23
Slough Borough Council,806550,City Homecare Ltd,A07R,Adult Social Care Operations,Supplies and Services,647.50,Jul-23
Slough Borough Council,806550,City Homecare Ltd,A07R,Adult Social Care Operations,Supplies and Services,551.25,Jul-23
Slough Borough Council,806550,City Homecare Ltd,A07R,Adult Social Care Operations,Supplies and Services,853.13,Jul-23
Slough Borough Council,806550,City Homecare Ltd,A07R,Adult Social Care Operations,Supplies and Services,650.00,Jul-23
Slough Borough Council,806550,City Homecare Ltd,A07R,Adult Social Care Operations,Supplies and Services,"1,225.00",Jul-23
Slough Borough Council,806550,City Homecare Ltd,A07R,Adult Social Care Operations,Supplies and Services,612.50,Jul-23
Slough Borough Council,806550,City Homecare Ltd,A07R,Adult Social Care Operations,Supplies and Services,743.75,Jul-23
Slough Borough Council,806550,City Homecare Ltd,A07R,Adult Social Care Operations,Supplies and Services,612.50,Jul-23
Slough Borough Council,806550,City Homecare Ltd,A07R,Adult Social Care Operations,Supplies and Services,612.50,Jul-23
Slough Borough Council,806550,City Homecare Ltd,M44C,Adult Social Care Operations,Supplies and Services,"1,102.50",Jul-23
Slough Borough Council,806550,City Homecare Ltd,M44C,Adult Social Care Operations,Supplies and Services,"1,347.50",Jul-23
Slough Borough Council,806550,City Homecare Ltd,M44C,Adult Social Care Operations,Supplies and Services,590.63,Jul-23
Slough Borough Council,806550,City Homecare Ltd,M44C,Adult Social Care Operations,Supplies and Services,"1,225.00",Jul-23
Slough Borough Council,806550,City Homecare Ltd,M44C,Adult Social Care Operations,Supplies and Services,"1,715.00",Jul-23
Slough Borough Council,806550,City Homecare Ltd,M44C,Adult Social Care Operations,Supplies and Services,"2,345.00",Jul-23
Slough Borough Council,806550,City Homecare Ltd,M44C,Adult Social Care Operations,Supplies and Services,"1,960.00",Jul-23
Slough Borough Council,806550,City Homecare Ltd,M44C,Adult Social Care Operations,Supplies and Services,612.50,Jul-23
Slough Borough Council,806550,City Homecare Ltd,M44C,Adult Social Care Operations,Supplies and Services,857.50,Jul-23
Slough Borough Council,806550,City Homecare Ltd,M44C,Adult Social Care Operations,Supplies and Services,892.50,Jul-23
Slough Borough Council,806550,City Homecare Ltd,M44C,Adult Social Care Operations,Supplies and Services,"1,715.00",Jul-23
Slough Borough Council,806550,City Homecare Ltd,M44C,Adult Social Care Operations,Supplies and Services,"1,225.00",Jul-23
Slough Borough Council,806550,City Homecare Ltd,M44C,Adult Social Care Operations,Supplies and Services,735.00,Jul-23
Slough Borough Council,806550,City Homecare Ltd,M44C,Adult Social Care Operations,Supplies and Services,682.50,Jul-23
Slough Borough Council,806550,City Homecare Ltd,M44C,Adult Social Care Operations,Supplies and Services,"1,225.00",Jul-23
Slough Borough Council,806550,City Homecare Ltd,M44C,Adult Social Care Operations,Supplies and Services,612.50,Jul-23
Slough Borough Council,806550,City Homecare Ltd,M44C,Adult Social Care Operations,Supplies and Services,717.50,Jul-23
Slough Borough Council,806550,City Homecare Ltd,M44C,Adult Social Care Operations,Supplies and Services,857.50,Jul-23
Slough Borough Council,806550,City Homecare Ltd,M44C,Adult Social Care Operations,Supplies and Services,857.50,Jul-23
Slough Borough Council,806550,City Homecare Ltd,M44C,Adult Social Care Operations,Supplies and Services,"1,102.50",Jul-23
Slough Borough Council,806550,City Homecare Ltd,M44C,Adult Social Care Operations,Supplies and Services,"1,102.50",Jul-23
Slough Borough Council,806550,City Homecare Ltd,M44C,Adult Social Care Operations,Supplies and Services,"1,102.50",Jul-23
Slough Borough Council,806550,City Homecare Ltd,M44C,Adult Social Care Operations,Supplies and Services,"1,050.00",Jul-23
Slough Borough Council,806550,City Homecare Ltd,M44C,Adult Social Care Operations,Supplies and Services,"1,225.00",Jul-23
Slough Borough Council,806550,City Homecare Ltd,M44C,Adult Social Care Operations,Supplies and Services,"1,820.00",Jul-23
Slough Borough Council,806550,City Homecare Ltd,M44C,Adult Social Care Operations,Supplies and Services,"1,190.00",Jul-23
Slough Borough Council,806550,City Homecare Ltd,M44C,Adult Social Care Operations,Supplies and Services,542.50,Jul-23
Slough Borough Council,806550,City Homecare Ltd,M44C,Adult Social Care Operations,Supplies and Services,866.25,Jul-23
Slough Borough Council,806550,City Homecare Ltd,M44C,Adult Social Care Operations,Supplies and Services,"1,960.00",Jul-23
Slough Borough Council,806550,City Homecare Ltd,M44D,Adult Social Care Operations,Supplies and Services,980.00,Jul-23
Slough Borough Council,806550,City Homecare Ltd,M44D,Adult Social Care Operations,Supplies and Services,980.00,Jul-23
Slough Borough Council,806550,City Homecare Ltd,M44D,Adult Social Care Operations,Supplies and Services,980.00,Jul-23
Slough Borough Council,806550,City Homecare Ltd,M44D,Adult Social Care Operations,Supplies and Services,"2,940.00",Jul-23
Slough Borough Council,806550,City Homecare Ltd,M44D,Adult Social Care Operations,Supplies and Services,735.00,Jul-23
Slough Borough Council,806550,City Homecare Ltd,M44D,Adult Social Care Operations,Supplies and Services,717.50,Jul-23
Slough Borough Council,806550,City Homecare Ltd,M44D,Adult Social Care Operations,Supplies and Services,927.50,Jul-23
Slough Borough Council,806550,City Homecare Ltd,M44D,Adult Social Care Operations,Supplies and Services,507.50,Jul-23
Slough Borough Council,806550,City Homecare Ltd,M44E,Adult Social Care Operations,Supplies and Services,735.00,Jul-23
Slough Borough Council,806550,City Homecare Ltd,M44E,Adult Social Care Operations,Supplies and Services,630.00,Jul-23
Slough Borough Council,806550,City Homecare Ltd,M44F,Adult Social Care Operations,Supplies and Services,"1,404.38",Jul-23
Slough Borough Council,806550,City Homecare Ltd,M44F,Adult Social Care Operations,Supplies and Services,"1,540.00",Jul-23
Slough Borough Council,806550,City Homecare Ltd,M44F,Adult Social Care Operations,Supplies and Services,796.25,Jul-23
Slough Borough Council,806550,City Homecare Ltd,M44F,Adult Social Care Operations,Supplies and Services,560.00,Jul-23
Slough Borough Council,806550,City Homecare Ltd,M45C,Adult Social Care Operations,Supplies and Services,630.00,Jul-23
Slough Borough Council,806550,City Homecare Ltd,M45C,Adult Social Care Operations,Supplies and Services,"1,216.25",Jul-23
Slough Borough Council,806550,City Homecare Ltd,M45C,Adult Social Care Operations,Supplies and Services,546.87,Jul-23
Slough Borough Council,806550,City Homecare Ltd,M45C,Adult Social Care Operations,Supplies and Services,735.00,Jul-23
Slough Borough Council,806550,City Homecare Ltd,M45C,Adult Social Care Operations,Supplies and Services,"1,063.13",Jul-23
Slough Borough Council,806550,City Homecare Ltd,M45C,Adult Social Care Operations,Supplies and Services,525.00,Jul-23
Slough Borough Council,806550,City Homecare Ltd,M45C,Adult Social Care Operations,Supplies and Services,776.25,Jul-23
Slough Borough Council,806550,City Homecare Ltd,M45C,Adult Social Care Operations,Supplies and Services,700.00,Jul-23
Slough Borough Council,806550,City Homecare Ltd,M45C,Adult Social Care Operations,Supplies and Services,708.75,Jul-23
Slough Borough Council,806550,City Homecare Ltd,M45C,Adult Social Care Operations,Supplies and Services,549.38,Jul-23
Slough Borough Council,806550,City Homecare Ltd,M45C,Adult Social Care Operations,Supplies and Services,901.25,Jul-23
Slough Borough Council,806550,City Homecare Ltd,M45C,Adult Social Care Operations,Supplies and Services,"2,205.00",Jul-23
Slough Borough Council,806550,City Homecare Ltd,M45C,Adult Social Care Operations,Supplies and Services,551.25,Jul-23
Slough Borough Council,806550,City Homecare Ltd,M45C,Adult Social Care Operations,Supplies and Services,"1,653.75",Jul-23
Slough Borough Council,806550,City Homecare Ltd,M48C,Adult Social Care Operations,Supplies and Services,857.50,Jul-23
Slough Borough Council,806550,City Homecare Ltd,M48C,Adult Social Care Operations,Supplies and Services,857.50,Jul-23
Slough Borough Council,806550,City Homecare Ltd,M48C,Adult Social Care Operations,Supplies and Services,503.13,Jul-23
Slough Borough Council,806550,City Homecare Ltd,M48C,Adult Social Care Operations,Supplies and Services,577.50,Jul-23
Slough Borough Council,1083,Civica Uk Limited,H015,Finance & Commercial,Supplies and Services,"8,286.26",Jul-23
Slough Borough Council,1151,Claycots Primary School,E200,Children & Families,Supplies and Services,"818,277.62",Jul-23
Slough Borough Council,408,Clear Channel Uk Ltd,B023,Finance & Commercial,Supplies and Services,"215,000.00",Jul-23
Slough Borough Council,803536,Clerks Associates UK Ltd,B216,Democratic Services,Supplies and Services,"2,486.63",Jul-23
Slough Borough Council,3685,Coghlan Lodges Limited,M44D,Adult Social Care Operations,Supplies and Services,"2,116.04",Jul-23
Slough Borough Council,3685,Coghlan Lodges Limited,M44F,Adult Social Care Operations,Supplies and Services,"1,870.00",Jul-23
Slough Borough Council,805823,Collaborative Care Solutions,M42E,Adult Social Care Operations,Supplies and Services,"9,211.42",Jul-23
Slough Borough Council,805823,Collaborative Care Solutions,M42F,Adult Social Care Operations,Supplies and Services,"2,971.57",Jul-23
Slough Borough Council,805823,Collaborative Care Solutions,M42F,Adult Social Care Operations,Supplies and Services,"2,657.14",Jul-23
Slough Borough Council,805823,Collaborative Care Solutions,M44D,Adult Social Care Operations,Supplies and Services,"9,211.42",Jul-23
Slough Borough Council,805823,Collaborative Care Solutions,M44F,Adult Social Care Operations,Supplies and Services,"4,317.85",Jul-23
Slough Borough Council,805823,Collaborative Care Solutions,M44F,Adult Social Care Operations,Supplies and Services,"4,982.14",Jul-23
Slough Borough Council,459,Colliers Cre,J006,Place Management,Supplies and Services,"3,666.67",Jul-23
Slough Borough Council,459,Colliers Cre,J006,Place Management,Supplies and Services,"3,666.67",Jul-23
Slough Borough Council,459,Colliers Cre,J006,Place Management,Supplies and Services,750.00,Jul-23
Slough Borough Council,459,Colliers Cre,J006,Place Management,Supplies and Services,"1,250.00",Jul-23
Slough Borough Council,286,Colnbrook C Of E Primary School,E620,Children & Families,Supplies and Services,"21,718.84",Jul-23
Slough Borough Council,2535,Comfort Care Services,M27C,Adult Social Care Operations,Supplies and Services,"3,357.48",Jul-23
Slough Borough Council,2535,Comfort Care Services,M42E,Adult Social Care Operations,Supplies and Services,"2,325.00",Jul-23
Slough Borough Council,2535,Comfort Care Services,M42E,Adult Social Care Operations,Supplies and Services,"1,538.88",Jul-23
Slough Borough Council,2535,Comfort Care Services,M42E,Adult Social Care Operations,Supplies and Services,"2,448.20",Jul-23
Slough Borough Council,2535,Comfort Care Services,M42F,Adult Social Care Operations,Supplies and Services,"1,300.80",Jul-23
Slough Borough Council,2535,Comfort Care Services,M42F,Adult Social Care Operations,Supplies and Services,839.21,Jul-23
Slough Borough Council,2535,Comfort Care Services,M42F,Adult Social Care Operations,Supplies and Services,"2,635.00",Jul-23
Slough Borough Council,2535,Comfort Care Services,M42F,Adult Social Care Operations,Supplies and Services,839.21,Jul-23
Slough Borough Council,2535,Comfort Care Services,M42F,Adult Social Care Operations,Supplies and Services,"3,815.47",Jul-23
Slough Borough Council,2535,Comfort Care Services,M44F,Adult Social Care Operations,Supplies and Services,"3,310.93",Jul-23
Slough Borough Council,2535,Comfort Care Services,M44F,Adult Social Care Operations,Supplies and Services,"1,888.26",Jul-23
Slough Borough Council,2535,Comfort Care Services,M44F,Adult Social Care Operations,Supplies and Services,"2,337.84",Jul-23
Slough Borough Council,2535,Comfort Care Services,M44F,Adult Social Care Operations,Supplies and Services,"1,137.50",Jul-23
Slough Borough Council,2535,Comfort Care Services,M44F,Adult Social Care Operations,Supplies and Services,"2,937.87",Jul-23
Slough Borough Council,2535,Comfort Care Services,M81D,Adult Social Care Operations,Supplies and Services,"2,635.00",Jul-23
Slough Borough Council,2585,Comitted Care Services Limited,M26E,Adult Social Care Operations,Supplies and Services,"6,349.52",Jul-23
Slough Borough Council,2585,Comitted Care Services Limited,M26E,Adult Social Care Operations,Supplies and Services,"6,105.26",Jul-23
Slough Borough Council,2585,Comitted Care Services Limited,M26E,Adult Social Care Operations,Supplies and Services,"6,572.27",Jul-23
Slough Borough Council,2585,Comitted Care Services Limited,M26E,Adult Social Care Operations,Supplies and Services,"6,308.77",Jul-23
Slough Borough Council,2585,Comitted Care Services Limited,M26E,Adult Social Care Operations,Supplies and Services,"6,572.27",Jul-23
Slough Borough Council,2585,Comitted Care Services Limited,M26E,Adult Social Care Operations,Supplies and Services,"1,615.01",Jul-23
Slough Borough Council,2585,Comitted Care Services Limited,M26E,Adult Social Care Operations,Supplies and Services,"1,714.36",Jul-23
Slough Borough Council,2585,Comitted Care Services Limited,M26E,Adult Social Care Operations,Supplies and Services,"1,440.00",Jul-23
Slough Borough Council,2585,Comitted Care Services Limited,M26E,Adult Social Care Operations,Supplies and Services,"1,827.74",Jul-23
Slough Borough Council,2585,Comitted Care Services Limited,M26E,Adult Social Care Operations,Supplies and Services,"1,488.00",Jul-23
Slough Borough Council,2585,Comitted Care Services Limited,M26E,Adult Social Care Operations,Supplies and Services,"6,561.18",Jul-23
Slough Borough Council,2585,Comitted Care Services Limited,M26E,Adult Social Care Operations,Supplies and Services,"6,360.26",Jul-23
Slough Borough Council,2585,Comitted Care Services Limited,M26E,Adult Social Care Operations,Supplies and Services,"1,704.73",Jul-23
Slough Borough Council,2585,Comitted Care Services Limited,M26E,Adult Social Care Operations,Supplies and Services,"6,308.77",Jul-23
Slough Borough Council,2585,Comitted Care Services Limited,M26E,Adult Social Care Operations,Supplies and Services,"6,555.98",Jul-23
Slough Borough Council,2585,Comitted Care Services Limited,M42E,Adult Social Care Operations,Supplies and Services,"2,198.21",Jul-23
Slough Borough Council,2585,Comitted Care Services Limited,M42E,Adult Social Care Operations,Supplies and Services,"2,301.31",Jul-23
Slough Borough Council,2585,Comitted Care Services Limited,M42E,Adult Social Care Operations,Supplies and Services,"1,985.48",Jul-23
Slough Borough Council,2585,Comitted Care Services Limited,M42E,Adult Social Care Operations,Supplies and Services,"2,376.76",Jul-23
Slough Borough Council,2585,Comitted Care Services Limited,M42E,Adult Social Care Operations,Supplies and Services,"2,150.40",Jul-23
Slough Borough Council,2585,Comitted Care Services Limited,M42E,Adult Social Care Operations,Supplies and Services,"1,985.48",Jul-23
Slough Borough Council,2585,Comitted Care Services Limited,M26E,Adult Social Care Operations,External Receipts,-510.44,Jul-23
Slough Borough Council,2585,Comitted Care Services Limited,M26E,Adult Social Care Operations,External Receipts,-510.44,Jul-23
Slough Borough Council,804912,CommuniKate Ltd,M22D,Adult Social Care Operations,Supplies and Services,761.75,Jul-23
Slough Borough Council,804912,CommuniKate Ltd,M22D,Adult Social Care Operations,Supplies and Services,914.10,Jul-23
Slough Borough Council,804912,CommuniKate Ltd,M22D,Adult Social Care Operations,Supplies and Services,761.75,Jul-23
Slough Borough Council,804912,CommuniKate Ltd,M22D,Adult Social Care Operations,Supplies and Services,761.75,Jul-23
Slough Borough Council,806594,Coram Family and Childcare,M04A,People Children Management,Supplies and Services,"169,602.13",Jul-23
Slough Borough Council,3290,Corporate Collections London Borough Of Hillingdon,M26E,Adult Social Care Operations,Supplies and Services,"1,632.40",Jul-23
Slough Borough Council,3290,Corporate Collections London Borough Of Hillingdon,M26E,Adult Social Care Operations,Supplies and Services,"1,482.27",Jul-23
Slough Borough Council,3290,Corporate Collections London Borough Of Hillingdon,M26E,Adult Social Care Operations,Supplies and Services,"1,632.40",Jul-23
Slough Borough Council,3290,Corporate Collections London Borough Of Hillingdon,M26E,Adult Social Care Operations,Supplies and Services,"1,632.40",Jul-23
Slough Borough Council,805278,Countrystyle Recycling Ltd,D342,Place Operations,Supplies and Services,"8,201.40",Jul-23
Slough Borough Council,805278,Countrystyle Recycling Ltd,D342,Place Operations,Supplies and Services,"10,789.40",Jul-23
Slough Borough Council,805278,Countrystyle Recycling Ltd,D630,Place Operations,Supplies and Services,"2,119.00",Jul-23
Slough Borough Council,808737,COUNTY PRIVATE CLIENT LIMITED,H205,Housing (People) Services,Supplies and Services,"34,012.00",Jul-23
Slough Borough Council,3670,Craegmoor Birches Grove Priory,M27F,Adult Social Care Operations,Supplies and Services,"4,079.00",Jul-23
Slough Borough Council,3670,Craegmoor Birches Grove Priory,M27F,Adult Social Care Operations,Supplies and Services,"2,122.92",Jul-23
Slough Borough Council,1638,Creative Support Ltd,A02L,Adult Social Care Operations,Supplies and Services,"1,065.60",Jul-23
Slough Borough Council,1638,Creative Support Ltd,A02L,Adult Social Care Operations,Supplies and Services,"1,065.60",Jul-23
Slough Borough Council,1638,Creative Support Ltd,A02L,Adult Social Care Operations,Supplies and Services,"1,165.50",Jul-23
Slough Borough Council,1638,Creative Support Ltd,M42E,Adult Social Care Operations,Supplies and Services,"1,431.90",Jul-23
Slough Borough Council,1638,Creative Support Ltd,M42E,Adult Social Care Operations,Supplies and Services,"1,165.50",Jul-23
Slough Borough Council,1638,Creative Support Ltd,M42E,Adult Social Care Operations,Supplies and Services,"1,115.55",Jul-23
Slough Borough Council,1638,Creative Support Ltd,M42E,Adult Social Care Operations,Supplies and Services,"1,115.55",Jul-23
Slough Borough Council,1638,Creative Support Ltd,M42E,Adult Social Care Operations,Supplies and Services,"1,565.10",Jul-23
Slough Borough Council,1638,Creative Support Ltd,M42E,Adult Social Care Operations,Supplies and Services,"1,115.55",Jul-23
Slough Borough Council,1638,Creative Support Ltd,M42E,Adult Social Care Operations,Supplies and Services,"1,565.10",Jul-23
Slough Borough Council,1638,Creative Support Ltd,M42E,Adult Social Care Operations,Supplies and Services,"1,565.10",Jul-23
Slough Borough Council,1638,Creative Support Ltd,M42E,Adult Social Care Operations,Supplies and Services,"1,565.10",Jul-23
Slough Borough Council,1638,Creative Support Ltd,M42E,Adult Social Care Operations,Supplies and Services,"1,565.10",Jul-23
Slough Borough Council,1638,Creative Support Ltd,M42E,Adult Social Care Operations,Supplies and Services,"1,565.10",Jul-23
Slough Borough Council,1638,Creative Support Ltd,M42E,Adult Social Care Operations,Supplies and Services,"1,165.50",Jul-23
Slough Borough Council,1638,Creative Support Ltd,M42E,Adult Social Care Operations,Supplies and Services,"1,165.50",Jul-23
Slough Borough Council,1638,Creative Support Ltd,M42E,Adult Social Care Operations,Supplies and Services,"1,165.50",Jul-23
Slough Borough Council,1638,Creative Support Ltd,M42E,Adult Social Care Operations,Supplies and Services,"1,165.50",Jul-23
Slough Borough Council,806983,Critiqom,H020,Finance & Commercial,Supplies and Services,"2,294.49",Jul-23
Slough Borough Council,806983,Critiqom,H020,Finance & Commercial,Supplies and Services,972.96,Jul-23
Slough Borough Council,808383,Croft Brothers UK Limited,M50A,Place Operations,Supplies and Services,607.16,Jul-23
Slough Borough Council,808383,Croft Brothers UK Limited,M50A,Place Operations,Supplies and Services,501.12,Jul-23
Slough Borough Council,808853,Crown Hosting Data Centres Limited,B282,Digital and Strategic IT,Supplies and Services,"6,753.01",Jul-23
Slough Borough Council,806063,Cruise Minibuses Ltd,F123,Education & Inclusion,External Receipts,"3,500.00",Jul-23
Slough Borough Council,806900,CYXTERA TECHNOLOGY UK LIMITED,B282,Digital and Strategic IT,Supplies and Services,"19,702.00",Jul-23
Slough Borough Council,808775,Danescroft Consultants Ltd,A01D,People Adults,Agency Staff,"5,850.00",Jul-23
Slough Borough Council,1897,Datchet St.Marys C Of E Academy,F552,Children & Families,Supplies and Services,"2,011.00",Jul-23
Slough Borough Council,808657,Davinder Selby,H205,Housing (People) Services,Supplies and Services,"1,800.00",Jul-23
Slough Borough Council,804903,Dennis Eagle Limited,D610,Place Operations,Supplies and Services,"22,464.72",Jul-23
Slough Borough Council,804903,Dennis Eagle Limited,D630,Place Operations,Supplies and Services,"2,117.04",Jul-23
Slough Borough Council,804903,Dennis Eagle Limited,D610,Place Operations,Supplies and Services,976.26,Jul-23
Slough Borough Council,804903,Dennis Eagle Limited,D610,Place Operations,Supplies and Services,976.26,Jul-23
Slough Borough Council,804903,Dennis Eagle Limited,D610,Place Operations,Supplies and Services,503.47,Jul-23
Slough Borough Council,804903,Dennis Eagle Limited,D630,Place Operations,Supplies and Services,"1,207.39",Jul-23
Slough Borough Council,806159,Devon Piatt-Panton,C322,Community,Supplies and Services,824.70,Jul-23
Slough Borough Council,3554,Dimensions (Uk) Ltd,M42E,Adult Social Care Operations,Supplies and Services,"8,365.07",Jul-23
Slough Borough Council,3554,Dimensions (Uk) Ltd,M42E,Adult Social Care Operations,Supplies and Services,"6,532.55",Jul-23
Slough Borough Council,3554,Dimensions (Uk) Ltd,M42E,Adult Social Care Operations,Supplies and Services,"6,846.04",Jul-23
Slough Borough Council,3554,Dimensions (Uk) Ltd,M42E,Adult Social Care Operations,Supplies and Services,"8,698.25",Jul-23
Slough Borough Council,3554,Dimensions (Uk) Ltd,M42E,Adult Social Care Operations,Supplies and Services,"8,365.59",Jul-23
Slough Borough Council,3554,Dimensions (Uk) Ltd,M42E,Adult Social Care Operations,Supplies and Services,"7,252.80",Jul-23
Slough Borough Council,3554,Dimensions (Uk) Ltd,M42E,Adult Social Care Operations,Supplies and Services,"6,870.26",Jul-23
Slough Borough Council,3554,Dimensions (Uk) Ltd,M42E,Adult Social Care Operations,Supplies and Services,"6,999.13",Jul-23
Slough Borough Council,3554,Dimensions (Uk) Ltd,M42E,Adult Social Care Operations,Supplies and Services,"8,754.13",Jul-23
Slough Borough Council,3554,Dimensions (Uk) Ltd,M42E,Adult Social Care Operations,Supplies and Services,"2,099.74",Jul-23
Slough Borough Council,3554,Dimensions (Uk) Ltd,M42E,Adult Social Care Operations,Supplies and Services,"7,232.43",Jul-23
Slough Borough Council,805483,Direct Tyre Managenent Ltd,D610,Place Operations,Transport,"9,184.18",Jul-23
Slough Borough Council,805483,Direct Tyre Managenent Ltd,D620,Place Operations,Transport,721.41,Jul-23
Slough Borough Council,805483,Direct Tyre Managenent Ltd,D630,Place Operations,Transport,511.60,Jul-23
Slough Borough Council,803306,Ditton Park Academy,E620,Children & Families,Supplies and Services,"32,375.00",Jul-23
Slough Borough Council,808794,DREAMS HOTEL LTD,H205,Housing (People) Services,Supplies and Services,"27,941.67",Jul-23
Slough Borough Council,808794,DREAMS HOTEL LTD,H205,Housing (People) Services,Supplies and Services,"27,941.67",Jul-23
Slough Borough Council,808794,DREAMS HOTEL LTD,H205,Housing (People) Services,Supplies and Services,"27,941.67",Jul-23
Slough Borough Council,808794,DREAMS HOTEL LTD,H205,Housing (People) Services,Supplies and Services,"27,941.67",Jul-23
Slough Borough Council,808794,DREAMS HOTEL LTD,H205,Housing (People) Services,Supplies and Services,"27,941.67",Jul-23
Slough Borough Council,808505,Dresgef Services Limited,F382,Children & Families,Supplies and Services,"10,000.00",Jul-23
Slough Borough Council,803177,Early Steps Preschool,F909,Children & Families,Supplies and Services,"7,975.45",Jul-23
Slough Borough Council,803177,Early Steps Preschool,F909,Children & Families,Supplies and Services,540.00,Jul-23
Slough Borough Council,2575,Easy Care Systems Ltd,P006,Capital,Capital Charges,870.00,Jul-23
Slough Borough Council,803301,Eden Girls School,E610,Children & Families,Supplies and Services,"5,125.00",Jul-23
Slough Borough Council,1299,Edf Energy,B668,Business Services,Premises,"39,021.22",Jul-23
Slough Borough Council,1299,Edf Energy,B668,Business Services,Premises,"47,532.18",Jul-23
Slough Borough Council,1299,Edf Energy,B668,Business Services,Premises,"61,078.78",Jul-23
Slough Borough Council,1299,Edf Energy,B668,Business Services,Premises,"99,906.30",Jul-23
Slough Borough Council,1299,Edf Energy,B668,Business Services,Premises,"61,078.78",Jul-23
Slough Borough Council,1299,Edf Energy,B668,Business Services,Premises,"61,078.78",Jul-23
Slough Borough Council,1299,Edf Energy,B668,Business Services,Premises,"70,365.49",Jul-23
Slough Borough Council,808885,Ekom Solutions,H205,Housing (People) Services,Supplies and Services,"9,120.00",Jul-23
Slough Borough Council,807001,Elegant Care Services Ltd,M42E,Adult Social Care Operations,Supplies and Services,"6,993.55",Jul-23
Slough Borough Council,807001,Elegant Care Services Ltd,M42E,Adult Social Care Operations,Supplies and Services,"5,987.42",Jul-23
Slough Borough Council,807001,Elegant Care Services Ltd,M42E,Adult Social Care Operations,Supplies and Services,"10,185.71",Jul-23
Slough Borough Council,807001,Elegant Care Services Ltd,M42E,Adult Social Care Operations,Supplies and Services,"6,217.71",Jul-23
Slough Borough Council,807001,Elegant Care Services Ltd,M44C,Adult Social Care Operations,Supplies and Services,"7,023.71",Jul-23
Slough Borough Council,806355,Elysium Healthcare,M26E,Adult Social Care Operations,Supplies and Services,"10,688.40",Jul-23
Slough Borough Council,806355,Elysium Healthcare,M26E,Adult Social Care Operations,Supplies and Services,"9,267.60",Jul-23
Slough Borough Council,808611,Emma Holmes,F253,Children & Families,Agency Staff,564.57,Jul-23
Slough Borough Council,3752,Endurance Health,M44C,Adult Social Care Operations,Supplies and Services,695.66,Jul-23
Slough Borough Council,3752,Endurance Health,M44C,Adult Social Care Operations,Supplies and Services,"1,259.37",Jul-23
Slough Borough Council,3752,Endurance Health,M44C,Adult Social Care Operations,Supplies and Services,559.72,Jul-23
Slough Borough Council,3752,Endurance Health,M44C,Adult Social Care Operations,Supplies and Services,979.51,Jul-23
Slough Borough Council,3752,Endurance Health,M44C,Adult Social Care Operations,Supplies and Services,679.66,Jul-23
Slough Borough Council,3752,Endurance Health,M44C,Adult Social Care Operations,Supplies and Services,"1,340.76",Jul-23
Slough Borough Council,3752,Endurance Health,M44C,Adult Social Care Operations,Supplies and Services,699.65,Jul-23
Slough Borough Council,3752,Endurance Health,M44C,Adult Social Care Operations,Supplies and Services,"1,292.03",Jul-23
Slough Borough Council,3752,Endurance Health,M44C,Adult Social Care Operations,Supplies and Services,963.53,Jul-23
Slough Borough Council,3752,Endurance Health,M44C,Adult Social Care Operations,Supplies and Services,"2,518.74",Jul-23
Slough Borough Council,3752,Endurance Health,M44C,Adult Social Care Operations,Supplies and Services,618.02,Jul-23
Slough Borough Council,3752,Endurance Health,M44C,Adult Social Care Operations,Supplies and Services,"1,259.37",Jul-23
Slough Borough Council,3752,Endurance Health,M44C,Adult Social Care Operations,Supplies and Services,"1,117.44",Jul-23
Slough Borough Council,3752,Endurance Health,M44C,Adult Social Care Operations,Supplies and Services,"1,259.37",Jul-23
Slough Borough Council,3752,Endurance Health,M44C,Adult Social Care Operations,Supplies and Services,"1,373.66",Jul-23
Slough Borough Council,3752,Endurance Health,M44C,Adult Social Care Operations,Supplies and Services,"1,959.02",Jul-23
Slough Borough Council,3752,Endurance Health,M44C,Adult Social Care Operations,Supplies and Services,"2,518.74",Jul-23
Slough Borough Council,3752,Endurance Health,M44C,Adult Social Care Operations,Supplies and Services,684.66,Jul-23
Slough Borough Council,3752,Endurance Health,M44C,Adult Social Care Operations,Supplies and Services,"1,959.02",Jul-23
Slough Borough Council,3752,Endurance Health,M44C,Adult Social Care Operations,Supplies and Services,999.50,Jul-23
Slough Borough Council,3752,Endurance Health,M44C,Adult Social Care Operations,Supplies and Services,"1,059.47",Jul-23
Slough Borough Council,3752,Endurance Health,M44C,Adult Social Care Operations,Supplies and Services,"3,316.42",Jul-23
Slough Borough Council,3752,Endurance Health,M44C,Adult Social Care Operations,Supplies and Services,"1,449.95",Jul-23
Slough Borough Council,3752,Endurance Health,M44C,Adult Social Care Operations,Supplies and Services,879.56,Jul-23
Slough Borough Council,3752,Endurance Health,M44C,Adult Social Care Operations,Supplies and Services,512.80,Jul-23
Slough Borough Council,3752,Endurance Health,M44D,Adult Social Care Operations,Supplies and Services,"1,934.38",Jul-23
Slough Borough Council,3752,Endurance Health,M44D,Adult Social Care Operations,Supplies and Services,979.51,Jul-23
Slough Borough Council,3752,Endurance Health,M44D,Adult Social Care Operations,Supplies and Services,"1,171.76",Jul-23
Slough Borough Council,3752,Endurance Health,M44D,Adult Social Care Operations,Supplies and Services,"2,718.98",Jul-23
Slough Borough Council,3752,Endurance Health,M44D,Adult Social Care Operations,Supplies and Services,559.72,Jul-23
Slough Borough Council,3752,Endurance Health,M44D,Adult Social Care Operations,Supplies and Services,"1,044.16",Jul-23
Slough Borough Council,3752,Endurance Health,M44D,Adult Social Care Operations,Supplies and Services,"1,319.34",Jul-23
Slough Borough Council,3752,Endurance Health,M44D,Adult Social Care Operations,Supplies and Services,814.60,Jul-23
Slough Borough Council,3752,Endurance Health,M44D,Adult Social Care Operations,Supplies and Services,"1,224.06",Jul-23
Slough Borough Council,3752,Endurance Health,M44F,Adult Social Care Operations,Supplies and Services,617.03,Jul-23
Slough Borough Council,3752,Endurance Health,M45C,Adult Social Care Operations,Supplies and Services,908.28,Jul-23
Slough Borough Council,3752,Endurance Health,M48C,Adult Social Care Operations,Supplies and Services,"1,245.66",Jul-23
Slough Borough Council,3752,Endurance Health,M48C,Adult Social Care Operations,Supplies and Services,979.51,Jul-23
Slough Borough Council,3752,Endurance Health,M48C,Adult Social Care Operations,Supplies and Services,"1,396.66",Jul-23
Slough Borough Council,808417,Enerveo Limited,P243,Capital,Capital Charges,"31,363.11",Jul-23
Slough Borough Council,805423,Enriched Care,M44F,Adult Social Care Operations,Supplies and Services,"2,879.90",Jul-23
Slough Borough Council,805423,Enriched Care,M80F,Adult Social Care Operations,Supplies and Services,"1,758.01",Jul-23
Slough Borough Council,807310,Enterprise Rent-A-Car UK Limited trading as Enterprise Flex-E-Rent,D620,Place Operations,Supplies and Services,"1,156.14",Jul-23
Slough Borough Council,807310,Enterprise Rent-A-Car UK Limited trading as Enterprise Flex-E-Rent,D620,Place Operations,Transport,"11,306.38",Jul-23
Slough Borough Council,807310,Enterprise Rent-A-Car UK Limited trading as Enterprise Flex-E-Rent,D750,Place Operations,Transport,"11,038.05",Jul-23
Slough Borough Council,807310,Enterprise Rent-A-Car UK Limited trading as Enterprise Flex-E-Rent,D880,Place Operations,Transport,"4,731.45",Jul-23
Slough Borough Council,803645,Esotec,K089,Place Regulation,Supplies and Services,"54,002.06",Jul-23
Slough Borough Council,2677,Eton House Residential Home,M25C,Adult Social Care Operations,Supplies and Services,"3,534.00",Jul-23
Slough Borough Council,2677,Eton House Residential Home,M25C,Adult Social Care Operations,Supplies and Services,"5,092.86",Jul-23
Slough Borough Council,2677,Eton House Residential Home,M25D,Adult Social Care Operations,Supplies and Services,"3,199.64",Jul-23
Slough Borough Council,2677,Eton House Residential Home,M27C,Adult Social Care Operations,Supplies and Services,"3,520.71",Jul-23
Slough Borough Council,2677,Eton House Residential Home,M27C,Adult Social Care Operations,Supplies and Services,"2,657.14",Jul-23
Slough Borough Council,2677,Eton House Residential Home,M27C,Adult Social Care Operations,Supplies and Services,"5,092.86",Jul-23
Slough Borough Council,2677,Eton House Residential Home,M27C,Adult Social Care Operations,Supplies and Services,"2,657.14",Jul-23
Slough Borough Council,2677,Eton House Residential Home,M29C,Adult Social Care Operations,Supplies and Services,"4,406.43",Jul-23
Slough Borough Council,803583,Eton Porny C of E First School,F552,Children & Families,Supplies and Services,"2,478.00",Jul-23
Slough Borough Council,803583,Eton Porny C of E First School,F552,Children & Families,Supplies and Services,"2,696.00",Jul-23
Slough Borough Council,1995,Eton Wick C Of E First School,F552,Children & Families,Supplies and Services,"3,967.00",Jul-23
Slough Borough Council,806501,Excellent Healthcare Services Ltd,A07R,Adult Social Care Operations,Supplies and Services,833.98,Jul-23
Slough Borough Council,806501,Excellent Healthcare Services Ltd,A07R,Adult Social Care Operations,Supplies and Services,868.02,Jul-23
Slough Borough Council,806501,Excellent Healthcare Services Ltd,A07R,Adult Social Care Operations,Supplies and Services,753.13,Jul-23
Slough Borough Council,806501,Excellent Healthcare Services Ltd,A07R,Adult Social Care Operations,Supplies and Services,506.34,Jul-23
Slough Borough Council,806501,Excellent Healthcare Services Ltd,A07R,Adult Social Care Operations,Supplies and Services,889.29,Jul-23
Slough Borough Council,806501,Excellent Healthcare Services Ltd,M44C,Adult Social Care Operations,Supplies and Services,"1,072.26",Jul-23
Slough Borough Council,806501,Excellent Healthcare Services Ltd,M44C,Adult Social Care Operations,Supplies and Services,"1,046.73",Jul-23
Slough Borough Council,806501,Excellent Healthcare Services Ltd,M44C,Adult Social Care Operations,Supplies and Services,"2,155.87",Jul-23
Slough Borough Council,806501,Excellent Healthcare Services Ltd,M44C,Adult Social Care Operations,Supplies and Services,595.70,Jul-23
Slough Borough Council,806501,Excellent Healthcare Services Ltd,M44C,Adult Social Care Operations,Supplies and Services,"1,650.94",Jul-23
Slough Borough Council,806501,Excellent Healthcare Services Ltd,M44C,Adult Social Care Operations,Supplies and Services,"2,144.52",Jul-23
Slough Borough Council,806501,Excellent Healthcare Services Ltd,M44C,Adult Social Care Operations,Supplies and Services,774.41,Jul-23
Slough Borough Council,806501,Excellent Healthcare Services Ltd,M44C,Adult Social Care Operations,Supplies and Services,"1,072.26",Jul-23
Slough Borough Council,806501,Excellent Healthcare Services Ltd,M44C,Adult Social Care Operations,Supplies and Services,"2,144.52",Jul-23
Slough Borough Council,806501,Excellent Healthcare Services Ltd,M44C,Adult Social Care Operations,Supplies and Services,765.90,Jul-23
Slough Borough Council,806501,Excellent Healthcare Services Ltd,M44C,Adult Social Care Operations,Supplies and Services,"2,280.68",Jul-23
Slough Borough Council,806501,Excellent Healthcare Services Ltd,M44C,Adult Social Care Operations,Supplies and Services,"1,072.26",Jul-23
Slough Borough Council,806501,Excellent Healthcare Services Ltd,M44C,Adult Social Care Operations,Supplies and Services,833.98,Jul-23
Slough Borough Council,806501,Excellent Healthcare Services Ltd,M44C,Adult Social Care Operations,Supplies and Services,957.37,Jul-23
Slough Borough Council,806501,Excellent Healthcare Services Ltd,M44C,Adult Social Care Operations,Supplies and Services,"1,665.41",Jul-23
Slough Borough Council,806501,Excellent Healthcare Services Ltd,M44C,Adult Social Care Operations,Supplies and Services,"2,144.52",Jul-23
Slough Borough Council,806501,Excellent Healthcare Services Ltd,M44C,Adult Social Care Operations,Supplies and Services,"2,147.36",Jul-23
Slough Borough Council,806501,Excellent Healthcare Services Ltd,M44C,Adult Social Care Operations,Supplies and Services,"1,072.26",Jul-23
Slough Borough Council,806501,Excellent Healthcare Services Ltd,M44C,Adult Social Care Operations,Supplies and Services,"2,144.52",Jul-23
Slough Borough Council,806501,Excellent Healthcare Services Ltd,M44C,Adult Social Care Operations,Supplies and Services,765.90,Jul-23
Slough Borough Council,806501,Excellent Healthcare Services Ltd,M44C,Adult Social Care Operations,Supplies and Services,761.64,Jul-23
Slough Borough Council,806501,Excellent Healthcare Services Ltd,M44C,Adult Social Care Operations,Supplies and Services,"2,279.83",Jul-23
Slough Borough Council,806501,Excellent Healthcare Services Ltd,M44C,Adult Social Care Operations,Supplies and Services,833.98,Jul-23
Slough Borough Council,806501,Excellent Healthcare Services Ltd,M44F,Adult Social Care Operations,Supplies and Services,"1,991.34",Jul-23
Slough Borough Council,806501,Excellent Healthcare Services Ltd,M44F,Adult Social Care Operations,Supplies and Services,953.12,Jul-23
Slough Borough Council,806501,Excellent Healthcare Services Ltd,M44F,Adult Social Care Operations,Supplies and Services,714.84,Jul-23
Slough Borough Council,806501,Excellent Healthcare Services Ltd,M44F,Adult Social Care Operations,Supplies and Services,944.61,Jul-23
Slough Borough Council,806501,Excellent Healthcare Services Ltd,M44F,Adult Social Care Operations,Supplies and Services,"2,382.80",Jul-23
Slough Borough Council,806501,Excellent Healthcare Services Ltd,M44F,Adult Social Care Operations,Supplies and Services,714.84,Jul-23
Slough Borough Council,806501,Excellent Healthcare Services Ltd,M45C,Adult Social Care Operations,Supplies and Services,595.70,Jul-23
Slough Borough Council,806501,Excellent Healthcare Services Ltd,M45C,Adult Social Care Operations,Supplies and Services,"1,676.47",Jul-23
Slough Borough Council,806501,Excellent Healthcare Services Ltd,M45C,Adult Social Care Operations,Supplies and Services,574.43,Jul-23
Slough Borough Council,806501,Excellent Healthcare Services Ltd,M48C,Adult Social Care Operations,Supplies and Services,519.11,Jul-23
Slough Borough Council,641,Falon Nameplates Limited,D320,Place Operations,Supplies and Services,849.27,Jul-23
Slough Borough Council,4031,Family Support Practise Limited,B277,Digital and Strategic IT,Supplies and Services,"1,800.00",Jul-23
Slough Borough Council,2678,Farnham Common Nurseries Ltd,P220,Capital,Capital Charges,"1,502.90",Jul-23
Slough Borough Council,754,First Steps Day Nursery,F909,Children & Families,Supplies and Services,"10,676.74",Jul-23
Slough Borough Council,1626,Five Star Radio Cars Limited,F123,Education & Inclusion,External Receipts,"3,360.00",Jul-23
Slough Borough Council,1626,Five Star Radio Cars Limited,F123,Education & Inclusion,External Receipts,"1,200.00",Jul-23
Slough Borough Council,1626,Five Star Radio Cars Limited,F123,Education & Inclusion,External Receipts,"1,040.00",Jul-23
Slough Borough Council,1626,Five Star Radio Cars Limited,F123,Education & Inclusion,External Receipts,"2,520.00",Jul-23
Slough Borough Council,2519,Fleet Tutors,F449,Education & Inclusion,Supplies and Services,"3,264.00",Jul-23
Slough Borough Council,2519,Fleet Tutors,F449,Education & Inclusion,Supplies and Services,"1,392.00",Jul-23
Slough Borough Council,2204,Fleetdrive Management Ltd,M50A,Place Operations,Transport,500.08,Jul-23
Slough Borough Council,2204,Fleetdrive Management Ltd,M50A,Place Operations,Transport,500.08,Jul-23
Slough Borough Council,2204,Fleetdrive Management Ltd,M50A,Place Operations,Transport,500.08,Jul-23
Slough Borough Council,1204,Forget Me Not,M25C,Adult Social Care Operations,Supplies and Services,"3,498.00",Jul-23
Slough Borough Council,1204,Forget Me Not,M25C,Adult Social Care Operations,Supplies and Services,"4,800.00",Jul-23
Slough Borough Council,1204,Forget Me Not,M25C,Adult Social Care Operations,Supplies and Services,"3,400.00",Jul-23
Slough Borough Council,1204,Forget Me Not,M25C,Adult Social Care Operations,Supplies and Services,"3,800.00",Jul-23
Slough Borough Council,1204,Forget Me Not,M25C,Adult Social Care Operations,Supplies and Services,"4,800.00",Jul-23
Slough Borough Council,1204,Forget Me Not,M25C,Adult Social Care Operations,Supplies and Services,"1,124.35",Jul-23
Slough Borough Council,1204,Forget Me Not,M25C,Adult Social Care Operations,Supplies and Services,"3,400.00",Jul-23
Slough Borough Council,1204,Forget Me Not,M25C,Adult Social Care Operations,Supplies and Services,"3,800.00",Jul-23
Slough Borough Council,1204,Forget Me Not,M25D,Adult Social Care Operations,Supplies and Services,"3,600.00",Jul-23
Slough Borough Council,1204,Forget Me Not,M25D,Adult Social Care Operations,Supplies and Services,"3,600.00",Jul-23
Slough Borough Council,1204,Forget Me Not,M27C,Adult Social Care Operations,Supplies and Services,"3,199.76",Jul-23
Slough Borough Council,1204,Forget Me Not,M27C,Adult Social Care Operations,Supplies and Services,"3,800.00",Jul-23
Slough Borough Council,1204,Forget Me Not,M27C,Adult Social Care Operations,Supplies and Services,"3,570.00",Jul-23
Slough Borough Council,1204,Forget Me Not,M27C,Adult Social Care Operations,Supplies and Services,"3,199.76",Jul-23
Slough Borough Council,1204,Forget Me Not,M27C,Adult Social Care Operations,Supplies and Services,"3,800.00",Jul-23
Slough Borough Council,1204,Forget Me Not,M27C,Adult Social Care Operations,Supplies and Services,"3,570.00",Jul-23
Slough Borough Council,647,Foxborough Primary School,E620,Children & Families,Supplies and Services,"10,358.33",Jul-23
Slough Borough Council,805936,Freshworks Inc,B282,Digital and Strategic IT,Supplies and Services,"4,055.88",Jul-23
Slough Borough Council,803540,Furze Platt Senior School,F553,Children & Families,Supplies and Services,"7,206.00",Jul-23
Slough Borough Council,1555,Gallagher Bassett,B018,Finance & Commercial,Supplies and Services,"2,856.34",Jul-23
Slough Borough Council,804911,GAP Group Limited,D880,Place Operations,Supplies and Services,726.00,Jul-23
Slough Borough Council,1758,Gas Advisory Services Limited,J606,Place Management,Supplies and Services,840.00,Jul-23
Slough Borough Council,1758,Gas Advisory Services Limited,J606,Place Management,Supplies and Services,"3,332.00",Jul-23
Slough Borough Council,1758,Gas Advisory Services Limited,J606,Place Management,Supplies and Services,"3,739.00",Jul-23
Slough Borough Council,1758,Gas Advisory Services Limited,J606,Place Management,Supplies and Services,600.00,Jul-23
Slough Borough Council,808013,Get Active Sports,F382,Children & Families,Supplies and Services,"2,874.00",Jul-23
Slough Borough Council,2830,GR Response Healthcare Ltd,A07R,Adult Social Care Operations,Supplies and Services,500.84,Jul-23
Slough Borough Council,2830,GR Response Healthcare Ltd,M44C,Adult Social Care Operations,Supplies and Services,"2,250.08",Jul-23
Slough Borough Council,2830,GR Response Healthcare Ltd,M44C,Adult Social Care Operations,Supplies and Services,"2,250.08",Jul-23
Slough Borough Council,2830,GR Response Healthcare Ltd,M44C,Adult Social Care Operations,Supplies and Services,"1,500.24",Jul-23
Slough Borough Council,2830,GR Response Healthcare Ltd,M44C,Adult Social Care Operations,Supplies and Services,"2,205.44",Jul-23
Slough Borough Council,2830,GR Response Healthcare Ltd,M44C,Adult Social Care Operations,Supplies and Services,"2,250.08",Jul-23
Slough Borough Council,2830,GR Response Healthcare Ltd,M44C,Adult Social Care Operations,Supplies and Services,"2,128.00",Jul-23
Slough Borough Council,2830,GR Response Healthcare Ltd,M44C,Adult Social Care Operations,Supplies and Services,"2,546.00",Jul-23
Slough Borough Council,2830,GR Response Healthcare Ltd,M44C,Adult Social Care Operations,Supplies and Services,"1,526.84",Jul-23
Slough Borough Council,2830,GR Response Healthcare Ltd,M44C,Adult Social Care Operations,Supplies and Services,"2,000.32",Jul-23
Slough Borough Council,2830,GR Response Healthcare Ltd,M44C,Adult Social Care Operations,Supplies and Services,"2,926.00",Jul-23
Slough Borough Council,2830,GR Response Healthcare Ltd,M44C,Adult Social Care Operations,Supplies and Services,"2,394.00",Jul-23
Slough Borough Council,2830,GR Response Healthcare Ltd,M44C,Adult Social Care Operations,Supplies and Services,"1,862.00",Jul-23
Slough Borough Council,2830,GR Response Healthcare Ltd,M44C,Adult Social Care Operations,Supplies and Services,749.84,Jul-23
Slough Borough Council,2830,GR Response Healthcare Ltd,M44C,Adult Social Care Operations,Supplies and Services,"2,394.00",Jul-23
Slough Borough Council,2830,GR Response Healthcare Ltd,M44C,Adult Social Care Operations,Supplies and Services,"2,128.00",Jul-23
Slough Borough Council,2830,GR Response Healthcare Ltd,M44C,Adult Social Care Operations,Supplies and Services,"1,197.00",Jul-23
Slough Borough Council,2830,GR Response Healthcare Ltd,M44C,Adult Social Care Operations,Supplies and Services,"2,250.08",Jul-23
Slough Borough Council,2830,GR Response Healthcare Ltd,M44C,Adult Social Care Operations,Supplies and Services,"1,366.12",Jul-23
Slough Borough Council,2830,GR Response Healthcare Ltd,M44C,Adult Social Care Operations,Supplies and Services,"1,383.98",Jul-23
Slough Borough Council,2830,GR Response Healthcare Ltd,M44C,Adult Social Care Operations,Supplies and Services,"2,250.08",Jul-23
Slough Borough Council,2830,GR Response Healthcare Ltd,M44D,Adult Social Care Operations,Supplies and Services,"2,736.00",Jul-23
Slough Borough Council,2830,GR Response Healthcare Ltd,M44D,Adult Social Care Operations,Supplies and Services,"1,596.00",Jul-23
Slough Borough Council,2830,GR Response Healthcare Ltd,M44D,Adult Social Care Operations,Supplies and Services,717.25,Jul-23
Slough Borough Council,2830,GR Response Healthcare Ltd,M44D,Adult Social Care Operations,Supplies and Services,750.12,Jul-23
Slough Borough Council,2830,GR Response Healthcare Ltd,M44D,Adult Social Care Operations,Supplies and Services,"2,250.08",Jul-23
Slough Borough Council,2830,GR Response Healthcare Ltd,M44D,Adult Social Care Operations,Supplies and Services,"1,463.98",Jul-23
Slough Borough Council,2830,GR Response Healthcare Ltd,M44D,Adult Social Care Operations,Supplies and Services,"2,432.00",Jul-23
Slough Borough Council,2830,GR Response Healthcare Ltd,M44E,Adult Social Care Operations,Supplies and Services,532.00,Jul-23
Slough Borough Council,2830,GR Response Healthcare Ltd,M44E,Adult Social Care Operations,Supplies and Services,532.00,Jul-23
Slough Borough Council,2830,GR Response Healthcare Ltd,M44F,Adult Social Care Operations,Supplies and Services,855.00,Jul-23
Slough Borough Council,2830,GR Response Healthcare Ltd,M45C,Adult Social Care Operations,Supplies and Services,855.00,Jul-23
Slough Borough Council,2830,GR Response Healthcare Ltd,A06C,People Strategy & Commissioning,Supplies and Services,"7,500.00",Jul-23
Slough Borough Council,808846,Grange Park Junior School,F552,Children & Families,Supplies and Services,"15,000.00",Jul-23
Slough Borough Council,803296,Grant Thornton UK LLP,B007,Finance & Commercial,Supplies and Services,"374,000.00",Jul-23
Slough Borough Council,1571,Grc Bailiffs,P405,Capital,Capital Charges,"3,385.00",Jul-23
Slough Borough Council,807255,Green Corridor,F558,Children & Families,Supplies and Services,"1,624.00",Jul-23
Slough Borough Council,807255,Green Corridor,F558,Children & Families,Supplies and Services,"2,348.04",Jul-23
Slough Borough Council,804577,Green Monarch ZC2016 c/o Savills(UK) Limited,H205,Housing (People) Services,Premises,"3,583.33",Jul-23
Slough Borough Council,804577,Green Monarch ZC2016 c/o Savills(UK) Limited,H205,Housing (People) Services,Premises,"3,583.33",Jul-23
Slough Borough Council,804577,Green Monarch ZC2016 c/o Savills(UK) Limited,H205,Housing (People) Services,Premises,"3,583.33",Jul-23
Slough Borough Council,804577,Green Monarch ZC2016 c/o Savills(UK) Limited,H205,Housing (People) Services,Premises,"3,583.33",Jul-23
Slough Borough Council,804577,Green Monarch ZC2016 c/o Savills(UK) Limited,H205,Housing (People) Services,Premises,"3,583.33",Jul-23
Slough Borough Council,808378,Greensleeves Care,M17C,Adult Social Care Operations,Supplies and Services,"3,614.07",Jul-23
Slough Borough Council,808464,Greenstone Care,M44F,Adult Social Care Operations,Supplies and Services,"2,604.00",Jul-23
Slough Borough Council,808464,Greenstone Care,M44F,Adult Social Care Operations,Supplies and Services,"2,790.00",Jul-23
Slough Borough Council,808464,Greenstone Care,M44F,Adult Social Care Operations,Supplies and Services,"2,790.00",Jul-23
Slough Borough Council,808464,Greenstone Care,M44F,Adult Social Care Operations,Supplies and Services,"2,883.00",Jul-23
Slough Borough Council,808464,Greenstone Care,M44F,Adult Social Care Operations,Supplies and Services,"2,883.00",Jul-23
Slough Borough Council,808464,Greenstone Care,M44F,Adult Social Care Operations,Supplies and Services,"1,000.00",Jul-23
Slough Borough Council,808464,Greenstone Care,M51C,Adult Social Care Operations,Supplies and Services,"2,400.00",Jul-23
Slough Borough Council,808464,Greenstone Care,M51C,Adult Social Care Operations,Supplies and Services,"1,300.00",Jul-23
Slough Borough Council,805069,Grove Academy,E610,Children & Families,Supplies and Services,"20,016.50",Jul-23
Slough Borough Council,804447,Grundon Waste Management Limited,D342,Place Operations,Supplies and Services,"547,447.22",Jul-23
Slough Borough Council,809016,H M Revenue  Custom,A05E,Adult Social Care Operations,Supplies and Services,"1,827.67",Jul-23
Slough Borough Council,806681,Hako Machines Ltd,D620,Place Operations,Supplies and Services,597.42,Jul-23
Slough Borough Council,1610,Handicare Uk,P006,Capital,Capital Charges,"3,440.00",Jul-23
Slough Borough Council,1610,Handicare Uk,P006,Capital,Capital Charges,"3,646.00",Jul-23
Slough Borough Council,1610,Handicare Uk,P006,Capital,Capital Charges,"3,320.00",Jul-23
Slough Borough Council,1610,Handicare Uk,P006,Capital,Capital Charges,"5,370.00",Jul-23
Slough Borough Council,1610,Handicare Uk,P006,Capital,Capital Charges,"6,495.00",Jul-23
Slough Borough Council,1610,Handicare Uk,P006,Capital,Capital Charges,"3,290.00",Jul-23
Slough Borough Council,804986,Havencare Ltd,M26E,Adult Social Care Operations,Supplies and Services,"1,356.27",Jul-23
Slough Borough Council,804986,Havencare Ltd,M26E,Adult Social Care Operations,Supplies and Services,"1,356.27",Jul-23
Slough Borough Council,804986,Havencare Ltd,M26E,Adult Social Care Operations,Supplies and Services,"1,356.27",Jul-23
Slough Borough Council,804986,Havencare Ltd,M26E,Adult Social Care Operations,Supplies and Services,"1,356.27",Jul-23
Slough Borough Council,1381,Haybrook College,E610,Children & Families,Supplies and Services,"123,146.69",Jul-23
Slough Borough Council,3784,Haybrook College Pru,E610,Children & Families,Supplies and Services,"42,015.56",Jul-23
Slough Borough Council,808639,Hazel Care Services Ltd,M42E,Adult Social Care Operations,Supplies and Services,"4,122.30",Jul-23
Slough Borough Council,808639,Hazel Care Services Ltd,M42E,Adult Social Care Operations,Supplies and Services,"4,226.60",Jul-23
Slough Borough Council,808639,Hazel Care Services Ltd,M42E,Adult Social Care Operations,Supplies and Services,"2,162.10",Jul-23
Slough Borough Council,808639,Hazel Care Services Ltd,M42E,Adult Social Care Operations,Supplies and Services,"2,018.70",Jul-23
Slough Borough Council,803753,Healthcare Homes,M15D,Adult Social Care Operations,Supplies and Services,"2,938.45",Jul-23
Slough Borough Council,803753,Healthcare Homes,M17C,Adult Social Care Operations,Supplies and Services,"4,428.57",Jul-23
Slough Borough Council,803753,Healthcare Homes,M17C,Adult Social Care Operations,Supplies and Services,"2,629.69",Jul-23
Slough Borough Council,803753,Healthcare Homes,M17C,Adult Social Care Operations,Supplies and Services,"4,871.43",Jul-23
Slough Borough Council,803753,Healthcare Homes,M17C,Adult Social Care Operations,Supplies and Services,"4,871.43",Jul-23
Slough Borough Council,803753,Healthcare Homes,M18C,Adult Social Care Operations,Supplies and Services,"4,714.29",Jul-23
Slough Borough Council,803753,Healthcare Homes,M18C,Adult Social Care Operations,Supplies and Services,942.86,Jul-23
Slough Borough Council,803753,Healthcare Homes,M18C,Adult Social Care Operations,Supplies and Services,"4,871.43",Jul-23
Slough Borough Council,803753,Healthcare Homes,M18C,Adult Social Care Operations,Supplies and Services,"4,871.43",Jul-23
Slough Borough Council,803753,Healthcare Homes,M18C,Adult Social Care Operations,Supplies and Services,"4,871.43",Jul-23
Slough Borough Council,803753,Healthcare Homes,M18C,Adult Social Care Operations,Supplies and Services,"4,871.43",Jul-23
Slough Borough Council,803753,Healthcare Homes,M27C,Adult Social Care Operations,Supplies and Services,"3,224.00",Jul-23
Slough Borough Council,1686,Herald Chase,F382,Children & Families,Supplies and Services,"3,482.54",Jul-23
Slough Borough Council,1686,Herald Chase,D501,Place Strategy & Infrastructure,Supplies and Services,733.20,Jul-23
Slough Borough Council,803447,Herewards House Residential Home,M25C,Adult Social Care Operations,Supplies and Services,"3,985.71",Jul-23
Slough Borough Council,803447,Herewards House Residential Home,M25C,Adult Social Care Operations,Supplies and Services,"3,764.29",Jul-23
Slough Borough Council,803447,Herewards House Residential Home,M27C,Adult Social Care Operations,Supplies and Services,"3,764.29",Jul-23
Slough Borough Council,803447,Herewards House Residential Home,M27C,Adult Social Care Operations,Supplies and Services,"3,764.29",Jul-23
Slough Borough Council,803447,Herewards House Residential Home,M27C,Adult Social Care Operations,Supplies and Services,"2,878.57",Jul-23
Slough Borough Council,803447,Herewards House Residential Home,M29C,Adult Social Care Operations,Supplies and Services,"7,528.57",Jul-23
Slough Borough Council,807998,Heywood's Catering,F382,Children & Families,Supplies and Services,"10,000.00",Jul-23
Slough Borough Council,850,Holy Family Catholic Primary School,E250,Children & Families,Supplies and Services,"196,896.26",Jul-23
Slough Borough Council,808676,Human Engine Limited,B146,Finance & Commercial,Supplies and Services,"17,600.00",Jul-23
Slough Borough Council,808773,Hygiene Systems Ltd,B060,Business Services,Premises,"1,153.17",Jul-23
Slough Borough Council,808773,Hygiene Systems Ltd,B060,Business Services,Premises,"1,304.76",Jul-23
Slough Borough Council,808773,Hygiene Systems Ltd,B060,Business Services,Supplies and Services,861.48,Jul-23
Slough Borough Council,803037,Idox Software Ltd,B015,Finance & Commercial,Supplies and Services,"6,414.00",Jul-23
Slough Borough Council,808897,Imperial Breeze Healthcare South East Ltd,M42E,Adult Social Care Operations,Supplies and Services,"6,400.00",Jul-23
Slough Borough Council,808897,Imperial Breeze Healthcare South East Ltd,M42E,Adult Social Care Operations,Supplies and Services,"4,614.00",Jul-23
Slough Borough Council,2917,Imperial Coaches Ltd,F123,Education & Inclusion,External Receipts,"3,290.00",Jul-23
Slough Borough Council,807666,Independence Home and Domicilary Care,M44F,Adult Social Care Operations,Supplies and Services,"3,272.10",Jul-23
Slough Borough Council,807666,Independence Home and Domicilary Care,M44F,Adult Social Care Operations,Supplies and Services,"2,845.80",Jul-23
Slough Borough Council,807666,Independence Home and Domicilary Care,M44F,Adult Social Care Operations,Supplies and Services,"3,240.00",Jul-23
Slough Borough Council,807666,Independence Home and Domicilary Care,M44F,Adult Social Care Operations,Supplies and Services,"1,494.75",Jul-23
Slough Borough Council,3570,Independent Supported Living And Disabilities Ltd,M42E,Adult Social Care Operations,Supplies and Services,"3,000.00",Jul-23
Slough Borough Council,3570,Independent Supported Living And Disabilities Ltd,M44D,Adult Social Care Operations,Supplies and Services,"3,044.16",Jul-23
Slough Borough Council,3570,Independent Supported Living And Disabilities Ltd,M44E,Adult Social Care Operations,Supplies and Services,"4,212.00",Jul-23
Slough Borough Council,3570,Independent Supported Living And Disabilities Ltd,M44E,Adult Social Care Operations,Supplies and Services,"3,570.00",Jul-23
Slough Borough Council,3570,Independent Supported Living And Disabilities Ltd,M44E,Adult Social Care Operations,Supplies and Services,"1,050.00",Jul-23
Slough Borough Council,3570,Independent Supported Living And Disabilities Ltd,M44E,Adult Social Care Operations,Supplies and Services,"1,440.00",Jul-23
Slough Borough Council,3570,Independent Supported Living And Disabilities Ltd,M44F,Adult Social Care Operations,Supplies and Services,"2,608.00",Jul-23
Slough Borough Council,803651,Insight Direct (UK) Ltd,B281,Business Services,Supplies and Services,"8,844.00",Jul-23
Slough Borough Council,3172,Intelligent Transport Services,P212,Capital,Capital Charges,"2,467.80",Jul-23
Slough Borough Council,3172,Intelligent Transport Services,P238,Capital,Capital Charges,"1,233.90",Jul-23
Slough Borough Council,3172,Intelligent Transport Services,P579,Capital,Capital Charges,"5,346.90",Jul-23
Slough Borough Council,808422,Intersect Survey Ltd,P579,Capital,Capital Charges,"17,000.00",Jul-23
Slough Borough Council,808422,Intersect Survey Ltd,P579,Capital,Capital Charges,"14,000.00",Jul-23
Slough Borough Council,3500,Iqra Slough Islamic Primary School,E480,Children & Families,Supplies and Services,"113,701.75",Jul-23
Slough Borough Council,1150,Iron Mountain Secure Shredding Ltd,B282,Digital and Strategic IT,Supplies and Services,"2,404.00",Jul-23
Slough Borough Council,2919,Islamic Shakhsiyah Foundation,F909,Children & Families,Supplies and Services,"7,394.68",Jul-23
Slough Borough Council,753,Jack In The Box Day Nursery,F909,Children & Families,Supplies and Services,"10,990.64",Jul-23
Slough Borough Council,733,James Elliman  School,E620,Children & Families,Supplies and Services,"31,937.17",Jul-23
Slough Borough Council,805226,JD Surfacing & Civil Engineering Limited,P212,Capital,Capital Charges,"4,160.00",Jul-23
Slough Borough Council,805226,JD Surfacing & Civil Engineering Limited,P212,Capital,Capital Charges,"8,140.00",Jul-23
Slough Borough Council,805226,JD Surfacing & Civil Engineering Limited,P243,Capital,Capital Charges,"2,840.00",Jul-23
Slough Borough Council,805226,JD Surfacing & Civil Engineering Limited,P243,Capital,Capital Charges,"6,950.00",Jul-23
Slough Borough Council,805226,JD Surfacing & Civil Engineering Limited,P243,Capital,Capital Charges,"7,975.00",Jul-23
Slough Borough Council,2200,Joshua Pilmore,C322,Community,Supplies and Services,"1,815.00",Jul-23
Slough Borough Council,804848,JPH Social Work LTD,B409,Customer,Supplies and Services,"1,650.00",Jul-23
Slough Borough Council,803815,Kathys Childcare,F909,Children & Families,Supplies and Services,"2,213.61",Jul-23
Slough Borough Council,2620,Kcare Nursing Agency Ltd,M44D,Adult Social Care Operations,Supplies and Services,"1,576.05",Jul-23
Slough Borough Council,804887,KCare Nursing Agency Ltd Supported House Living,M44F,Adult Social Care Operations,Supplies and Services,"2,493.50",Jul-23
Slough Borough Council,808146,Kents Hill Care Home,M18C,Adult Social Care Operations,Supplies and Services,"3,788.57",Jul-23
Slough Borough Council,807742,Khalsa Primary School,E620,Children & Families,Supplies and Services,"14,738.33",Jul-23
Slough Borough Council,803916,Kharis Solutions,A07R,Adult Social Care Operations,Supplies and Services,"1,339.60",Jul-23
Slough Borough Council,803916,Kharis Solutions,M42E,Adult Social Care Operations,Supplies and Services,"7,188.00",Jul-23
Slough Borough Council,803916,Kharis Solutions,M42E,Adult Social Care Operations,Supplies and Services,"10,360.00",Jul-23
Slough Borough Council,803916,Kharis Solutions,M42E,Adult Social Care Operations,Supplies and Services,"10,360.00",Jul-23
Slough Borough Council,803916,Kharis Solutions,M42E,Adult Social Care Operations,Supplies and Services,"10,360.00",Jul-23
Slough Borough Council,803916,Kharis Solutions,M42E,Adult Social Care Operations,Supplies and Services,"10,360.00",Jul-23
Slough Borough Council,803916,Kharis Solutions,M42E,Adult Social Care Operations,Supplies and Services,"7,188.00",Jul-23
Slough Borough Council,803916,Kharis Solutions,M44C,Adult Social Care Operations,Supplies and Services,"1,243.21",Jul-23
Slough Borough Council,803916,Kharis Solutions,M44C,Adult Social Care Operations,Supplies and Services,"1,357.10",Jul-23
Slough Borough Council,803916,Kharis Solutions,M44C,Adult Social Care Operations,Supplies and Services,"1,961.12",Jul-23
Slough Borough Council,803916,Kharis Solutions,M44C,Adult Social Care Operations,Supplies and Services,"1,470.84",Jul-23
Slough Borough Council,803916,Kharis Solutions,M44C,Adult Social Care Operations,Supplies and Services,"2,285.19",Jul-23
Slough Borough Council,803916,Kharis Solutions,M48C,Adult Social Care Operations,Supplies and Services,"2,210.00",Jul-23
Slough Borough Council,803916,Kharis Solutions,M48C,Adult Social Care Operations,Supplies and Services,"2,210.00",Jul-23
Slough Borough Council,808935,KJP UK Ltd T/A One Consulting Group,B081,Place Strategy & Infrastructure,Supplies and Services,"2,000.00",Jul-23
Slough Borough Council,808599,lakhwinder Singh,H205,Housing (People) Services,Supplies and Services,"1,500.00",Jul-23
Slough Borough Council,808599,lakhwinder Singh,H205,Housing (People) Services,Supplies and Services,"1,500.00",Jul-23
Slough Borough Council,664,Langley Grammar School,E610,Children & Families,Supplies and Services,875.00,Jul-23
Slough Borough Council,1699,Langley Hall Primary Academy,E620,Children & Families,Supplies and Services,"4,416.67",Jul-23
Slough Borough Council,3001,Langley Haven Care Homes Ltd,M25C,Adult Social Care Operations,Supplies and Services,"3,985.71",Jul-23
Slough Borough Council,3001,Langley Haven Care Homes Ltd,M25C,Adult Social Care Operations,Supplies and Services,"4,407.00",Jul-23
Slough Borough Council,3001,Langley Haven Care Homes Ltd,M25C,Adult Social Care Operations,Supplies and Services,"3,985.71",Jul-23
Slough Borough Council,3001,Langley Haven Care Homes Ltd,M25C,Adult Social Care Operations,Supplies and Services,"3,985.71",Jul-23
Slough Borough Council,3001,Langley Haven Care Homes Ltd,M25D,Adult Social Care Operations,Supplies and Services,"3,985.71",Jul-23
Slough Borough Council,3001,Langley Haven Care Homes Ltd,M25D,Adult Social Care Operations,Supplies and Services,"3,985.71",Jul-23
Slough Borough Council,3001,Langley Haven Care Homes Ltd,M26E,Adult Social Care Operations,Supplies and Services,"4,113.21",Jul-23
Slough Borough Council,3001,Langley Haven Care Homes Ltd,M26E,Adult Social Care Operations,Supplies and Services,"4,113.21",Jul-23
Slough Borough Council,3001,Langley Haven Care Homes Ltd,M26E,Adult Social Care Operations,Supplies and Services,"3,980.53",Jul-23
Slough Borough Council,3001,Langley Haven Care Homes Ltd,M27C,Adult Social Care Operations,Supplies and Services,"3,985.71",Jul-23
Slough Borough Council,3001,Langley Haven Care Homes Ltd,M27C,Adult Social Care Operations,Supplies and Services,"3,985.71",Jul-23
Slough Borough Council,3001,Langley Haven Care Homes Ltd,M27C,Adult Social Care Operations,Supplies and Services,"3,985.71",Jul-23
Slough Borough Council,3001,Langley Haven Care Homes Ltd,M27C,Adult Social Care Operations,Supplies and Services,"3,985.71",Jul-23
Slough Borough Council,3001,Langley Haven Care Homes Ltd,M27C,Adult Social Care Operations,Supplies and Services,"3,985.71",Jul-23
Slough Borough Council,3001,Langley Haven Care Homes Ltd,M27F,Adult Social Care Operations,Supplies and Services,"3,985.71",Jul-23
Slough Borough Council,3001,Langley Haven Care Homes Ltd,M27F,Adult Social Care Operations,Supplies and Services,"3,985.71",Jul-23
Slough Borough Council,3001,Langley Haven Care Homes Ltd,M27F,Adult Social Care Operations,Supplies and Services,"3,985.71",Jul-23
Slough Borough Council,3001,Langley Haven Care Homes Ltd,M27F,Adult Social Care Operations,Supplies and Services,"4,407.00",Jul-23
Slough Borough Council,3001,Langley Haven Care Homes Ltd,M27F,Adult Social Care Operations,Supplies and Services,"3,985.71",Jul-23
Slough Borough Council,3001,Langley Haven Care Homes Ltd,M27F,Adult Social Care Operations,Supplies and Services,"2,081.07",Jul-23
Slough Borough Council,3001,Langley Haven Care Homes Ltd,M29C,Adult Social Care Operations,Supplies and Services,"3,985.71",Jul-23
Slough Borough Council,2681,Langley Sound & Light,C406,Community,Supplies and Services,645.00,Jul-23
Slough Borough Council,803686,Lascelles Park Nursery,F909,Children & Families,Supplies and Services,"17,000.00",Jul-23
Slough Borough Council,803686,Lascelles Park Nursery,F909,Children & Families,Supplies and Services,"2,070.00",Jul-23
Slough Borough Council,807015,Leap Children's Therapy Ltd,F417,Education & Inclusion,Supplies and Services,585.00,Jul-23
Slough Borough Council,808111,Learning Curve Group Ltd,F210,Community,TP-Other Bodies,"1,250.34",Jul-23
Slough Borough Council,3482,Leonard Cheshire Disability,M25D,Adult Social Care Operations,Supplies and Services,"5,889.34",Jul-23
Slough Borough Council,3482,Leonard Cheshire Disability,M25D,Adult Social Care Operations,Supplies and Services,"5,699.36",Jul-23
Slough Borough Council,3482,Leonard Cheshire Disability,M26E,Adult Social Care Operations,Supplies and Services,"6,367.67",Jul-23
Slough Borough Council,3482,Leonard Cheshire Disability,M26E,Adult Social Care Operations,Supplies and Services,"2,759.32",Jul-23
Slough Borough Council,808892,Letee Limited,H205,Housing (People) Services,Supplies and Services,"1,650.00",Jul-23
Slough Borough Council,808892,Letee Limited,H205,Housing (People) Services,Supplies and Services,"1,705.00",Jul-23
Slough Borough Council,808892,Letee Limited,H205,Housing (People) Services,Supplies and Services,"6,820.00",Jul-23
Slough Borough Council,808892,Letee Limited,H205,Housing (People) Services,Supplies and Services,"1,705.00",Jul-23
Slough Borough Council,301,Liberata Uk Limited,B048,Finance & Commercial,Supplies and Services,"9,994.68",Jul-23
Slough Borough Council,301,Liberata Uk Limited,B048,Finance & Commercial,Supplies and Services,"10,328.55",Jul-23
Slough Borough Council,301,Liberata Uk Limited,B048,Finance & Commercial,Supplies and Services,"10,328.55",Jul-23
Slough Borough Council,807116,Libraries Connected,C104,Community,Indirect Employee Expenses,611.71,Jul-23
Slough Borough Council,804692,Little Diamonds Pre School,F909,Children & Families,Supplies and Services,"17,000.00",Jul-23
Slough Borough Council,804692,Little Diamonds Pre School,F909,Children & Families,Supplies and Services,900.00,Jul-23
Slough Borough Council,808192,Little Musketeers,F382,Children & Families,Supplies and Services,"1,084.00",Jul-23
Slough Borough Council,808399,Little People Media (Trading as Families TV East Magazine),F382,Children & Families,Supplies and Services,976.00,Jul-23
Slough Borough Council,3791,Littledown Pru,E610,Children & Families,Supplies and Services,"17,100.00",Jul-23
Slough Borough Council,667,Littledown School,E610,Children & Families,Supplies and Services,"59,213.46",Jul-23
Slough Borough Council,667,Littledown School,D509,Place Strategy & Infrastructure,Supplies and Services,"1,062.83",Jul-23
Slough Borough Council,1328,London & Quadrant Housing Trust,H205,Housing (People) Services,Premises,"57,554.16",Jul-23
Slough Borough Council,1282,Long Close School,F909,Children & Families,Supplies and Services,"7,247.98",Jul-23
Slough Borough Council,2302,Look Ahead Care And Support,M42F,Adult Social Care Operations,Supplies and Services,"28,184.58",Jul-23
Slough Borough Council,2302,Look Ahead Care And Support,M44D,Adult Social Care Operations,Supplies and Services,"2,540.84",Jul-23
Slough Borough Council,808982,Loudwater Building Consultancy Ltd,J006,Place Management,Supplies and Services,"1,533.22",Jul-23
Slough Borough Council,1195,Lynch Hill (Foundation Primary) School,E620,Children & Families,Supplies and Services,"24,596.67",Jul-23
Slough Borough Council,1771,Lynch Hill Academy,E620,Children & Families,Supplies and Services,"13,791.67",Jul-23
Slough Borough Council,290,Lyreco Uk Limited,B064,Business Services,Supplies and Services,669.38,Jul-23
Slough Borough Council,3424,M D Homes,M15F,Adult Social Care Operations,Supplies and Services,"5,115.00",Jul-23
Slough Borough Council,807217,Macadamia Support Limited,M42E,Adult Social Care Operations,Supplies and Services,826.00,Jul-23
Slough Borough Council,807217,Macadamia Support Limited,M42E,Adult Social Care Operations,Supplies and Services,"5,790.73",Jul-23
Slough Borough Council,807217,Macadamia Support Limited,M42E,Adult Social Care Operations,Supplies and Services,"6,005.20",Jul-23
Slough Borough Council,807217,Macadamia Support Limited,M42E,Adult Social Care Operations,Supplies and Services,"6,005.20",Jul-23
Slough Borough Council,807217,Macadamia Support Limited,M42E,Adult Social Care Operations,Supplies and Services,"6,438.84",Jul-23
Slough Borough Council,807217,Macadamia Support Limited,M42E,Adult Social Care Operations,Supplies and Services,"6,931.20",Jul-23
Slough Borough Council,807217,Macadamia Support Limited,M42E,Adult Social Care Operations,Supplies and Services,"3,973.20",Jul-23
Slough Borough Council,807217,Macadamia Support Limited,M42E,Adult Social Care Operations,Supplies and Services,"9,373.00",Jul-23
Slough Borough Council,807217,Macadamia Support Limited,M42E,Adult Social Care Operations,Supplies and Services,"7,308.00",Jul-23
Slough Borough Council,807217,Macadamia Support Limited,M42E,Adult Social Care Operations,Supplies and Services,"3,589.12",Jul-23
Slough Borough Council,807217,Macadamia Support Limited,M44C,Adult Social Care Operations,Supplies and Services,"3,591.56",Jul-23
Slough Borough Council,807217,Macadamia Support Limited,M44D,Adult Social Care Operations,Supplies and Services,"5,523.00",Jul-23
Slough Borough Council,1874,Maccabee Pets Hotel,H253,Place Regulation,Supplies and Services,"3,320.00",Jul-23
Slough Borough Council,1941,Manor Green School,F449,Education & Inclusion,Supplies and Services,"3,071.25",Jul-23
Slough Borough Council,1941,Manor Green School,F551,Children & Families,Supplies and Services,"28,401.50",Jul-23
Slough Borough Council,529,Marish Primary School,E620,Children & Families,Supplies and Services,"89,981.75",Jul-23
Slough Borough Council,2752,Martin Conway,H205,Housing (People) Services,Supplies and Services,525.00,Jul-23
Slough Borough Council,2752,Martin Conway,H205,Housing (People) Services,Supplies and Services,525.00,Jul-23
Slough Borough Council,2752,Martin Conway,H205,Housing (People) Services,Supplies and Services,525.00,Jul-23
Slough Borough Council,1886,Matrix Scm,B023,Finance & Commercial,Agency Staff,"441,324.33",Jul-23
Slough Borough Council,1886,Matrix Scm,B023,Finance & Commercial,Agency Staff,"440,309.95",Jul-23
Slough Borough Council,1886,Matrix Scm,B023,Finance & Commercial,Agency Staff,"410,160.97",Jul-23
Slough Borough Council,1886,Matrix Scm,B023,Finance & Commercial,Agency Staff,"464,565.49",Jul-23
Slough Borough Council,1886,Matrix Scm,B023,Finance & Commercial,Agency Staff,"475,937.13",Jul-23
Slough Borough Council,1886,Matrix Scm,B023,Finance & Commercial,Agency Staff,"461,729.92",Jul-23
Slough Borough Council,807684,Maverick Care  Ltd T/A Christies Care Windsor & Maidenhead,M44C,Adult Social Care Operations,Supplies and Services,"1,800.00",Jul-23
Slough Borough Council,807684,Maverick Care  Ltd T/A Christies Care Windsor & Maidenhead,M44C,Adult Social Care Operations,Supplies and Services,702.00,Jul-23
Slough Borough Council,807684,Maverick Care  Ltd T/A Christies Care Windsor & Maidenhead,M44D,Adult Social Care Operations,Supplies and Services,"3,733.00",Jul-23
Slough Borough Council,807684,Maverick Care  Ltd T/A Christies Care Windsor & Maidenhead,M45C,Adult Social Care Operations,Supplies and Services,"3,272.00",Jul-23
Slough Borough Council,807009,Medigold Health Consultancy Ltd,B348,People,Supplies and Services,"5,211.25",Jul-23
Slough Borough Council,807009,Medigold Health Consultancy Ltd,B348,People,Supplies and Services,"5,211.25",Jul-23
Slough Borough Council,809001,Michael Anning,F253,Children & Families,Agency Staff,600.00,Jul-23
Slough Borough Council,3209,Michelle Browne,F909,Children & Families,Supplies and Services,"1,167.81",Jul-23
Slough Borough Council,1496,Mighty Acorns Day Nursery Ltd,F909,Children & Families,Supplies and Services,"13,642.99",Jul-23
Slough Borough Council,1496,Mighty Acorns Day Nursery Ltd,F909,Children & Families,Supplies and Services,"2,700.00",Jul-23
Slough Borough Council,808716,Mini Todds Ltd,F909,Children & Families,Supplies and Services,"5,590.50",Jul-23
Slough Borough Council,808716,Mini Todds Ltd,F909,Children & Families,Supplies and Services,900.00,Jul-23
Slough Borough Council,806737,Mishcon de Reya LLP,P405,Capital,Capital Charges,"26,000.00",Jul-23
Slough Borough Council,2106,Mj Events Support Ltd,B240,Business Services,Premises,"1,433.50",Jul-23
Slough Borough Council,808747,MK HOUSING LTD,H205,Housing (People) Services,Supplies and Services,"10,850.00",Jul-23
Slough Borough Council,808747,MK HOUSING LTD,H205,Housing (People) Services,Supplies and Services,"10,500.00",Jul-23
Slough Borough Council,805121,MMCG (2) Limited,A02E,Adult Social Care Operations,Supplies and Services,"2,744.82",Jul-23
Slough Borough Council,805121,MMCG (2) Limited,M15D,Adult Social Care Operations,Supplies and Services,"3,580.20",Jul-23
Slough Borough Council,805121,MMCG (2) Limited,M15F,Adult Social Care Operations,Supplies and Services,"3,580.20",Jul-23
Slough Borough Council,805121,MMCG (2) Limited,M15F,Adult Social Care Operations,Supplies and Services,"2,743.24",Jul-23
Slough Borough Council,805121,MMCG (2) Limited,M17C,Adult Social Care Operations,Supplies and Services,"3,580.20",Jul-23
Slough Borough Council,805121,MMCG (2) Limited,M17C,Adult Social Care Operations,Supplies and Services,"3,580.20",Jul-23
Slough Borough Council,805121,MMCG (2) Limited,M17C,Adult Social Care Operations,Supplies and Services,"3,580.20",Jul-23
Slough Borough Council,805121,MMCG (2) Limited,M18C,Adult Social Care Operations,Supplies and Services,"4,415.61",Jul-23
Slough Borough Council,805121,MMCG (2) Limited,M18C,Adult Social Care Operations,Supplies and Services,"4,415.61",Jul-23
Slough Borough Council,805121,MMCG (2) Limited,M18C,Adult Social Care Operations,Supplies and Services,"4,479.81",Jul-23
Slough Borough Council,805121,MMCG (2) Limited,M18C,Adult Social Care Operations,Supplies and Services,"3,580.20",Jul-23
Slough Borough Council,805121,MMCG (2) Limited,M18C,Adult Social Care Operations,Supplies and Services,"4,415.61",Jul-23
Slough Borough Council,805121,MMCG (2) Limited,M18C,Adult Social Care Operations,Supplies and Services,"3,580.20",Jul-23
Slough Borough Council,805121,MMCG (2) Limited,M18C,Adult Social Care Operations,Supplies and Services,"3,580.20",Jul-23
Slough Borough Council,805121,MMCG (2) Limited,M25C,Adult Social Care Operations,Supplies and Services,"3,580.20",Jul-23
Slough Borough Council,805121,MMCG (2) Limited,M25C,Adult Social Care Operations,Supplies and Services,"3,580.20",Jul-23
Slough Borough Council,805121,MMCG (2) Limited,M25C,Adult Social Care Operations,Supplies and Services,"3,580.20",Jul-23
Slough Borough Council,805121,MMCG (2) Limited,M25C,Adult Social Care Operations,Supplies and Services,"3,580.20",Jul-23
Slough Borough Council,805121,MMCG (2) Limited,M25C,Adult Social Care Operations,Supplies and Services,"3,580.20",Jul-23
Slough Borough Council,805121,MMCG (2) Limited,M25C,Adult Social Care Operations,Supplies and Services,"3,580.20",Jul-23
Slough Borough Council,805121,MMCG (2) Limited,M27C,Adult Social Care Operations,Supplies and Services,"2,864.16",Jul-23
Slough Borough Council,805121,MMCG (2) Limited,M27C,Adult Social Care Operations,Supplies and Services,"3,580.20",Jul-23
Slough Borough Council,805121,MMCG (2) Limited,M27C,Adult Social Care Operations,Supplies and Services,"3,580.20",Jul-23
Slough Borough Council,805121,MMCG (2) Limited,M27C,Adult Social Care Operations,Supplies and Services,"3,580.20",Jul-23
Slough Borough Council,805121,MMCG (2) Limited,M27C,Adult Social Care Operations,Supplies and Services,"3,580.20",Jul-23
Slough Borough Council,805121,MMCG (2) Limited,M27C,Adult Social Care Operations,Supplies and Services,"3,580.20",Jul-23
Slough Borough Council,805121,MMCG (2) Limited,M28C,Adult Social Care Operations,Supplies and Services,835.38,Jul-23
Slough Borough Council,804815,Molly Southall,C322,Community,Supplies and Services,"1,590.00",Jul-23
Slough Borough Council,804815,Molly Southall,C322,Community,Supplies and Services,770.00,Jul-23
Slough Borough Council,2115,Montagu Evans Llp,B081,Place Strategy & Infrastructure,Agency Staff,"3,375.00",Jul-23
Slough Borough Council,2115,Montagu Evans Llp,B081,Place Strategy & Infrastructure,Agency Staff,"3,000.00",Jul-23
Slough Borough Council,2115,Montagu Evans Llp,B081,Place Strategy & Infrastructure,Supplies and Services,"18,000.00",Jul-23
Slough Borough Council,2115,Montagu Evans Llp,B081,Place Strategy & Infrastructure,Supplies and Services,"5,050.00",Jul-23
Slough Borough Council,2115,Montagu Evans Llp,P242,Capital,Capital Charges,"12,500.00",Jul-23
Slough Borough Council,2166,Montague Swift Recruitment Ltd,F640,Children & Families,Agency Staff,"2,000.00",Jul-23
Slough Borough Council,2166,Montague Swift Recruitment Ltd,F640,Children & Families,Agency Staff,"1,500.00",Jul-23
Slough Borough Council,2166,Montague Swift Recruitment Ltd,F640,Children & Families,Agency Staff,"6,000.00",Jul-23
Slough Borough Council,2166,Montague Swift Recruitment Ltd,F640,Children & Families,Agency Staff,"1,000.00",Jul-23
Slough Borough Council,2166,Montague Swift Recruitment Ltd,F640,Children & Families,Agency Staff,500.00,Jul-23
Slough Borough Council,2166,Montague Swift Recruitment Ltd,F640,Children & Families,Agency Staff,"3,000.00",Jul-23
Slough Borough Council,1140,Montem Guesthouse,H205,Housing (People) Services,Supplies and Services,"68,440.00",Jul-23
Slough Borough Council,3302,Montem Primary School,E620,Children & Families,Supplies and Services,"32,820.00",Jul-23
Slough Borough Council,807432,MPD FM Limited,H216,Community,Supplies and Services,"9,273.45",Jul-23
Slough Borough Council,807432,MPD FM Limited,H216,Community,Supplies and Services,"6,829.68",Jul-23
Slough Borough Council,807432,MPD FM Limited,H216,Community,Supplies and Services,"7,558.02",Jul-23
Slough Borough Council,807432,MPD FM Limited,H216,Community,Supplies and Services,"7,175.94",Jul-23
Slough Borough Council,807432,MPD FM Limited,H216,Community,Supplies and Services,"6,113.28",Jul-23
Slough Borough Council,807432,MPD FM Limited,H216,Community,Supplies and Services,"6,298.35",Jul-23
Slough Borough Council,807432,MPD FM Limited,H216,Community,Supplies and Services,"7,169.97",Jul-23
Slough Borough Council,807432,MPD FM Limited,H216,Community,Supplies and Services,"6,113.28",Jul-23
Slough Borough Council,807432,MPD FM Limited,H216,Community,Supplies and Services,"6,620.73",Jul-23
Slough Borough Council,807432,MPD FM Limited,H216,Community,Supplies and Services,"6,674.46",Jul-23
Slough Borough Council,807432,MPD FM Limited,H216,Community,Supplies and Services,"9,141.60",Jul-23
Slough Borough Council,807432,MPD FM Limited,H216,Community,Supplies and Services,"9,507.85",Jul-23
Slough Borough Council,807432,MPD FM Limited,H216,Community,Supplies and Services,"9,141.60",Jul-23
Slough Borough Council,807501,Mrs Parvinder Kaur Bhandal,H205,Housing (People) Services,Supplies and Services,"8,190.00",Jul-23
Slough Borough Council,807501,Mrs Parvinder Kaur Bhandal,H205,Housing (People) Services,Supplies and Services,"5,340.00",Jul-23
Slough Borough Council,806858,MUDDY BOOTS DAY NURSERY LTD,F909,Children & Families,Supplies and Services,"7,313.33",Jul-23
Slough Borough Council,806858,MUDDY BOOTS DAY NURSERY LTD,F909,Children & Families,Supplies and Services,630.00,Jul-23
Slough Borough Council,805369,NAS Services Limited,M42E,Adult Social Care Operations,Supplies and Services,"8,780.12",Jul-23
Slough Borough Council,1074,Ncfe,F210,Community,Supplies and Services,720.00,Jul-23
Slough Borough Council,1945,Neem Tree Care Ltd,M17C,Adult Social Care Operations,Supplies and Services,"3,604.68",Jul-23
Slough Borough Council,807590,NETWORK MERCHANTS LIMITED,D122,Place Strategy & Infrastructure,Supplies and Services,539.85,Jul-23
Slough Borough Council,2469,Newlands Girls School,F552,Children & Families,Supplies and Services,"8,714.00",Jul-23
Slough Borough Council,805932,NHS East Berkshire CCG,A04C,Adult Social Care Operations,Supplies and Services,"20,714.40",Jul-23
Slough Borough Council,1864,Noahs Ark Environmental Services Ltd,H253,Place Regulation,Supplies and Services,"3,285.00",Jul-23
Slough Borough Council,805330,Norden Farm Centre Trust Limited,B175,Business Services,External Receipts,"1,050.00",Jul-23
Slough Borough Council,3717,Norwood Schools Limited,M26E,Adult Social Care Operations,Supplies and Services,"4,243.52",Jul-23
Slough Borough Council,3717,Norwood Schools Limited,M26E,Adult Social Care Operations,External Receipts,-630.80,Jul-23
Slough Borough Council,2021,Now Medical,H207,Community,Supplies and Services,705.00,Jul-23
Slough Borough Council,803238,Oasis Care and Training Agency,A07R,Adult Social Care Operations,Supplies and Services,"1,877.04",Jul-23
Slough Borough Council,803238,Oasis Care and Training Agency,A07R,Adult Social Care Operations,Supplies and Services,"2,388.96",Jul-23
Slough Borough Council,803238,Oasis Care and Training Agency,M41D,Adult Social Care Operations,Supplies and Services,663.60,Jul-23
Slough Borough Council,803238,Oasis Care and Training Agency,M44C,Adult Social Care Operations,Supplies and Services,"1,270.32",Jul-23
Slough Borough Council,803238,Oasis Care and Training Agency,M44C,Adult Social Care Operations,Supplies and Services,"1,061.76",Jul-23
Slough Borough Council,803238,Oasis Care and Training Agency,M44C,Adult Social Care Operations,Supplies and Services,"2,256.24",Jul-23
Slough Borough Council,803238,Oasis Care and Training Agency,M44C,Adult Social Care Operations,Supplies and Services,"1,194.48",Jul-23
Slough Borough Council,803238,Oasis Care and Training Agency,M44C,Adult Social Care Operations,Supplies and Services,"2,388.99",Jul-23
Slough Borough Council,803238,Oasis Care and Training Agency,M44C,Adult Social Care Operations,Supplies and Services,"1,213.44",Jul-23
Slough Borough Council,803238,Oasis Care and Training Agency,M44C,Adult Social Care Operations,Supplies and Services,796.32,Jul-23
Slough Borough Council,803238,Oasis Care and Training Agency,M44C,Adult Social Care Operations,Supplies and Services,"1,725.36",Jul-23
Slough Borough Council,803238,Oasis Care and Training Agency,M44C,Adult Social Care Operations,Supplies and Services,"3,071.52",Jul-23
Slough Borough Council,803238,Oasis Care and Training Agency,M44C,Adult Social Care Operations,Supplies and Services,663.60,Jul-23
Slough Borough Council,803238,Oasis Care and Training Agency,M44C,Adult Social Care Operations,Supplies and Services,"2,341.56",Jul-23
Slough Borough Council,803238,Oasis Care and Training Agency,M44C,Adult Social Care Operations,Supplies and Services,929.04,Jul-23
Slough Borough Council,803238,Oasis Care and Training Agency,M44C,Adult Social Care Operations,Supplies and Services,"1,478.88",Jul-23
Slough Borough Council,803238,Oasis Care and Training Agency,M44C,Adult Social Care Operations,Supplies and Services,663.60,Jul-23
Slough Borough Council,803238,Oasis Care and Training Agency,M44C,Adult Social Care Operations,Supplies and Services,"1,327.20",Jul-23
Slough Borough Council,803238,Oasis Care and Training Agency,M44C,Adult Social Care Operations,Supplies and Services,"2,881.92",Jul-23
Slough Borough Council,803238,Oasis Care and Training Agency,M44D,Adult Social Care Operations,Supplies and Services,948.00,Jul-23
Slough Borough Council,803238,Oasis Care and Training Agency,M44D,Adult Social Care Operations,Supplies and Services,739.44,Jul-23
Slough Borough Council,803238,Oasis Care and Training Agency,M44D,Adult Social Care Operations,Supplies and Services,663.60,Jul-23
Slough Borough Council,803238,Oasis Care and Training Agency,M44D,Adult Social Care Operations,Supplies and Services,"1,099.68",Jul-23
Slough Borough Council,803238,Oasis Care and Training Agency,M44D,Adult Social Care Operations,Supplies and Services,"1,323.64",Jul-23
Slough Borough Council,803238,Oasis Care and Training Agency,M44D,Adult Social Care Operations,Supplies and Services,842.32,Jul-23
Slough Borough Council,803238,Oasis Care and Training Agency,M44D,Adult Social Care Operations,Supplies and Services,"2,388.96",Jul-23
Slough Borough Council,803238,Oasis Care and Training Agency,M44D,Adult Social Care Operations,Supplies and Services,"2,388.96",Jul-23
Slough Borough Council,803238,Oasis Care and Training Agency,M44D,Adult Social Care Operations,Supplies and Services,"1,478.88",Jul-23
Slough Borough Council,803238,Oasis Care and Training Agency,M44F,Adult Social Care Operations,Supplies and Services,"1,516.80",Jul-23
Slough Borough Council,803238,Oasis Care and Training Agency,M45C,Adult Social Care Operations,Supplies and Services,663.60,Jul-23
Slough Borough Council,803238,Oasis Care and Training Agency,M45C,Adult Social Care Operations,Supplies and Services,"1,194.48",Jul-23
Slough Borough Council,803238,Oasis Care and Training Agency,M45C,Adult Social Care Operations,Supplies and Services,796.32,Jul-23
Slough Borough Council,803238,Oasis Care and Training Agency,M45C,Adult Social Care Operations,Supplies and Services,"1,109.16",Jul-23
Slough Borough Council,803238,Oasis Care and Training Agency,M85F,People Adults,Supplies and Services,530.88,Jul-23
Slough Borough Council,1129,Ocean Media Group Ltd,J006,Place Management,Indirect Employee Expenses,"1,045.00",Jul-23
Slough Borough Council,1767,Olive Tree Montessori Ltd,F909,Children & Families,Supplies and Services,"20,439.93",Jul-23
Slough Borough Council,1767,Olive Tree Montessori Ltd,F909,Children & Families,Supplies and Services,"2,610.00",Jul-23
Slough Borough Council,3603,Olympia Transport Limited,F123,Education & Inclusion,External Receipts,"9,671.73",Jul-23
Slough Borough Council,3603,Olympia Transport Limited,F123,Education & Inclusion,External Receipts,"13,460.61",Jul-23
Slough Borough Council,3603,Olympia Transport Limited,F123,Education & Inclusion,External Receipts,"2,256.00",Jul-23
Slough Borough Council,3603,Olympia Transport Limited,F123,Education & Inclusion,External Receipts,"1,128.00",Jul-23
Slough Borough Council,804687,Optalis Limited,M42E,Adult Social Care Operations,Supplies and Services,"4,807.26",Jul-23
Slough Borough Council,804687,Optalis Limited,M42E,Adult Social Care Operations,Supplies and Services,"5,642.13",Jul-23
Slough Borough Council,803490,Optimum Specialised Home Limited,M26E,Adult Social Care Operations,Supplies and Services,"7,180.00",Jul-23
Slough Borough Council,803490,Optimum Specialised Home Limited,M26E,Adult Social Care Operations,Supplies and Services,"8,400.00",Jul-23
Slough Borough Council,803490,Optimum Specialised Home Limited,M26E,Adult Social Care Operations,Supplies and Services,"7,200.00",Jul-23
Slough Borough Council,805011,Osborne Property Services Limited,J607,Place Management,Premises,"200,101.01",Jul-23
Slough Borough Council,805011,Osborne Property Services Limited,J015,Place Management,Premises,"75,822.96",Jul-23
Slough Borough Council,805011,Osborne Property Services Limited,H206,Community,Premises,734.88,Jul-23
Slough Borough Council,805011,Osborne Property Services Limited,J606,Place Management,Supplies and Services,"200,242.86",Jul-23
Slough Borough Council,805011,Osborne Property Services Limited,P409,Capital,Capital Charges,"33,916.47",Jul-23
Slough Borough Council,805011,Osborne Property Services Limited,P413,Capital,Capital Charges,"55,025.10",Jul-23
Slough Borough Council,805011,Osborne Property Services Limited,P415,Capital,Capital Charges,582.48,Jul-23
Slough Borough Council,805011,Osborne Property Services Limited,P415,Capital,Capital Charges,"1,137.57",Jul-23
Slough Borough Council,805011,Osborne Property Services Limited,P417,Capital,Capital Charges,"68,394.77",Jul-23
Slough Borough Council,805011,Osborne Property Services Limited,P419,Capital,Capital Charges,"77,819.23",Jul-23
Slough Borough Council,805011,Osborne Property Services Limited,P421,Capital,Capital Charges,"20,119.84",Jul-23
Slough Borough Council,805011,Osborne Property Services Limited,P431,Capital,Capital Charges,"222,629.92",Jul-23
Slough Borough Council,805011,Osborne Property Services Limited,P433,Capital,Capital Charges,"1,894.79",Jul-23
Slough Borough Council,805011,Osborne Property Services Limited,P547,Capital,Capital Charges,"22,399.86",Jul-23
Slough Borough Council,805011,Osborne Property Services Limited,P547,Capital,Capital Charges,"51,747.95",Jul-23
Slough Borough Council,805011,Osborne Property Services Limited,J607,Place Management,Supplies and Services,"90,203.64",Jul-23
Slough Borough Council,805011,Osborne Property Services Limited,J606,Place Management,Supplies and Services,"276,261.60",Jul-23
Slough Borough Council,3371,Our Lady Of Peace Catholic Primary and Nursery School,E340,Children & Families,Supplies and Services,"20,573.68",Jul-23
Slough Borough Council,807728,OverDrive Global Limited,C104,Community,Supplies and Services,"5,182.00",Jul-23
Slough Borough Council,294,Oxford Computer Consultants Ltd,A03D,People Adults,Supplies and Services,"7,388.50",Jul-23
Slough Borough Council,680,Oxford House Community Care,M44C,Adult Social Care Operations,Supplies and Services,"1,386.61",Jul-23
Slough Borough Council,680,Oxford House Community Care,M44C,Adult Social Care Operations,Supplies and Services,"1,376.22",Jul-23
Slough Borough Council,680,Oxford House Community Care,M44C,Adult Social Care Operations,Supplies and Services,718.68,Jul-23
Slough Borough Council,680,Oxford House Community Care,M44C,Adult Social Care Operations,Supplies and Services,"2,438.19",Jul-23
Slough Borough Council,680,Oxford House Community Care,M44C,Adult Social Care Operations,Supplies and Services,"3,276.00",Jul-23
Slough Borough Council,680,Oxford House Community Care,M44C,Adult Social Care Operations,Supplies and Services,"1,248.00",Jul-23
Slough Borough Council,680,Oxford House Community Care,M44C,Adult Social Care Operations,Supplies and Services,"1,348.83",Jul-23
Slough Borough Council,680,Oxford House Community Care,M44C,Adult Social Care Operations,Supplies and Services,"2,690.80",Jul-23
Slough Borough Council,680,Oxford House Community Care,M44C,Adult Social Care Operations,Supplies and Services,"1,286.06",Jul-23
Slough Borough Council,680,Oxford House Community Care,M44C,Adult Social Care Operations,Supplies and Services,682.50,Jul-23
Slough Borough Council,680,Oxford House Community Care,M44C,Adult Social Care Operations,Supplies and Services,682.50,Jul-23
Slough Borough Council,680,Oxford House Community Care,M44C,Adult Social Care Operations,Supplies and Services,"1,228.50",Jul-23
Slough Borough Council,680,Oxford House Community Care,M44C,Adult Social Care Operations,Supplies and Services,"1,415.15",Jul-23
Slough Borough Council,680,Oxford House Community Care,M44C,Adult Social Care Operations,Supplies and Services,643.50,Jul-23
Slough Borough Council,680,Oxford House Community Care,M44C,Adult Social Care Operations,Supplies and Services,"3,003.00",Jul-23
Slough Borough Council,680,Oxford House Community Care,M44C,Adult Social Care Operations,Supplies and Services,988.93,Jul-23
Slough Borough Council,680,Oxford House Community Care,M44C,Adult Social Care Operations,Supplies and Services,"1,412.60",Jul-23
Slough Borough Council,680,Oxford House Community Care,M44C,Adult Social Care Operations,Supplies and Services,"1,095.95",Jul-23
Slough Borough Council,680,Oxford House Community Care,M44D,Adult Social Care Operations,Supplies and Services,674.78,Jul-23
Slough Borough Council,680,Oxford House Community Care,M44D,Adult Social Care Operations,Supplies and Services,682.50,Jul-23
Slough Borough Council,680,Oxford House Community Care,M44D,Adult Social Care Operations,Supplies and Services,819.00,Jul-23
Slough Borough Council,680,Oxford House Community Care,M44D,Adult Social Care Operations,Supplies and Services,"1,195.86",Jul-23
Slough Borough Council,680,Oxford House Community Care,M44D,Adult Social Care Operations,Supplies and Services,"1,470.00",Jul-23
Slough Borough Council,680,Oxford House Community Care,M44E,Adult Social Care Operations,Supplies and Services,546.00,Jul-23
Slough Borough Council,680,Oxford House Community Care,M44F,Adult Social Care Operations,Supplies and Services,504.50,Jul-23
Slough Borough Council,680,Oxford House Community Care,M45C,Adult Social Care Operations,Supplies and Services,613.39,Jul-23
Slough Borough Council,680,Oxford House Community Care,M45C,Adult Social Care Operations,Supplies and Services,"1,400.90",Jul-23
Slough Borough Council,680,Oxford House Community Care,M48C,Adult Social Care Operations,Supplies and Services,907.48,Jul-23
Slough Borough Council,680,Oxford House Community Care,M48C,Adult Social Care Operations,Supplies and Services,"1,092.00",Jul-23
Slough Borough Council,680,Oxford House Community Care,M48C,Adult Social Care Operations,Supplies and Services,883.74,Jul-23
Slough Borough Council,680,Oxford House Community Care,M48C,Adult Social Care Operations,Supplies and Services,546.00,Jul-23
Slough Borough Council,808679,PARBHAN LTD,H205,Housing (People) Services,Supplies and Services,"14,100.00",Jul-23
Slough Borough Council,2461,PARK NOW LIMITED,D122,Place Strategy & Infrastructure,Supplies and Services,"7,060.65",Jul-23
Slough Borough Council,3271,Partnership In Care Ltd,M44F,Adult Social Care Operations,Supplies and Services,"2,982.26",Jul-23
Slough Borough Council,3271,Partnership In Care Ltd,M44F,Adult Social Care Operations,Supplies and Services,"2,982.26",Jul-23
Slough Borough Council,3271,Partnership In Care Ltd,M44F,Adult Social Care Operations,Supplies and Services,"2,982.26",Jul-23
Slough Borough Council,2509,Parvaaz Project,M44E,Adult Social Care Operations,Supplies and Services,678.60,Jul-23
Slough Borough Council,2509,Parvaaz Project,M44E,Adult Social Care Operations,Supplies and Services,678.60,Jul-23
Slough Borough Council,2509,Parvaaz Project,M44E,Adult Social Care Operations,Supplies and Services,678.60,Jul-23
Slough Borough Council,2509,Parvaaz Project,M44E,Adult Social Care Operations,Supplies and Services,678.60,Jul-23
Slough Borough Council,2509,Parvaaz Project,M44E,Adult Social Care Operations,Supplies and Services,678.60,Jul-23
Slough Borough Council,2509,Parvaaz Project,M50E,Adult Social Care Operations,Supplies and Services,800.40,Jul-23
Slough Borough Council,2509,Parvaaz Project,M50E,Adult Social Care Operations,Supplies and Services,800.40,Jul-23
Slough Borough Council,2509,Parvaaz Project,M50E,Adult Social Care Operations,Supplies and Services,800.40,Jul-23
Slough Borough Council,2509,Parvaaz Project,M50E,Adult Social Care Operations,Supplies and Services,800.40,Jul-23
Slough Borough Council,2509,Parvaaz Project,M50E,Adult Social Care Operations,Supplies and Services,800.40,Jul-23
Slough Borough Council,807405,PayPoint Network Ltd,H055,Finance & Commercial,Supplies and Services,893.88,Jul-23
Slough Borough Council,807405,PayPoint Network Ltd,H055,Finance & Commercial,Supplies and Services,"2,046.15",Jul-23
Slough Borough Council,807405,PayPoint Network Ltd,H055,Finance & Commercial,Supplies and Services,"1,342.15",Jul-23
Slough Borough Council,807405,PayPoint Network Ltd,H055,Finance & Commercial,Supplies and Services,"2,962.43",Jul-23
Slough Borough Council,809010,Pellings LLP,P242,Capital,Capital Charges,"9,851.30",Jul-23
Slough Borough Council,824,Penn Wood Primary and Nursery School,E450,Children & Families,Supplies and Services,"303,852.70",Jul-23
Slough Borough Council,808606,Pentwyn House Nursing Home,M18C,Adult Social Care Operations,Supplies and Services,"4,207.01",Jul-23
Slough Borough Council,807611,Peopletoo Ltd,A01D,People Adults,Supplies and Services,"93,556.00",Jul-23
Slough Borough Council,1504,Permanent Futures Limited,F410,Children & Families,Agency Staff,"1,410.00",Jul-23
Slough Borough Council,1504,Permanent Futures Limited,F410,Children & Families,Agency Staff,"1,410.00",Jul-23
Slough Borough Council,1504,Permanent Futures Limited,F410,Children & Families,Agency Staff,"1,410.00",Jul-23
Slough Borough Council,1504,Permanent Futures Limited,F410,Children & Families,Agency Staff,"1,410.00",Jul-23
Slough Borough Council,1504,Permanent Futures Limited,F640,Children & Families,Agency Staff,"1,170.00",Jul-23
Slough Borough Council,1821,Phoenix Futures,A04C,Adult Social Care Operations,Supplies and Services,"3,600.00",Jul-23
Slough Borough Council,807727,Phoenix Infant Academy c/o Thames Learning Trust,E620,Children & Families,Supplies and Services,"13,791.67",Jul-23
Slough Borough Council,3359,Pippins School,E370,Children & Families,Supplies and Services,"11,480.43",Jul-23
Slough Borough Council,904,Pitney Bowes Finance Plc,K077,Business Services,Supplies and Services,"5,330.02",Jul-23
Slough Borough Council,807120,PJ Care Limited,M15D,Adult Social Care Operations,Supplies and Services,"9,831.65",Jul-23
Slough Borough Council,808881,PKB MANAGEMENT LTD,H205,Housing (People) Services,Supplies and Services,"50,742.00",Jul-23
Slough Borough Council,2537,Pre School Stars,F909,Children & Families,Supplies and Services,"7,371.37",Jul-23
Slough Borough Council,2537,Pre School Stars,F909,Children & Families,Supplies and Services,"1,350.00",Jul-23
Slough Borough Council,808538,Premier Education,F382,Children & Families,Supplies and Services,"4,000.00",Jul-23
Slough Borough Council,849,Priory Primary School,E380,Children & Families,Supplies and Services,"431,854.66",Jul-23
Slough Borough Council,808180,Proact,B342,Digital and Strategic IT,Supplies and Services,"10,450.00",Jul-23
Slough Borough Council,808180,Proact,B342,Digital and Strategic IT,Supplies and Services,"1,100.00",Jul-23
Slough Borough Council,808921,PROUD INVESTMENTS LTD,H205,Housing (People) Services,Supplies and Services,"2,250.00",Jul-23
Slough Borough Council,808200,Quest Recovery Services Ltd,M44C,Adult Social Care Operations,Supplies and Services,"1,078.56",Jul-23
Slough Borough Council,808200,Quest Recovery Services Ltd,M44C,Adult Social Care Operations,Supplies and Services,"1,129.80",Jul-23
Slough Borough Council,808200,Quest Recovery Services Ltd,M44C,Adult Social Care Operations,Supplies and Services,"1,078.56",Jul-23
Slough Borough Council,808200,Quest Recovery Services Ltd,M44C,Adult Social Care Operations,Supplies and Services,796.08,Jul-23
Slough Borough Council,808200,Quest Recovery Services Ltd,M44C,Adult Social Care Operations,Supplies and Services,"2,157.12",Jul-23
Slough Borough Council,808200,Quest Recovery Services Ltd,M44C,Adult Social Care Operations,Supplies and Services,599.20,Jul-23
Slough Borough Council,808200,Quest Recovery Services Ltd,M44C,Adult Social Care Operations,Supplies and Services,"1,078.56",Jul-23
Slough Borough Council,808200,Quest Recovery Services Ltd,M44C,Adult Social Care Operations,Supplies and Services,"1,078.56",Jul-23
Slough Borough Council,808200,Quest Recovery Services Ltd,M44C,Adult Social Care Operations,Supplies and Services,945.88,Jul-23
Slough Borough Council,808200,Quest Recovery Services Ltd,M44D,Adult Social Care Operations,Supplies and Services,"1,078.56",Jul-23
Slough Borough Council,808200,Quest Recovery Services Ltd,M44D,Adult Social Care Operations,Supplies and Services,"1,318.24",Jul-23
Slough Borough Council,808200,Quest Recovery Services Ltd,M44E,Adult Social Care Operations,Supplies and Services,"1,686.32",Jul-23
Slough Borough Council,808200,Quest Recovery Services Ltd,M45C,Adult Social Care Operations,Supplies and Services,"2,157.12",Jul-23
Slough Borough Council,808200,Quest Recovery Services Ltd,M48C,Adult Social Care Operations,Supplies and Services,"1,883.20",Jul-23
Slough Borough Council,808200,Quest Recovery Services Ltd,M48C,Adult Social Care Operations,Supplies and Services,"1,078.56",Jul-23
Slough Borough Council,2685,R.E.A.C.H,M26E,Adult Social Care Operations,Supplies and Services,"7,667.52",Jul-23
Slough Borough Council,2685,R.E.A.C.H,M26E,Adult Social Care Operations,Supplies and Services,"7,132.56",Jul-23
Slough Borough Council,2685,R.E.A.C.H,M26E,Adult Social Care Operations,Supplies and Services,"6,191.08",Jul-23
Slough Borough Council,2685,R.E.A.C.H,M26E,Adult Social Care Operations,Supplies and Services,"10,591.40",Jul-23
Slough Borough Council,2685,R.E.A.C.H,M26E,Adult Social Care Operations,Supplies and Services,"5,476.50",Jul-23
Slough Borough Council,2685,R.E.A.C.H,M26E,Adult Social Care Operations,External Receipts,-564.40,Jul-23
Slough Borough Council,2685,R.E.A.C.H,M26E,Adult Social Care Operations,External Receipts,-630.80,Jul-23
Slough Borough Council,806766,Red Brick Care Ltd,A07R,Adult Social Care Operations,Supplies and Services,"1,377.00",Jul-23
Slough Borough Council,806766,Red Brick Care Ltd,M44C,Adult Social Care Operations,Supplies and Services,714.00,Jul-23
Slough Borough Council,806766,Red Brick Care Ltd,M44C,Adult Social Care Operations,Supplies and Services,"2,142.00",Jul-23
Slough Borough Council,806766,Red Brick Care Ltd,M44C,Adult Social Care Operations,Supplies and Services,"2,618.00",Jul-23
Slough Borough Council,806766,Red Brick Care Ltd,M44C,Adult Social Care Operations,Supplies and Services,838.00,Jul-23
Slough Borough Council,806766,Red Brick Care Ltd,M44C,Adult Social Care Operations,Supplies and Services,"1,785.00",Jul-23
Slough Borough Council,806766,Red Brick Care Ltd,M44C,Adult Social Care Operations,Supplies and Services,"2,142.00",Jul-23
Slough Borough Council,806766,Red Brick Care Ltd,M44C,Adult Social Care Operations,Supplies and Services,"2,142.00",Jul-23
Slough Borough Council,806766,Red Brick Care Ltd,M44C,Adult Social Care Operations,Supplies and Services,833.00,Jul-23
Slough Borough Council,806766,Red Brick Care Ltd,M44C,Adult Social Care Operations,Supplies and Services,"1,453.50",Jul-23
Slough Borough Council,806766,Red Brick Care Ltd,M44C,Adult Social Care Operations,Supplies and Services,"2,618.00",Jul-23
Slough Borough Council,806766,Red Brick Care Ltd,M44C,Adult Social Care Operations,Supplies and Services,"2,618.00",Jul-23
Slough Borough Council,806766,Red Brick Care Ltd,M44C,Adult Social Care Operations,Supplies and Services,"2,618.00",Jul-23
Slough Borough Council,806766,Red Brick Care Ltd,M44C,Adult Social Care Operations,Supplies and Services,"2,618.00",Jul-23
Slough Borough Council,806766,Red Brick Care Ltd,M44D,Adult Social Care Operations,Supplies and Services,595.00,Jul-23
Slough Borough Council,806766,Red Brick Care Ltd,M45C,Adult Social Care Operations,Supplies and Services,"1,836.00",Jul-23
Slough Borough Council,806766,Red Brick Care Ltd,M45C,Adult Social Care Operations,Supplies and Services,935.00,Jul-23
Slough Borough Council,806766,Red Brick Care Ltd,M45C,Adult Social Care Operations,Supplies and Services,"1,190.00",Jul-23
Slough Borough Council,806766,Red Brick Care Ltd,M45C,Adult Social Care Operations,Supplies and Services,765.00,Jul-23
Slough Borough Council,806766,Red Brick Care Ltd,M45C,Adult Social Care Operations,Supplies and Services,569.50,Jul-23
Slough Borough Council,806766,Red Brick Care Ltd,M45C,Adult Social Care Operations,Supplies and Services,"1,482.00",Jul-23
Slough Borough Council,806766,Red Brick Care Ltd,M45C,Adult Social Care Operations,Supplies and Services,833.00,Jul-23
Slough Borough Council,806766,Red Brick Care Ltd,M45C,Adult Social Care Operations,Supplies and Services,833.00,Jul-23
Slough Borough Council,805946,Red Brick Care Ltd,F909,Children & Families,Supplies and Services,550.63,Jul-23
Slough Borough Council,805084,Redacted,F909,Children & Families,Supplies and Services,906.36,Jul-23
Slough Borough Council,806541,Redacted,F909,Children & Families,Supplies and Services,"18,088.50",Jul-23
Slough Borough Council,806541,Redacted,F909,Children & Families,Supplies and Services,"1,260.00",Jul-23
Slough Borough Council,3903,Redacted,F909,Children & Families,Supplies and Services,906.36,Jul-23
Slough Borough Council,1928,Redacted,F909,Children & Families,Supplies and Services,716.43,Jul-23
Slough Borough Council,3173,Redacted,F909,Children & Families,Supplies and Services,906.36,Jul-23
Slough Borough Council,804707,Redacted,F909,Children & Families,Supplies and Services,906.36,Jul-23
Slough Borough Council,807475,Redacted,F909,Children & Families,Supplies and Services,"1,763.88",Jul-23
Slough Borough Council,803853,Redacted,F909,Children & Families,Supplies and Services,"1,359.54",Jul-23
Slough Borough Council,807647,Redacted,F909,Children & Families,Supplies and Services,906.36,Jul-23
Slough Borough Council,803819,Redacted,F909,Children & Families,Supplies and Services,"1,118.82",Jul-23
Slough Borough Council,805806,Redacted,F909,Children & Families,Supplies and Services,586.80,Jul-23
Slough Borough Council,808246,Redacted,F123,Education & Inclusion,External Receipts,760.00,Jul-23
Slough Borough Council,804359,Redacted,F123,Education & Inclusion,External Receipts,"1,207.26",Jul-23
Slough Borough Council,807635,Redacted,F123,Education & Inclusion,External Receipts,864.00,Jul-23
Slough Borough Council,2229,Reliance High-Tech Limited (T/A Reliance Project),J015,Place Management,Supplies and Services,"1,635.48",Jul-23
Slough Borough Council,2229,Reliance High-Tech Limited (T/A Reliance Project),J015,Place Management,Supplies and Services,"5,909.04",Jul-23
Slough Borough Council,808302,Reliant Care Limited,M44C,Adult Social Care Operations,Supplies and Services,"3,023.91",Jul-23
Slough Borough Council,807562,Renovo Farnborough Limited,M25D,Adult Social Care Operations,Supplies and Services,"8,714.76",Jul-23
Slough Borough Council,805624,Rent Connect Housing ltd.,H205,Housing (People) Services,Premises,"39,045.00",Jul-23
Slough Borough Council,2529,Richmond Fellowship,M27F,Adult Social Care Operations,Supplies and Services,"2,180.70",Jul-23
Slough Borough Council,2529,Richmond Fellowship,M27F,Adult Social Care Operations,Supplies and Services,"2,180.70",Jul-23
Slough Borough Council,2529,Richmond Fellowship,M27F,Adult Social Care Operations,Supplies and Services,"2,253.39",Jul-23
Slough Borough Council,2529,Richmond Fellowship,M27F,Adult Social Care Operations,Supplies and Services,"2,253.39",Jul-23
Slough Borough Council,805200,RJ Morgan Fencing Ltd,P243,Capital,Supplies and Services,"1,400.00",Jul-23
Slough Borough Council,805200,RJ Morgan Fencing Ltd,P243,Capital,Supplies and Services,805.00,Jul-23
Slough Borough Council,805200,RJ Morgan Fencing Ltd,P243,Capital,Supplies and Services,"1,320.00",Jul-23
Slough Borough Council,1553,Robyn Baker,C322,Community,Supplies and Services,"2,223.00",Jul-23
Slough Borough Council,696,Royal Borough Of Windsor And Maidenhead,B240,Business Services,Supplies and Services,853.05,Jul-23
Slough Borough Council,696,Royal Borough Of Windsor And Maidenhead,M44E,Adult Social Care Operations,Supplies and Services,"1,008.00",Jul-23
Slough Borough Council,696,Royal Borough Of Windsor And Maidenhead,M44E,Adult Social Care Operations,Supplies and Services,"3,444.00",Jul-23
Slough Borough Council,696,Royal Borough Of Windsor And Maidenhead,B655,Adult Social Care Operations,Supplies and Services,"5,617.00",Jul-23
Slough Borough Council,696,Royal Borough Of Windsor And Maidenhead,F552,Children & Families,Supplies and Services,"10,222.00",Jul-23
Slough Borough Council,696,Royal Borough Of Windsor And Maidenhead,F552,Children & Families,Supplies and Services,"2,500.00",Jul-23
Slough Borough Council,2168,RSM UK Risk Assurance Services LLP,B007,Finance & Commercial,Supplies and Services,"8,721.00",Jul-23
Slough Borough Council,2168,RSM UK Risk Assurance Services LLP,B007,Finance & Commercial,Supplies and Services,"77,767.00",Jul-23
Slough Borough Council,842,Ryvers Primary School,E620,Children & Families,Supplies and Services,"18,365.00",Jul-23
Slough Borough Council,808515,S R Estate Holding Limited,H205,Housing (People) Services,Supplies and Services,"1,705.00",Jul-23
Slough Borough Council,806398,Saba Park UK Services Limited,D122,Place Strategy & Infrastructure,Premises,"16,166.60",Jul-23
Slough Borough Council,806398,Saba Park UK Services Limited,D123,Place Strategy & Infrastructure,Supplies and Services,649.38,Jul-23
Slough Borough Council,806398,Saba Park UK Services Limited,D123,Place Strategy & Infrastructure,Supplies and Services,"2,885.40",Jul-23
Slough Borough Council,806398,Saba Park UK Services Limited,D123,Place Strategy & Infrastructure,Supplies and Services,"120,196.94",Jul-23
Slough Borough Council,806398,Saba Park UK Services Limited,D122,Place Strategy & Infrastructure,Supplies and Services,"13,355.22",Jul-23
Slough Borough Council,806398,Saba Park UK Services Limited,D123,Place Strategy & Infrastructure,Supplies and Services,"1,997.10",Jul-23
Slough Borough Council,806398,Saba Park UK Services Limited,D010,Place Strategy & Infrastructure,Supplies and Services,"21,499.10",Jul-23
Slough Borough Council,1580,Savills (UK) Ltd,J606,Place Management,Supplies and Services,"13,200.00",Jul-23
Slough Borough Council,1580,Savills (UK) Ltd,J606,Place Management,Supplies and Services,"8,500.00",Jul-23
Slough Borough Council,1580,Savills (UK) Ltd,J606,Place Management,Supplies and Services,"16,800.00",Jul-23
Slough Borough Council,1580,Savills (UK) Ltd,J606,Place Management,Supplies and Services,"4,250.00",Jul-23
Slough Borough Council,1580,Savills (UK) Ltd,J606,Place Management,Supplies and Services,"6,050.00",Jul-23
Slough Borough Council,1580,Savills (UK) Ltd,J606,Place Management,Supplies and Services,"2,261.40",Jul-23
Slough Borough Council,1580,Savills (UK) Ltd,J606,Place Management,Supplies and Services,"4,250.00",Jul-23
Slough Borough Council,1580,Savills (UK) Ltd,J606,Place Management,Supplies and Services,"8,250.00",Jul-23
Slough Borough Council,1580,Savills (UK) Ltd,J606,Place Management,Supplies and Services,"4,250.00",Jul-23
Slough Borough Council,1580,Savills (UK) Ltd,J606,Place Management,Supplies and Services,"6,350.00",Jul-23
Slough Borough Council,803999,Sequence Care Group,M26E,Adult Social Care Operations,Supplies and Services,"13,717.43",Jul-23
Slough Borough Council,803999,Sequence Care Group,M26E,Adult Social Care Operations,Supplies and Services,"12,799.92",Jul-23
Slough Borough Council,803999,Sequence Care Group,M26E,Adult Social Care Operations,Supplies and Services,"13,226.63",Jul-23
Slough Borough Council,803999,Sequence Care Group,M26E,Adult Social Care Operations,Supplies and Services,"-2,001.97",Jul-23
Slough Borough Council,808140,Service to the Aged Ltd,M15D,Adult Social Care Operations,Supplies and Services,"3,861.30",Jul-23
Slough Borough Council,808140,Service to the Aged Ltd,M15D,Adult Social Care Operations,Supplies and Services,901.00,Jul-23
Slough Borough Council,807856,Shally Singh,H205,Housing (People) Services,Supplies and Services,"12,012.00",Jul-23
Slough Borough Council,808814,Shine Partnerships Ltd,M42F,Adult Social Care Operations,Supplies and Services,"1,802.34",Jul-23
Slough Borough Council,805203,Shorts Agricultural Services Ltd,D342,Place Operations,Supplies and Services,"5,645.36",Jul-23
Slough Borough Council,805203,Shorts Agricultural Services Ltd,D342,Place Operations,Supplies and Services,"20,711.74",Jul-23
Slough Borough Council,805303,Sign Health,M27C,Adult Social Care Operations,Supplies and Services,"5,485.49",Jul-23
Slough Borough Council,808733,Simmtronic Ltd,B060,Business Services,Premises,"1,737.00",Jul-23
Slough Borough Council,808216,SJG Consultancy Ltd,F123,Education & Inclusion,Supplies and Services,"3,000.00",Jul-23
Slough Borough Council,808709,SKHH LIMITED,H205,Housing (People) Services,Supplies and Services,"1,950.00",Jul-23
Slough Borough Council,808709,SKHH LIMITED,H205,Housing (People) Services,Supplies and Services,"1,800.00",Jul-23
Slough Borough Council,3333,Slk Services,F123,Education & Inclusion,External Receipts,"6,460.00",Jul-23
Slough Borough Council,1459,Slough And Eton C E School,E610,Children & Families,Supplies and Services,"22,514.84",Jul-23
Slough Borough Council,807834,Slough Children First,M99C,Children & Families,Supplies and Services,"3,005,484.32",Jul-23
Slough Borough Council,808680,SLOUGH CITY REAL ESTATE LTD,H205,Housing (People) Services,Supplies and Services,"186,106.00",Jul-23
Slough Borough Council,276,Slough Community Transport & Shopmobility,F123,Education & Inclusion,External Receipts,"33,850.00",Jul-23
Slough Borough Council,1913,Slough Crossroads Caring For Carers,M44C,Adult Social Care Operations,Supplies and Services,"1,120.00",Jul-23
Slough Borough Council,1913,Slough Crossroads Caring For Carers,M44C,Adult Social Care Operations,Supplies and Services,744.00,Jul-23
Slough Borough Council,3503,Slough Day Nursery,F909,Children & Families,Supplies and Services,"5,725.95",Jul-23
Slough Borough Council,3503,Slough Day Nursery,F909,Children & Families,Supplies and Services,540.00,Jul-23
Slough Borough Council,804380,Slough Refugee Council,D006,Place & Communities,Supplies and Services,"3,000.00",Jul-23
Slough Borough Council,808942,Smart Application Management,D512,Place Strategy & Infrastructure,Supplies and Services,"8,250.00",Jul-23
Slough Borough Council,806733,Smart Move (Estate Agents UK) LTD,H205,Housing (People) Services,Supplies and Services,"1,660.00",Jul-23
Slough Borough Council,1113,Smc Ford Credit,M50A,Place Operations,Transport,616.65,Jul-23
Slough Borough Council,382,Softcat Plc,B342,Digital and Strategic IT,Supplies and Services,"6,000.00",Jul-23
Slough Borough Council,382,Softcat Plc,B342,Digital and Strategic IT,Supplies and Services,"12,000.00",Jul-23
Slough Borough Council,382,Softcat Plc,B342,Digital and Strategic IT,Supplies and Services,"8,400.00",Jul-23
Slough Borough Council,1228,Solace Group,D003,Place Management,Agency Staff,"21,240.00",Jul-23
Slough Borough Council,1228,Solace Group,D003,Place Management,Agency Staff,"20,576.25",Jul-23
Slough Borough Council,114,Solutions 4 Health Ltd,A01P,Public Health,Supplies and Services,"229,057.81",Jul-23
Slough Borough Council,114,Solutions 4 Health Ltd,A01P,Public Health,Supplies and Services,"51,833.33",Jul-23
Slough Borough Council,808878,Sonia Martinez Mulner,C322,Community,Supplies and Services,"2,050.00",Jul-23
Slough Borough Council,1598,Sorbon Estates Limited,H205,Housing (People) Services,Premises,"6,040.83",Jul-23
Slough Borough Council,807995,Sport4Kids,F382,Children & Families,Supplies and Services,"3,630.00",Jul-23
Slough Borough Council,807995,Sport4Kids,F382,Children & Families,Supplies and Services,"8,167.50",Jul-23
Slough Borough Council,807995,Sport4Kids,F382,Children & Families,Supplies and Services,"3,630.00",Jul-23
Slough Borough Council,808401,SSE Energy Solution,B668,Business Services,Premises,"5,931.00",Jul-23
Slough Borough Council,808401,SSE Energy Solution,B668,Business Services,Premises,"2,781.73",Jul-23
Slough Borough Council,808401,SSE Energy Solution,B668,Business Services,Premises,"1,897.13",Jul-23
Slough Borough Council,808401,SSE Energy Solution,B668,Business Services,Premises,"1,412.80",Jul-23
Slough Borough Council,808401,SSE Energy Solution,J015,Place Management,Premises,"54,905.86",Jul-23
Slough Borough Council,803165,St Anthony's Catholic Primary School & Nursery,E620,Children & Families,Supplies and Services,"20,545.00",Jul-23
Slough Borough Council,3383,St Bernards Catholic Grammar School,E550,Children & Families,Supplies and Services,"617,448.10",Jul-23
Slough Borough Council,2918,St Bernard'S Rc Preparatory School,F909,Children & Families,Supplies and Services,"14,424.78",Jul-23
Slough Borough Council,808813,St David's Home,M28C,Adult Social Care Operations,Supplies and Services,"6,428.57",Jul-23
Slough Borough Council,808250,St Elizabeth's Centre,F558,Children & Families,Supplies and Services,"19,008.82",Jul-23
Slough Borough Council,3547,St Ethelberts School,E620,Children & Families,Supplies and Services,"6,447.27",Jul-23
Slough Borough Council,1378,St Josephs Catholic High School,E610,Children & Families,Supplies and Services,"24,354.17",Jul-23
Slough Borough Council,806013,ST MARY'S CHURCH OF ENGLAND PRIMARY SCHOOL,E420,Children & Families,Supplies and Services,"98,350.78",Jul-23
Slough Borough Council,1944,St Peters Ce Middle School,F552,Children & Families,Supplies and Services,"2,514.00",Jul-23
Slough Borough Council,1445,Stallcombe House,M26E,Adult Social Care Operations,Supplies and Services,"6,556.50",Jul-23
Slough Borough Council,1445,Stallcombe House,M26E,Adult Social Care Operations,Supplies and Services,"5,922.00",Jul-23
Slough Borough Council,1445,Stallcombe House,M26E,Adult Social Care Operations,Supplies and Services,"5,922.00",Jul-23
Slough Borough Council,1445,Stallcombe House,M26E,Adult Social Care Operations,Supplies and Services,"5,922.00",Jul-23
Slough Borough Council,1445,Stallcombe House,M26E,Adult Social Care Operations,Supplies and Services,"1,480.50",Jul-23
Slough Borough Council,468,Stannah Lift Services Ltd,P006,Capital,Capital Charges,"5,163.00",Jul-23
Slough Borough Council,468,Stannah Lift Services Ltd,P006,Capital,Capital Charges,"3,625.00",Jul-23
Slough Borough Council,468,Stannah Lift Services Ltd,P006,Capital,Capital Charges,"3,230.00",Jul-23
Slough Borough Council,468,Stannah Lift Services Ltd,P006,Capital,Capital Charges,"3,313.00",Jul-23
Slough Borough Council,805181,Street Furnishings Ltd,D880,Place Operations,Supplies and Services,887.00,Jul-23
Slough Borough Council,805181,Street Furnishings Ltd,D880,Place Operations,Supplies and Services,"1,754.40",Jul-23
Slough Borough Council,805181,Street Furnishings Ltd,D880,Place Operations,Supplies and Services,"1,390.00",Jul-23
Slough Borough Council,807889,Sunrise Transport Ltd,F123,Education & Inclusion,External Receipts,"3,200.00",Jul-23
Slough Borough Council,807889,Sunrise Transport Ltd,F123,Education & Inclusion,External Receipts,"2,812.00",Jul-23
Slough Borough Council,293,Surecare Slough,A07R,Adult Social Care Operations,Supplies and Services,"1,328.56",Jul-23
Slough Borough Council,293,Surecare Slough,M41D,Adult Social Care Operations,Supplies and Services,"1,113.28",Jul-23
Slough Borough Council,293,Surecare Slough,M41D,Adult Social Care Operations,Supplies and Services,"1,182.86",Jul-23
Slough Borough Council,293,Surecare Slough,M41D,Adult Social Care Operations,Supplies and Services,"2,422.93",Jul-23
Slough Borough Council,293,Surecare Slough,M41D,Adult Social Care Operations,Supplies and Services,"2,195.20",Jul-23
Slough Borough Council,293,Surecare Slough,M44C,Adult Social Care Operations,Supplies and Services,714.74,Jul-23
Slough Borough Council,293,Surecare Slough,M44C,Adult Social Care Operations,Supplies and Services,978.38,Jul-23
Slough Borough Council,293,Surecare Slough,M44C,Adult Social Care Operations,Supplies and Services,703.64,Jul-23
Slough Borough Council,293,Surecare Slough,M44C,Adult Social Care Operations,Supplies and Services,"1,273.01",Jul-23
Slough Borough Council,293,Surecare Slough,M44C,Adult Social Care Operations,Supplies and Services,"1,234.15",Jul-23
Slough Borough Council,293,Surecare Slough,M44C,Adult Social Care Operations,Supplies and Services,"2,430.40",Jul-23
Slough Borough Council,293,Surecare Slough,M44C,Adult Social Care Operations,Supplies and Services,"1,097.60",Jul-23
Slough Borough Council,293,Surecare Slough,M44C,Adult Social Care Operations,Supplies and Services,"2,468.94",Jul-23
Slough Borough Council,293,Surecare Slough,M44C,Adult Social Care Operations,Supplies and Services,"2,469.60",Jul-23
Slough Borough Council,293,Surecare Slough,M44C,Adult Social Care Operations,Supplies and Services,"1,097.60",Jul-23
Slough Borough Council,293,Surecare Slough,M44C,Adult Social Care Operations,Supplies and Services,"1,094.02",Jul-23
Slough Borough Council,293,Surecare Slough,M44C,Adult Social Care Operations,Supplies and Services,763.74,Jul-23
Slough Borough Council,293,Surecare Slough,M44C,Adult Social Care Operations,Supplies and Services,"1,232.51",Jul-23
Slough Borough Council,293,Surecare Slough,M44C,Adult Social Care Operations,Supplies and Services,"2,564.00",Jul-23
Slough Borough Council,293,Surecare Slough,M44C,Adult Social Care Operations,Supplies and Services,"1,230.56",Jul-23
Slough Borough Council,293,Surecare Slough,M44C,Adult Social Care Operations,Supplies and Services,"1,037.81",Jul-23
Slough Borough Council,293,Surecare Slough,M44C,Adult Social Care Operations,Supplies and Services,931.00,Jul-23
Slough Borough Council,293,Surecare Slough,M44C,Adult Social Care Operations,Supplies and Services,"1,241.55",Jul-23
Slough Borough Council,293,Surecare Slough,M44C,Adult Social Care Operations,Supplies and Services,"2,469.60",Jul-23
Slough Borough Council,293,Surecare Slough,M44C,Adult Social Care Operations,Supplies and Services,823.20,Jul-23
Slough Borough Council,293,Surecare Slough,M44C,Adult Social Care Operations,Supplies and Services,"2,726.03",Jul-23
Slough Borough Council,293,Surecare Slough,M44C,Adult Social Care Operations,Supplies and Services,"2,734.20",Jul-23
Slough Borough Council,293,Surecare Slough,M44C,Adult Social Care Operations,Supplies and Services,"2,933.54",Jul-23
Slough Borough Council,293,Surecare Slough,M44C,Adult Social Care Operations,Supplies and Services,"2,476.46",Jul-23
Slough Borough Council,293,Surecare Slough,M44C,Adult Social Care Operations,Supplies and Services,821.57,Jul-23
Slough Borough Council,293,Surecare Slough,M44C,Adult Social Care Operations,Supplies and Services,"2,467.96",Jul-23
Slough Borough Council,293,Surecare Slough,M44C,Adult Social Care Operations,Supplies and Services,960.40,Jul-23
Slough Borough Council,293,Surecare Slough,M44C,Adult Social Care Operations,Supplies and Services,607.60,Jul-23
Slough Borough Council,293,Surecare Slough,M44C,Adult Social Care Operations,Supplies and Services,"1,920.15",Jul-23
Slough Borough Council,293,Surecare Slough,M44C,Adult Social Care Operations,Supplies and Services,733.60,Jul-23
Slough Borough Council,293,Surecare Slough,M44C,Adult Social Care Operations,Supplies and Services,"3,011.89",Jul-23
Slough Borough Council,293,Surecare Slough,M44C,Adult Social Care Operations,Supplies and Services,960.40,Jul-23
Slough Borough Council,293,Surecare Slough,M44C,Adult Social Care Operations,Supplies and Services,"2,543.10",Jul-23
Slough Borough Council,293,Surecare Slough,M44C,Adult Social Care Operations,Supplies and Services,"2,546.68",Jul-23
Slough Borough Council,293,Surecare Slough,M44C,Adult Social Care Operations,Supplies and Services,882.00,Jul-23
Slough Borough Council,293,Surecare Slough,M44D,Adult Social Care Operations,Supplies and Services,"2,625.42",Jul-23
Slough Borough Council,293,Surecare Slough,M44D,Adult Social Care Operations,Supplies and Services,"2,469.60",Jul-23
Slough Borough Council,293,Surecare Slough,M44D,Adult Social Care Operations,Supplies and Services,"1,372.00",Jul-23
Slough Borough Council,293,Surecare Slough,M44D,Adult Social Care Operations,Supplies and Services,"1,372.00",Jul-23
Slough Borough Council,293,Surecare Slough,M44D,Adult Social Care Operations,Supplies and Services,"2,207.95",Jul-23
Slough Borough Council,293,Surecare Slough,M44E,Adult Social Care Operations,Supplies and Services,705.60,Jul-23
Slough Borough Council,293,Surecare Slough,M44E,Adult Social Care Operations,Supplies and Services,911.40,Jul-23
Slough Borough Council,293,Surecare Slough,M44E,Adult Social Care Operations,Supplies and Services,"1,097.60",Jul-23
Slough Borough Council,293,Surecare Slough,M44E,Adult Social Care Operations,Supplies and Services,"1,097.60",Jul-23
Slough Borough Council,293,Surecare Slough,M44F,Adult Social Care Operations,Supplies and Services,945.38,Jul-23
Slough Borough Council,293,Surecare Slough,M45C,Adult Social Care Operations,Supplies and Services,959.43,Jul-23
Slough Borough Council,293,Surecare Slough,M45C,Adult Social Care Operations,Supplies and Services,782.04,Jul-23
Slough Borough Council,293,Surecare Slough,M45C,Adult Social Care Operations,Supplies and Services,960.40,Jul-23
Slough Borough Council,293,Surecare Slough,M45C,Adult Social Care Operations,Supplies and Services,"1,587.60",Jul-23
Slough Borough Council,293,Surecare Slough,M48C,Adult Social Care Operations,Supplies and Services,621.64,Jul-23
Slough Borough Council,293,Surecare Slough,M48C,Adult Social Care Operations,Supplies and Services,"2,744.00",Jul-23
Slough Borough Council,715,Surrey County Council,F551,Children & Families,Supplies and Services,"4,654.00",Jul-23
Slough Borough Council,1677,Taylorfitch,F382,Children & Families,Supplies and Services,"4,299.99",Jul-23
Slough Borough Council,3891,Teaching Personnel Ltd,F449,Education & Inclusion,Supplies and Services,846.00,Jul-23
Slough Borough Council,3369,Teeny Boppers Montessori School,F909,Children & Families,Supplies and Services,"8,787.43",Jul-23
Slough Borough Council,3369,Teeny Boppers Montessori School,F909,Children & Families,Supplies and Services,720.00,Jul-23
Slough Borough Council,1596,Teleshore (Uk) Limited,D320,Place Operations,Supplies and Services,"4,072.50",Jul-23
Slough Borough Council,807803,Telsolutions Ltd,H015,Finance & Commercial,Supplies and Services,500.00,Jul-23
Slough Borough Council,3168,Thames Valley Berkshire Local Enteprise Partnership Ltd,D006,Place & Communities,Supplies and Services,"11,800.00",Jul-23
Slough Borough Council,1078,Thames Valley Chamber Of Commerce Group,B415,Place Strategy & Infrastructure,Supplies and Services,"2,180.30",Jul-23
Slough Borough Council,803712,Thames Valley Transport Services LTD,F123,Education & Inclusion,External Receipts,"101,523.90",Jul-23
Slough Borough Council,717,Thames Water Utilities Limited,J015,Place Management,Premises,"4,261.63",Jul-23
Slough Borough Council,803774,The Abbeyfield Maidenhead Society Ltd,M27C,Adult Social Care Operations,Supplies and Services,"4,355.65",Jul-23
Slough Borough Council,438,The Beeches Veterinary Hospital,H253,Place Regulation,Supplies and Services,"2,781.73",Jul-23
Slough Borough Council,3344,The Caldecott Foundation,F551,Children & Families,Supplies and Services,"2,700.00",Jul-23
Slough Borough Council,3344,The Caldecott Foundation,F551,Children & Families,Supplies and Services,"17,550.00",Jul-23
Slough Borough Council,3344,The Caldecott Foundation,F551,Children & Families,Supplies and Services,"5,785.71",Jul-23
Slough Borough Council,3344,The Caldecott Foundation,F551,Children & Families,Supplies and Services,"-5,710.71",Jul-23
Slough Borough Council,653,The Godolphin Junior Academy,E620,Children & Families,Supplies and Services,"8,958.33",Jul-23
Slough Borough Council,1385,The Langley Academy,E610,Children & Families,Supplies and Services,"22,917.81",Jul-23
Slough Borough Council,803300,The Langley Academy Primary,E610,Children & Families,Supplies and Services,"27,625.00",Jul-23
Slough Borough Council,806847,The Langley Heritage Primary Academy,E620,Children & Families,Supplies and Services,"22,666.67",Jul-23
Slough Borough Council,805400,The Leading Care Company,M44C,Adult Social Care Operations,Supplies and Services,743.24,Jul-23
Slough Borough Council,805400,The Leading Care Company,M44C,Adult Social Care Operations,Supplies and Services,652.59,Jul-23
Slough Borough Council,805400,The Leading Care Company,M44D,Adult Social Care Operations,Supplies and Services,"3,800.16",Jul-23
Slough Borough Council,805400,The Leading Care Company,M44D,Adult Social Care Operations,Supplies and Services,"1,078.95",Jul-23
Slough Borough Council,805400,The Leading Care Company,M44E,Adult Social Care Operations,Supplies and Services,"5,513.76",Jul-23
Slough Borough Council,1794,The Light UK,M44E,Adult Social Care Operations,Supplies and Services,500.58,Jul-23
Slough Borough Council,3116,The Oratory Montessori Day Nursery,F909,Children & Families,Supplies and Services,"14,990.03",Jul-23
Slough Borough Council,803338,The Owl Centre,F417,Education & Inclusion,Supplies and Services,951.30,Jul-23
Slough Borough Council,808670,The Skills Network,F210,Community,TP-Other Bodies,522.00,Jul-23
Slough Borough Council,807988,The Sports Collective,F382,Children & Families,Supplies and Services,"2,666.66",Jul-23
Slough Borough Council,807988,The Sports Collective,F382,Children & Families,Supplies and Services,"5,333.33",Jul-23
Slough Borough Council,821,The Westgate School,E610,Children & Families,Supplies and Services,"23,798.52",Jul-23
Slough Borough Council,2999,The Windsor Boys School,F552,Children & Families,Supplies and Services,"9,719.00",Jul-23
Slough Borough Council,808805,Thrift Farm,M44E,Adult Social Care Operations,Supplies and Services,595.92,Jul-23
Slough Borough Council,808805,Thrift Farm,M44E,Adult Social Care Operations,Supplies and Services,595.92,Jul-23
Slough Borough Council,808805,Thrift Farm,M44E,Adult Social Care Operations,Supplies and Services,595.92,Jul-23
Slough Borough Council,808699,Tile Hill Interim & Executive Ltd,D003,Place Management,Agency Staff,"18,000.00",Jul-23
Slough Borough Council,805915,Time 4 U Limited,M44F,Adult Social Care Operations,Supplies and Services,"3,037.80",Jul-23
Slough Borough Council,806360,Tiny Turtles Daycare Nursery Ltd,F909,Children & Families,Supplies and Services,"17,402.89",Jul-23
Slough Borough Council,806360,Tiny Turtles Daycare Nursery Ltd,F909,Children & Families,Supplies and Services,"2,340.00",Jul-23
Slough Borough Council,803194,TMP Worldwide,B348,People,Indirect Employee Expenses,"4,156.50",Jul-23
Slough Borough Council,803194,TMP Worldwide,B348,People,Indirect Employee Expenses,520.50,Jul-23
Slough Borough Council,803194,TMP Worldwide,B348,People,Indirect Employee Expenses,"4,060.50",Jul-23
Slough Borough Council,803194,TMP Worldwide,B348,People,Indirect Employee Expenses,"1,425.00",Jul-23
Slough Borough Council,803194,TMP Worldwide,B348,People,Indirect Employee Expenses,"1,335.00",Jul-23
Slough Borough Council,803194,TMP Worldwide,B348,People,Indirect Employee Expenses,520.50,Jul-23
Slough Borough Council,803194,TMP Worldwide,B348,People,Indirect Employee Expenses,"1,950.00",Jul-23
Slough Borough Council,803194,TMP Worldwide,B348,People,Indirect Employee Expenses,"18,582.00",Jul-23
Slough Borough Council,803194,TMP Worldwide,B348,People,Indirect Employee Expenses,"9,307.50",Jul-23
Slough Borough Council,803194,TMP Worldwide,B348,People,Indirect Employee Expenses,"1,290.00",Jul-23
Slough Borough Council,803194,TMP Worldwide,B348,People,Indirect Employee Expenses,"2,140.50",Jul-23
Slough Borough Council,803194,TMP Worldwide,B348,People,Indirect Employee Expenses,"3,315.00",Jul-23
Slough Borough Council,803194,TMP Worldwide,B348,People,Indirect Employee Expenses,"1,148.75",Jul-23
Slough Borough Council,171,Toad Hall Nursery,F909,Children & Families,Supplies and Services,"22,371.40",Jul-23
Slough Borough Council,171,Toad Hall Nursery,F909,Children & Families,Supplies and Services,810.00,Jul-23
Slough Borough Council,2203,Toby Miller,C322,Community,Supplies and Services,"1,077.00",Jul-23
Slough Borough Council,1782,Top Mill Ltd,M80F,Adult Social Care Operations,Supplies and Services,840.00,Jul-23
Slough Borough Council,1782,Top Mill Ltd,H205,Housing (People) Services,Supplies and Services,700.00,Jul-23
Slough Borough Council,1782,Top Mill Ltd,H205,Housing (People) Services,Supplies and Services,700.00,Jul-23
Slough Borough Council,808884,Total Communication,M22D,Adult Social Care Operations,Supplies and Services,862.50,Jul-23
Slough Borough Council,808884,Total Communication,M22D,Adult Social Care Operations,Supplies and Services,"1,050.00",Jul-23
Slough Borough Council,808884,Total Communication,M22D,Adult Social Care Operations,Supplies and Services,"1,237.50",Jul-23
Slough Borough Council,808884,Total Communication,M22D,Adult Social Care Operations,Supplies and Services,"1,125.00",Jul-23
Slough Borough Council,808884,Total Communication,M22D,Adult Social Care Operations,Supplies and Services,825.00,Jul-23
Slough Borough Council,808884,Total Communication,M22D,Adult Social Care Operations,Supplies and Services,"1,537.50",Jul-23
Slough Borough Council,808884,Total Communication,M22D,Adult Social Care Operations,Supplies and Services,600.00,Jul-23
Slough Borough Council,808884,Total Communication,M22D,Adult Social Care Operations,Supplies and Services,862.20,Jul-23
Slough Borough Council,808884,Total Communication,M22D,Adult Social Care Operations,Supplies and Services,750.00,Jul-23
Slough Borough Council,808884,Total Communication,M22D,Adult Social Care Operations,Supplies and Services,"1,537.50",Jul-23
Slough Borough Council,808884,Total Communication,M22D,Adult Social Care Operations,Supplies and Services,"1,800.00",Jul-23
Slough Borough Council,808884,Total Communication,M22D,Adult Social Care Operations,Supplies and Services,"1,687.50",Jul-23
Slough Borough Council,808884,Total Communication,M22D,Adult Social Care Operations,Supplies and Services,"1,125.00",Jul-23
Slough Borough Council,808884,Total Communication,M22D,Adult Social Care Operations,Supplies and Services,"1,387.50",Jul-23
Slough Borough Council,808884,Total Communication,M22D,Adult Social Care Operations,Supplies and Services,"1,762.50",Jul-23
Slough Borough Council,808884,Total Communication,M22D,Adult Social Care Operations,Supplies and Services,600.00,Jul-23
Slough Borough Council,808884,Total Communication,M22D,Adult Social Care Operations,Supplies and Services,"1,050.00",Jul-23
Slough Borough Council,808884,Total Communication,M22D,Adult Social Care Operations,Supplies and Services,"1,612.50",Jul-23
Slough Borough Council,808884,Total Communication,M22D,Adult Social Care Operations,Supplies and Services,825.00,Jul-23
Slough Borough Council,808884,Total Communication,M22D,Adult Social Care Operations,Supplies and Services,600.00,Jul-23
Slough Borough Council,808884,Total Communication,M22D,Adult Social Care Operations,Supplies and Services,"1,500.00",Jul-23
Slough Borough Council,808884,Total Communication,M22D,Adult Social Care Operations,Supplies and Services,"1,500.30",Jul-23
Slough Borough Council,808884,Total Communication,M22D,Adult Social Care Operations,Supplies and Services,"1,425.00",Jul-23
Slough Borough Council,808884,Total Communication,M22D,Adult Social Care Operations,Supplies and Services,862.50,Jul-23
Slough Borough Council,808884,Total Communication,M22D,Adult Social Care Operations,Supplies and Services,"1,800.00",Jul-23
Slough Borough Council,1010,Trading Standards South East Ltd,D303,Place Regulation,Supplies and Services,"5,989.00",Jul-23
Slough Borough Council,1010,Trading Standards South East Ltd,D303,Place Regulation,Supplies and Services,"1,178.00",Jul-23
Slough Borough Council,804286,TRICS Consortium Limited,D220,Place Regulation,Supplies and Services,"2,950.00",Jul-23
Slough Borough Council,803437,Trinova Systems Ltd,D750,Place Operations,Supplies and Services,"2,500.00",Jul-23
Slough Borough Council,2889,Tudor (UK) Ltd t/a Tudor Environmental,D750,Place Operations,Supplies and Services,803.91,Jul-23
Slough Borough Council,2889,Tudor (UK) Ltd t/a Tudor Environmental,D750,Place Operations,Supplies and Services,675.00,Jul-23
Slough Borough Council,2889,Tudor (UK) Ltd t/a Tudor Environmental,D750,Place Operations,Supplies and Services,916.48,Jul-23
Slough Borough Council,2889,Tudor (UK) Ltd t/a Tudor Environmental,D750,Place Operations,Supplies and Services,553.69,Jul-23
Slough Borough Council,2889,Tudor (UK) Ltd t/a Tudor Environmental,D750,Place Operations,Supplies and Services,855.46,Jul-23
Slough Borough Council,2889,Tudor (UK) Ltd t/a Tudor Environmental,D750,Place Operations,Supplies and Services,661.60,Jul-23
Slough Borough Council,2889,Tudor (UK) Ltd t/a Tudor Environmental,D750,Place Operations,Supplies and Services,"1,521.34",Jul-23
Slough Borough Council,2889,Tudor (UK) Ltd t/a Tudor Environmental,D750,Place Operations,Supplies and Services,550.58,Jul-23
Slough Borough Council,942,Turning Point,A04C,Adult Social Care Operations,Supplies and Services,"74,375.00",Jul-23
Slough Borough Council,3953,Upton Court Grammar School,E610,Children & Families,Supplies and Services,"2,500.00",Jul-23
Slough Borough Council,577,Upton Park Hotel,H205,Housing (People) Services,Supplies and Services,"83,592.00",Jul-23
Slough Borough Council,808898,Vine Real Estate LTD,H205,Housing (People) Services,Supplies and Services,"8,250.00",Jul-23
Slough Borough Council,1212,Virgin Media Ltd,B282,Digital and Strategic IT,Supplies and Services,"46,742.98",Jul-23
Slough Borough Council,1212,Virgin Media Ltd,B282,Digital and Strategic IT,Supplies and Services,"16,585.35",Jul-23
Slough Borough Council,1212,Virgin Media Ltd,B023,Finance & Commercial,Supplies and Services,"2,646.75",Jul-23
Slough Borough Council,1212,Virgin Media Ltd,B023,Finance & Commercial,Supplies and Services,"19,230.35",Jul-23
Slough Borough Council,807617,Vivedia Ltd t/a Obitus,D320,Place Operations,External Receipts,"2,580.00",Jul-23
Slough Borough Council,803163,Volker Highways,P212,Capital,Capital Charges,"2,839.91",Jul-23
Slough Borough Council,3436,Voyage Ltd,M42E,Adult Social Care Operations,Supplies and Services,"6,014.45",Jul-23
Slough Borough Council,3436,Voyage Ltd,M42E,Adult Social Care Operations,Supplies and Services,"5,267.02",Jul-23
Slough Borough Council,3436,Voyage Ltd,M42E,Adult Social Care Operations,Supplies and Services,"5,734.62",Jul-23
Slough Borough Council,3436,Voyage Ltd,M42E,Adult Social Care Operations,Supplies and Services,"5,884.52",Jul-23
Slough Borough Council,3436,Voyage Ltd,M42E,Adult Social Care Operations,Supplies and Services,"5,872.46",Jul-23
Slough Borough Council,3436,Voyage Ltd,M42E,Adult Social Care Operations,Supplies and Services,"5,342.02",Jul-23
Slough Borough Council,3436,Voyage Ltd,M42E,Adult Social Care Operations,Supplies and Services,"4,826.10",Jul-23
Slough Borough Council,3436,Voyage Ltd,M42E,Adult Social Care Operations,External Receipts,-580.24,Jul-23
Slough Borough Council,2906,Wandsworth Council,F551,Children & Families,Supplies and Services,"15,078.07",Jul-23
Slough Borough Council,2906,Wandsworth Council,F551,Children & Families,Supplies and Services,"16,057.04",Jul-23
Slough Borough Council,2906,Wandsworth Council,F551,Children & Families,Supplies and Services,"16,456.34",Jul-23
Slough Borough Council,808416,WATERMELON PROPERTIES LIMITED,H205,Housing (People) Services,Supplies and Services,"1,800.00",Jul-23
Slough Borough Council,808416,WATERMELON PROPERTIES LIMITED,H205,Housing (People) Services,Supplies and Services,"1,800.00",Jul-23
Slough Borough Council,804372,Ways into Work,B211,Community,Supplies and Services,"93,152.73",Jul-23
Slough Borough Council,1762,Wellingtons For Langley Hall,F909,Children & Families,Supplies and Services,"63,474.35",Jul-23
Slough Borough Council,1762,Wellingtons For Langley Hall,F909,Children & Families,Supplies and Services,"3,600.00",Jul-23
Slough Borough Council,1649,Western House Primary School,E610,Children & Families,Supplies and Services,"25,403.33",Jul-23
Slough Borough Council,3628,White Leaf Care Ltd,M26E,Adult Social Care Operations,Supplies and Services,"4,591.20",Jul-23
Slough Borough Council,3628,White Leaf Care Ltd,M27C,Adult Social Care Operations,Supplies and Services,"8,384.88",Jul-23
Slough Borough Council,1753,Willow Primary School,E620,Children & Families,Supplies and Services,"15,471.67",Jul-23
Slough Borough Council,807549,Windsar Care (UK) LLP,M15F,Adult Social Care Operations,Supplies and Services,"4,275.00",Jul-23
Slough Borough Council,807549,Windsar Care (UK) LLP,M15F,Adult Social Care Operations,Supplies and Services,"4,275.00",Jul-23
Slough Borough Council,807549,Windsar Care (UK) LLP,M15F,Adult Social Care Operations,Supplies and Services,"4,417.50",Jul-23
Slough Borough Council,807549,Windsar Care (UK) LLP,M15F,Adult Social Care Operations,Supplies and Services,"4,417.50",Jul-23
Slough Borough Council,807549,Windsar Care (UK) LLP,M17C,Adult Social Care Operations,Supplies and Services,"4,387.50",Jul-23
Slough Borough Council,807549,Windsar Care (UK) LLP,M17C,Adult Social Care Operations,Supplies and Services,"4,533.75",Jul-23
Slough Borough Council,807549,Windsar Care (UK) LLP,M18C,Adult Social Care Operations,Supplies and Services,"4,275.00",Jul-23
Slough Borough Council,807549,Windsar Care (UK) LLP,M18C,Adult Social Care Operations,Supplies and Services,"4,387.50",Jul-23
Slough Borough Council,807549,Windsar Care (UK) LLP,M18C,Adult Social Care Operations,Supplies and Services,"4,387.50",Jul-23
Slough Borough Council,807549,Windsar Care (UK) LLP,M18C,Adult Social Care Operations,Supplies and Services,"4,533.75",Jul-23
Slough Borough Council,807549,Windsar Care (UK) LLP,M18C,Adult Social Care Operations,Supplies and Services,"4,417.50",Jul-23
Slough Borough Council,807549,Windsar Care (UK) LLP,M18C,Adult Social Care Operations,Supplies and Services,"4,533.75",Jul-23
Slough Borough Council,804807,Windsar Care Centre Ltd,M15D,Adult Social Care Operations,Supplies and Services,"6,750.00",Jul-23
Slough Borough Council,804807,Windsar Care Centre Ltd,M15D,Adult Social Care Operations,Supplies and Services,"6,975.00",Jul-23
Slough Borough Council,804807,Windsar Care Centre Ltd,M15F,Adult Social Care Operations,Supplies and Services,"3,330.00",Jul-23
Slough Borough Council,804807,Windsar Care Centre Ltd,M15F,Adult Social Care Operations,Supplies and Services,"3,441.00",Jul-23
Slough Borough Council,804807,Windsar Care Centre Ltd,M17C,Adult Social Care Operations,Supplies and Services,"4,387.50",Jul-23
Slough Borough Council,804807,Windsar Care Centre Ltd,M17C,Adult Social Care Operations,Supplies and Services,"4,275.00",Jul-23
Slough Borough Council,804807,Windsar Care Centre Ltd,M17C,Adult Social Care Operations,Supplies and Services,"4,417.50",Jul-23
Slough Borough Council,804807,Windsar Care Centre Ltd,M17C,Adult Social Care Operations,Supplies and Services,"4,533.75",Jul-23
Slough Borough Council,804807,Windsar Care Centre Ltd,M18C,Adult Social Care Operations,Supplies and Services,"4,387.50",Jul-23
Slough Borough Council,804807,Windsar Care Centre Ltd,M18C,Adult Social Care Operations,Supplies and Services,"4,387.50",Jul-23
Slough Borough Council,804807,Windsar Care Centre Ltd,M18C,Adult Social Care Operations,Supplies and Services,"4,050.00",Jul-23
Slough Borough Council,804807,Windsar Care Centre Ltd,M18C,Adult Social Care Operations,Supplies and Services,"5,400.00",Jul-23
Slough Borough Council,804807,Windsar Care Centre Ltd,M18C,Adult Social Care Operations,Supplies and Services,"4,387.50",Jul-23
Slough Borough Council,804807,Windsar Care Centre Ltd,M18C,Adult Social Care Operations,Supplies and Services,"4,050.00",Jul-23
Slough Borough Council,804807,Windsar Care Centre Ltd,M18C,Adult Social Care Operations,Supplies and Services,"3,375.00",Jul-23
Slough Borough Council,804807,Windsar Care Centre Ltd,M18C,Adult Social Care Operations,Supplies and Services,"4,387.50",Jul-23
Slough Borough Council,804807,Windsar Care Centre Ltd,M18C,Adult Social Care Operations,Supplies and Services,"4,533.75",Jul-23
Slough Borough Council,804807,Windsar Care Centre Ltd,M18C,Adult Social Care Operations,Supplies and Services,"4,185.00",Jul-23
Slough Borough Council,804807,Windsar Care Centre Ltd,M18C,Adult Social Care Operations,Supplies and Services,"3,487.50",Jul-23
Slough Borough Council,804807,Windsar Care Centre Ltd,M18C,Adult Social Care Operations,Supplies and Services,"4,533.75",Jul-23
Slough Borough Council,804807,Windsar Care Centre Ltd,M18C,Adult Social Care Operations,Supplies and Services,"5,580.00",Jul-23
Slough Borough Council,804807,Windsar Care Centre Ltd,M18C,Adult Social Care Operations,Supplies and Services,"4,533.75",Jul-23
Slough Borough Council,804807,Windsar Care Centre Ltd,M18C,Adult Social Care Operations,Supplies and Services,"4,185.00",Jul-23
Slough Borough Council,804807,Windsar Care Centre Ltd,M18C,Adult Social Care Operations,Supplies and Services,"4,533.75",Jul-23
Slough Borough Council,3604,Windsar Care Ltd,M15F,Adult Social Care Operations,Supplies and Services,"4,650.00",Jul-23
Slough Borough Council,3604,Windsar Care Ltd,M15F,Adult Social Care Operations,Supplies and Services,"3,603.75",Jul-23
Slough Borough Council,3604,Windsar Care Ltd,M15F,Adult Social Care Operations,Supplies and Services,"2,208.75",Jul-23
Slough Borough Council,3604,Windsar Care Ltd,M15F,Adult Social Care Operations,Supplies and Services,"2,790.00",Jul-23
Slough Borough Council,3604,Windsar Care Ltd,M15F,Adult Social Care Operations,Supplies and Services,"3,487.50",Jul-23
Slough Borough Council,3604,Windsar Care Ltd,M15F,Adult Social Care Operations,Supplies and Services,"4,500.00",Jul-23
Slough Borough Council,3604,Windsar Care Ltd,M15F,Adult Social Care Operations,Supplies and Services,"2,137.50",Jul-23
Slough Borough Council,3604,Windsar Care Ltd,M15F,Adult Social Care Operations,Supplies and Services,"2,700.00",Jul-23
Slough Borough Council,3604,Windsar Care Ltd,M17C,Adult Social Care Operations,Supplies and Services,"3,487.50",Jul-23
Slough Borough Council,3604,Windsar Care Ltd,M17C,Adult Social Care Operations,Supplies and Services,"3,375.00",Jul-23
Slough Borough Council,3604,Windsar Care Ltd,M18C,Adult Social Care Operations,Supplies and Services,"3,720.00",Jul-23
Slough Borough Council,3604,Windsar Care Ltd,M18C,Adult Social Care Operations,Supplies and Services,"4,068.75",Jul-23
Slough Borough Council,3604,Windsar Care Ltd,M18C,Adult Social Care Operations,Supplies and Services,"3,600.00",Jul-23
Slough Borough Council,3604,Windsar Care Ltd,M18C,Adult Social Care Operations,Supplies and Services,"3,937.50",Jul-23
Slough Borough Council,3604,Windsar Care Ltd,M25C,Adult Social Care Operations,Supplies and Services,"3,487.50",Jul-23
Slough Borough Council,3604,Windsar Care Ltd,M25C,Adult Social Care Operations,Supplies and Services,"3,375.00",Jul-23
Slough Borough Council,3604,Windsar Care Ltd,M25D,Adult Social Care Operations,Supplies and Services,"4,533.75",Jul-23
Slough Borough Council,3604,Windsar Care Ltd,M25D,Adult Social Care Operations,Supplies and Services,"4,387.50",Jul-23
Slough Borough Council,3604,Windsar Care Ltd,M26E,Adult Social Care Operations,Supplies and Services,"3,487.50",Jul-23
Slough Borough Council,3604,Windsar Care Ltd,M26E,Adult Social Care Operations,Supplies and Services,"3,375.00",Jul-23
Slough Borough Council,3604,Windsar Care Ltd,M27F,Adult Social Care Operations,Supplies and Services,"5,580.00",Jul-23
Slough Borough Council,3604,Windsar Care Ltd,M27F,Adult Social Care Operations,Supplies and Services,"5,400.00",Jul-23
Slough Borough Council,3604,Windsar Care Ltd,M28C,Adult Social Care Operations,Supplies and Services,"4,207.14",Jul-23
Slough Borough Council,3604,Windsar Care Ltd,M28C,Adult Social Care Operations,Supplies and Services,"4,071.43",Jul-23
Slough Borough Council,3604,Windsar Care Ltd,M28C,Adult Social Care Operations,Supplies and Services,"4,207.14",Jul-23
Slough Borough Council,3604,Windsar Care Ltd,M28C,Adult Social Care Operations,Supplies and Services,"4,071.42",Jul-23
Slough Borough Council,3604,Windsar Care Ltd,M28C,Adult Social Care Operations,Supplies and Services,"4,207.14",Jul-23
Slough Borough Council,3604,Windsar Care Ltd,M28C,Adult Social Care Operations,Supplies and Services,"2,307.14",Jul-23
Slough Borough Council,748,YMCA St Paul's Group,H211,People Adults,Supplies and Services,"8,531.29",Jul-23
Slough Borough Council,808247,Yunex Limited,P209,Capital,Capital Charges,"58,016.00",Jul-23
Slough Borough Council,808247,Yunex Limited,P209,Capital,Capital Charges,"39,679.46",Jul-23
Slough Borough Council,808247,Yunex Limited,P243,Capital,Capital Charges,"8,212.48",Jul-23
Slough Borough Council,808247,Yunex Limited,P243,Capital,Capital Charges,"1,406.96",Jul-23
Slough Borough Council,808247,Yunex Limited,P243,Capital,Capital Charges,"11,095.61",Jul-23
Slough Borough Council,808247,Yunex Limited,P243,Capital,Capital Charges,"25,674.23",Jul-23
Slough Borough Council,808247,Yunex Limited,P243,Capital,Capital Charges,"2,280.73",Jul-23
Slough Borough Council,808247,Yunex Limited,P243,Capital,Capital Charges,"5,152.39",Jul-23
Slough Borough Council,808247,Yunex Limited,P243,Capital,Capital Charges,"15,106.39",Jul-23
